Publisher Label,Publisher URI,"Directorate code","Directorate","Service code","Service","Revenue or capital code","Revenue capital","Cost centre","Cost centre description","Bvsub Category","Bvsub description","Bvsum code","Bvsum description","Account code","Account description","Transaction No","Period","Transaction Date","Amount","Classification code","Classification description","Supplier ID","Supplier description","Company registration number","Company registration number Uri","VAT registration number"
"London Borough of Redbridge","http://opendatacommunities.org/doc/london-borough-council/redbridge","1BCENTRALPUB","Central Services to the Public","1CLOCALTAXCO","Local Tax Collection","REV","Revenue","R5760","Local Tax Collection","04-SUPPLIES","Supplies And Services","04D","Printing, stationery and general office expenses","5710","Stationery","60388128","201908",30/10/2018 00:00:00,124,"61820","Printers' Services and Supplies","REDACTED DATA","Radclyffe Culross & Sproston LTD","391378","http://opencorporates.com/companies/gb/391378","232832087"
"London Borough of Redbridge","http://opendatacommunities.org/doc/london-borough-council/redbridge","1BCENTRALPUB","Central Services to the Public","1CLOCALTAXCO","Local Tax Collection","REV","Revenue","R5760","Local Tax Collection","04-SUPPLIES","Supplies And Services","04H","Grants and subscriptions","5954","Professional Fees","60389778","201908",15/11/2018 00:00:00,236.25,"74700","Surveyors and Valuers","REDACTED DATA","INFORM CPI LTD","5599551","http://opencorporates.com/companies/gb/5599551","880928388"
"London Borough of Redbridge","http://opendatacommunities.org/doc/london-borough-council/redbridge","1BCENTRALPUB","Central Services to the Public","1CLOCALTAXCO","Local Tax Collection","REV","Revenue","R5760","Local Tax Collection","04-SUPPLIES","Supplies And Services","04H","Grants and subscriptions","5954","Professional Fees","60390615","201908",29/11/2018 00:00:00,112.5,"74700","Surveyors and Valuers","REDACTED DATA","INFORM CPI LTD","5599551","http://opencorporates.com/companies/gb/5599551","880928388"
"London Borough of Redbridge","http://opendatacommunities.org/doc/london-borough-council/redbridge","1BCENTRALPUB","Central Services to the Public","1CLOCALTAXCO","Local Tax Collection","REV","Revenue","R5760","Local Tax Collection","04-SUPPLIES","Supplies And Services","04H","Grants and subscriptions","5957","Bailiff Fees","70104894","201908",17/11/2018 00:00:00,825,"24230","Debt Collection Agencies","REDACTED DATA","NEWLYN PLC","3770985","http://opencorporates.com/companies/gb/3770985","739828088"
"London Borough of Redbridge","http://opendatacommunities.org/doc/london-borough-council/redbridge","1BCENTRALPUB","Central Services to the Public","1CLOCALTAXCO","Local Tax Collection","REV","Revenue","R9005","Registrar Service","04-SUPPLIES","Supplies And Services","04B","Catering","5602","Refreshments","80031622","201908",25/10/2018 00:00:00,41.48,"84070","Water Suppliers - Bottled","REDACTED DATA","EDEN SPRINGS (UK) LTD (NATURE SPRING)","4063744","http://opencorporates.com/companies/gb/4063744","232160411"
"London Borough of Redbridge","http://opendatacommunities.org/doc/london-borough-council/redbridge","1BCENTRALPUB","Central Services to the Public","1CLOCALTAXCO","Local Tax Collection","REV","Revenue","R9005","Registrar Service","04-SUPPLIES","Supplies And Services","04B","Catering","5602","Refreshments","80031245","201908",23/10/2018 00:00:00,48.57,"84070","Water Suppliers - Bottled","REDACTED DATA","EDEN SPRINGS (UK) LTD (NATURE SPRING)","4063744","http://opencorporates.com/companies/gb/4063744","232160411"
"London Borough of Redbridge","http://opendatacommunities.org/doc/london-borough-council/redbridge","1BCENTRALPUB","Central Services to the Public","1CLOCALTAXCO","Local Tax Collection","REV","Revenue","R9005","Registrar Service","04-SUPPLIES","Supplies And Services","04D","Printing, stationery and general office expenses","5710","Stationery","3530095","201908",18/10/2018 00:00:00,-4.3,"53770","Office Stationery Supplies","REDACTED DATA","OFFICE DEPOT UK LTD (EX-GUILBERT UK)","2654682","http://opencorporates.com/companies/gb/2654682","673478594"
"London Borough of Redbridge","http://opendatacommunities.org/doc/london-borough-council/redbridge","1BCENTRALPUB","Central Services to the Public","1CLOCALTAXCO","Local Tax Collection","REV","Revenue","R9005","Registrar Service","04-SUPPLIES","Supplies And Services","04D","Printing, stationery and general office expenses","5710","Stationery","3530095","201908",18/10/2018 00:00:00,-2.2,"53770","Office Stationery Supplies","REDACTED DATA","OFFICE DEPOT UK LTD (EX-GUILBERT UK)","2654682","http://opencorporates.com/companies/gb/2654682","673478594"
"London Borough of Redbridge","http://opendatacommunities.org/doc/london-borough-council/redbridge","1BCENTRALPUB","Central Services to the Public","1CLOCALTAXCO","Local Tax Collection","REV","Revenue","R9005","Registrar Service","04-SUPPLIES","Supplies And Services","04D","Printing, stationery and general office expenses","5710","Stationery","3530095","201908",18/10/2018 00:00:00,-1.5,"53770","Office Stationery Supplies","REDACTED DATA","OFFICE DEPOT UK LTD (EX-GUILBERT UK)","2654682","http://opencorporates.com/companies/gb/2654682","673478594"
"London Borough of Redbridge","http://opendatacommunities.org/doc/london-borough-council/redbridge","1BCENTRALPUB","Central Services to the Public","1CLOCALTAXCO","Local Tax Collection","REV","Revenue","R9005","Registrar Service","04-SUPPLIES","Supplies And Services","04D","Printing, stationery and general office expenses","5710","Stationery","3530095","201908",18/10/2018 00:00:00,-5.99,"53770","Office Stationery Supplies","REDACTED DATA","OFFICE DEPOT UK LTD (EX-GUILBERT UK)","2654682","http://opencorporates.com/companies/gb/2654682","673478594"
"London Borough of Redbridge","http://opendatacommunities.org/doc/london-borough-council/redbridge","1BCENTRALPUB","Central Services to the Public","1CLOCALTAXCO","Local Tax Collection","REV","Revenue","R9005","Registrar Service","04-SUPPLIES","Supplies And Services","04D","Printing, stationery and general office expenses","5710","Stationery","3530095","201908",19/10/2018 00:00:00,5.99,"53770","Office Stationery Supplies","REDACTED DATA","OFFICE DEPOT UK LTD (EX-GUILBERT UK)","2654682","http://opencorporates.com/companies/gb/2654682","673478594"
"London Borough of Redbridge","http://opendatacommunities.org/doc/london-borough-council/redbridge","1BCENTRALPUB","Central Services to the Public","1CLOCALTAXCO","Local Tax Collection","REV","Revenue","R9005","Registrar Service","04-SUPPLIES","Supplies And Services","04D","Printing, stationery and general office expenses","5710","Stationery","3530095","201908",19/10/2018 00:00:00,1.5,"53770","Office Stationery Supplies","REDACTED DATA","OFFICE DEPOT UK LTD (EX-GUILBERT UK)","2654682","http://opencorporates.com/companies/gb/2654682","673478594"
"London Borough of Redbridge","http://opendatacommunities.org/doc/london-borough-council/redbridge","1BCENTRALPUB","Central Services to the Public","1CLOCALTAXCO","Local Tax Collection","REV","Revenue","R9005","Registrar Service","04-SUPPLIES","Supplies And Services","04D","Printing, stationery and general office expenses","5710","Stationery","3530095","201908",19/10/2018 00:00:00,1.55,"53770","Office Stationery Supplies","REDACTED DATA","OFFICE DEPOT UK LTD (EX-GUILBERT UK)","2654682","http://opencorporates.com/companies/gb/2654682","673478594"
"London Borough of Redbridge","http://opendatacommunities.org/doc/london-borough-council/redbridge","1BCENTRALPUB","Central Services to the Public","1CLOCALTAXCO","Local Tax Collection","REV","Revenue","R9005","Registrar Service","04-SUPPLIES","Supplies And Services","04D","Printing, stationery and general office expenses","5710","Stationery","3530095","201908",19/10/2018 00:00:00,1.35,"53770","Office Stationery Supplies","REDACTED DATA","OFFICE DEPOT UK LTD (EX-GUILBERT UK)","2654682","http://opencorporates.com/companies/gb/2654682","673478594"
"London Borough of Redbridge","http://opendatacommunities.org/doc/london-borough-council/redbridge","1BCENTRALPUB","Central Services to the Public","1CLOCALTAXCO","Local Tax Collection","REV","Revenue","R9005","Registrar Service","04-SUPPLIES","Supplies And Services","04D","Printing, stationery and general office expenses","5710","Stationery","3530095","201908",18/10/2018 00:00:00,2.04,"53770","Office Stationery Supplies","REDACTED DATA","OFFICE DEPOT UK LTD (EX-GUILBERT UK)","2654682","http://opencorporates.com/companies/gb/2654682","673478594"
"London Borough of Redbridge","http://opendatacommunities.org/doc/london-borough-council/redbridge","1BCENTRALPUB","Central Services to the Public","1CLOCALTAXCO","Local Tax Collection","REV","Revenue","R9005","Registrar Service","04-SUPPLIES","Supplies And Services","04D","Printing, stationery and general office expenses","5710","Stationery","3530095","201908",19/10/2018 00:00:00,2.04,"53770","Office Stationery Supplies","REDACTED DATA","OFFICE DEPOT UK LTD (EX-GUILBERT UK)","2654682","http://opencorporates.com/companies/gb/2654682","673478594"
"London Borough of Redbridge","http://opendatacommunities.org/doc/london-borough-council/redbridge","1BCENTRALPUB","Central Services to the Public","1CLOCALTAXCO","Local Tax Collection","REV","Revenue","R9005","Registrar Service","04-SUPPLIES","Supplies And Services","04D","Printing, stationery and general office expenses","5710","Stationery","3530095","201908",19/10/2018 00:00:00,2.2,"53770","Office Stationery Supplies","REDACTED DATA","OFFICE DEPOT UK LTD (EX-GUILBERT UK)","2654682","http://opencorporates.com/companies/gb/2654682","673478594"
"London Borough of Redbridge","http://opendatacommunities.org/doc/london-borough-council/redbridge","1BCENTRALPUB","Central Services to the Public","1CLOCALTAXCO","Local Tax Collection","REV","Revenue","R9005","Registrar Service","04-SUPPLIES","Supplies And Services","04D","Printing, stationery and general office expenses","5710","Stationery","3530095","201908",19/10/2018 00:00:00,4.3,"53770","Office Stationery Supplies","REDACTED DATA","OFFICE DEPOT UK LTD (EX-GUILBERT UK)","2654682","http://opencorporates.com/companies/gb/2654682","673478594"
"London Borough of Redbridge","http://opendatacommunities.org/doc/london-borough-council/redbridge","1BCENTRALPUB","Central Services to the Public","1CLOCALTAXCO","Local Tax Collection","REV","Revenue","R9005","Registrar Service","04-SUPPLIES","Supplies And Services","04D","Printing, stationery and general office expenses","5710","Stationery","3530095","201908",18/10/2018 00:00:00,1.35,"53770","Office Stationery Supplies","REDACTED DATA","OFFICE DEPOT UK LTD (EX-GUILBERT UK)","2654682","http://opencorporates.com/companies/gb/2654682","673478594"
"London Borough of Redbridge","http://opendatacommunities.org/doc/london-borough-council/redbridge","1BCENTRALPUB","Central Services to the Public","1CLOCALTAXCO","Local Tax Collection","REV","Revenue","R9005","Registrar Service","04-SUPPLIES","Supplies And Services","04D","Printing, stationery and general office expenses","5710","Stationery","3530095","201908",18/10/2018 00:00:00,4.3,"53770","Office Stationery Supplies","REDACTED DATA","OFFICE DEPOT UK LTD (EX-GUILBERT UK)","2654682","http://opencorporates.com/companies/gb/2654682","673478594"
"London Borough of Redbridge","http://opendatacommunities.org/doc/london-borough-council/redbridge","1BCENTRALPUB","Central Services to the Public","1CLOCALTAXCO","Local Tax Collection","REV","Revenue","R9005","Registrar Service","04-SUPPLIES","Supplies And Services","04D","Printing, stationery and general office expenses","5710","Stationery","3530095","201908",18/10/2018 00:00:00,5.99,"53770","Office Stationery Supplies","REDACTED DATA","OFFICE DEPOT UK LTD (EX-GUILBERT UK)","2654682","http://opencorporates.com/companies/gb/2654682","673478594"
"London Borough of Redbridge","http://opendatacommunities.org/doc/london-borough-council/redbridge","1BCENTRALPUB","Central Services to the Public","1CLOCALTAXCO","Local Tax Collection","REV","Revenue","R9005","Registrar Service","04-SUPPLIES","Supplies And Services","04D","Printing, stationery and general office expenses","5710","Stationery","3530095","201908",18/10/2018 00:00:00,1.5,"53770","Office Stationery Supplies","REDACTED DATA","OFFICE DEPOT UK LTD (EX-GUILBERT UK)","2654682","http://opencorporates.com/companies/gb/2654682","673478594"
"London Borough of Redbridge","http://opendatacommunities.org/doc/london-borough-council/redbridge","1BCENTRALPUB","Central Services to the Public","1CLOCALTAXCO","Local Tax Collection","REV","Revenue","R9005","Registrar Service","04-SUPPLIES","Supplies And Services","04D","Printing, stationery and general office expenses","5710","Stationery","3530095","201908",18/10/2018 00:00:00,-1.35,"53770","Office Stationery Supplies","REDACTED DATA","OFFICE DEPOT UK LTD (EX-GUILBERT UK)","2654682","http://opencorporates.com/companies/gb/2654682","673478594"
"London Borough of Redbridge","http://opendatacommunities.org/doc/london-borough-council/redbridge","1BCENTRALPUB","Central Services to the Public","1CLOCALTAXCO","Local Tax Collection","REV","Revenue","R9005","Registrar Service","04-SUPPLIES","Supplies And Services","04D","Printing, stationery and general office expenses","5710","Stationery","3530095","201908",18/10/2018 00:00:00,-2.04,"53770","Office Stationery Supplies","REDACTED DATA","OFFICE DEPOT UK LTD (EX-GUILBERT UK)","2654682","http://opencorporates.com/companies/gb/2654682","673478594"
"London Borough of Redbridge","http://opendatacommunities.org/doc/london-borough-council/redbridge","1BCENTRALPUB","Central Services to the Public","1CLOCALTAXCO","Local Tax Collection","REV","Revenue","R9005","Registrar Service","04-SUPPLIES","Supplies And Services","04D","Printing, stationery and general office expenses","5710","Stationery","3530095","201908",18/10/2018 00:00:00,2.2,"53770","Office Stationery Supplies","REDACTED DATA","OFFICE DEPOT UK LTD (EX-GUILBERT UK)","2654682","http://opencorporates.com/companies/gb/2654682","673478594"
"London Borough of Redbridge","http://opendatacommunities.org/doc/london-borough-council/redbridge","1BCENTRALPUB","Central Services to the Public","1CREGBDM","Reg. of Births, Deaths & Marriages","REV","Revenue","R3970","Corporate Policy and Performance","04-SUPPLIES","Supplies And Services","04D","Printing, stationery and general office expenses","5710","Stationery","60389985","201908",08/11/2018 00:00:00,240,"16250","Catering Food and Drink Suppliers","REDACTED DATA","BLUE RIVER (UK)LTD","7016382","http://opencorporates.com/companies/gb/7016382","348651048"
"London Borough of Redbridge","http://opendatacommunities.org/doc/london-borough-council/redbridge","1BCENTRALPUB","Central Services to the Public","1CREGBDM","Reg. of Births, Deaths & Marriages","REV","Revenue","R3970","Corporate Policy and Performance","04-SUPPLIES","Supplies And Services","04D","Printing, stationery and general office expenses","5710","Stationery","60388877","201908",30/08/2018 00:00:00,135,"17020","Charities and Voluntary Organisations","REDACTED DATA","ALL SAINTS' PAROCHIAL CHURCH COUNCIL(WOODFORD)","",,""
"London Borough of Redbridge","http://opendatacommunities.org/doc/london-borough-council/redbridge","1BCENTRALPUB","Central Services to the Public","1CREGBDM","Reg. of Births, Deaths & Marriages","REV","Revenue","R3970","Corporate Policy and Performance","04-SUPPLIES","Supplies And Services","04E","Services","5759","Hire Of Venues","60388676","201908",30/08/2018 00:00:00,135,"64480","Religious Organisations","REDACTED DATA","ALL SAINTS WOODFORD WELLS","",,""
"London Borough of Redbridge","http://opendatacommunities.org/doc/london-borough-council/redbridge","1BCENTRALPUB","Central Services to the Public","1CREGBDM","Reg. of Births, Deaths & Marriages","REV","Revenue","R3970","Corporate Policy and Performance","04-SUPPLIES","Supplies And Services","04E","Services","5960","Local Forum","60388215","201908",30/10/2018 00:00:00,255,"67346","Schools and Colleges - Grant Maintained and Selfgoverning","REDACTED DATA","ARK SCHOOLS T/A ISAAC NEWTON ACADEMY","",,"859151405"
"London Borough of Redbridge","http://opendatacommunities.org/doc/london-borough-council/redbridge","1BCENTRALPUB","Central Services to the Public","1CTRADSURDEF","Trading Account Surpluses & Deficits","REV","Revenue","R3971","Local London Director","04-SUPPLIES","Supplies And Services","04E","Services","5759","Hire Of Venues","60390381","201908",20/11/2018 00:00:00,280,"64480","Religious Organisations","REDACTED DATA","CITYGATES CHURCH","",,""
"London Borough of Redbridge","http://opendatacommunities.org/doc/london-borough-council/redbridge","1BCENTRALPUB","Central Services to the Public","1CTRADSURDEF","Trading Account Surpluses & Deficits","REV","Revenue","R5752","Centrally Controlled Costs","04-SUPPLIES","Supplies And Services","04K","Miscellaneous expenses","6280","Miscellaneous Expenditure","60390000","201908",20/11/2018 00:00:00,900,"48586","Locksmiths","REDACTED DATA","MARTIN LOCK & SAFE","",,"248118853"
"London Borough of Redbridge","http://opendatacommunities.org/doc/london-borough-council/redbridge","1BCENTRALPUB","Central Services to the Public","1CTRADSURDEF","Trading Account Surpluses & Deficits","REV","Revenue","R5753","Cashiers","04-SUPPLIES","Supplies And Services","04B","Catering","5602","Refreshments","80031627","201908",25/10/2018 00:00:00,43.04,"84070","Water Suppliers - Bottled","REDACTED DATA","EDEN SPRINGS (UK) LTD (NATURE SPRING)","4063744","http://opencorporates.com/companies/gb/4063744","232160411"
"London Borough of Redbridge","http://opendatacommunities.org/doc/london-borough-council/redbridge","1BCENTRALPUB","Central Services to the Public","1CTRADSURDEF","Trading Account Surpluses & Deficits","REV","Revenue","R5753","Cashiers","04-SUPPLIES","Supplies And Services","04D","Printing, stationery and general office expenses","5710","Stationery","3530095","201908",17/10/2018 00:00:00,15.9,"53770","Office Stationery Supplies","REDACTED DATA","OFFICE DEPOT UK LTD (EX-GUILBERT UK)","2654682","http://opencorporates.com/companies/gb/2654682","673478594"
"London Borough of Redbridge","http://opendatacommunities.org/doc/london-borough-council/redbridge","1BCENTRALPUB","Central Services to the Public","1CTRADSURDEF","Trading Account Surpluses & Deficits","REV","Revenue","R5753","Cashiers","04-SUPPLIES","Supplies And Services","04D","Printing, stationery and general office expenses","5710","Stationery","3530095","201908",26/10/2018 00:00:00,15,"53770","Office Stationery Supplies","REDACTED DATA","OFFICE DEPOT UK LTD (EX-GUILBERT UK)","2654682","http://opencorporates.com/companies/gb/2654682","673478594"
"London Borough of Redbridge","http://opendatacommunities.org/doc/london-borough-council/redbridge","1BCENTRALPUB","Central Services to the Public","1CTRADSURDEF","Trading Account Surpluses & Deficits","REV","Revenue","R5753","Cashiers","04-SUPPLIES","Supplies And Services","04D","Printing, stationery and general office expenses","5710","Stationery","3530095","201908",17/10/2018 00:00:00,12.99,"53770","Office Stationery Supplies","REDACTED DATA","OFFICE DEPOT UK LTD (EX-GUILBERT UK)","2654682","http://opencorporates.com/companies/gb/2654682","673478594"
"London Borough of Redbridge","http://opendatacommunities.org/doc/london-borough-council/redbridge","1BCENTRALPUB","Central Services to the Public","1CTRADSURDEF","Trading Account Surpluses & Deficits","REV","Revenue","R5753","Cashiers","04-SUPPLIES","Supplies And Services","04D","Printing, stationery and general office expenses","5710","Stationery","3530095","201908",17/10/2018 00:00:00,36.65,"53770","Office Stationery Supplies","REDACTED DATA","OFFICE DEPOT UK LTD (EX-GUILBERT UK)","2654682","http://opencorporates.com/companies/gb/2654682","673478594"
"London Borough of Redbridge","http://opendatacommunities.org/doc/london-borough-council/redbridge","1BCENTRALPUB","Central Services to the Public","1CTRADSURDEF","Trading Account Surpluses & Deficits","REV","Revenue","R5753","Cashiers","04-SUPPLIES","Supplies And Services","04D","Printing, stationery and general office expenses","5710","Stationery","3530095","201908",17/10/2018 00:00:00,2.8,"53770","Office Stationery Supplies","REDACTED DATA","OFFICE DEPOT UK LTD (EX-GUILBERT UK)","2654682","http://opencorporates.com/companies/gb/2654682","673478594"
"London Borough of Redbridge","http://opendatacommunities.org/doc/london-borough-council/redbridge","1BCENTRALPUB","Central Services to the Public","1CTRADSURDEF","Trading Account Surpluses & Deficits","REV","Revenue","R5753","Cashiers","04-SUPPLIES","Supplies And Services","04D","Printing, stationery and general office expenses","5710","Stationery","3530095","201908",17/10/2018 00:00:00,4.3,"53770","Office Stationery Supplies","REDACTED DATA","OFFICE DEPOT UK LTD (EX-GUILBERT UK)","2654682","http://opencorporates.com/companies/gb/2654682","673478594"
"London Borough of Redbridge","http://opendatacommunities.org/doc/london-borough-council/redbridge","1BCENTRALPUB","Central Services to the Public","1CTRADSURDEF","Trading Account Surpluses & Deficits","REV","Revenue","R5753","Cashiers","04-SUPPLIES","Supplies And Services","04D","Printing, stationery and general office expenses","5710","Stationery","3530095","201908",17/10/2018 00:00:00,8.8,"53770","Office Stationery Supplies","REDACTED DATA","OFFICE DEPOT UK LTD (EX-GUILBERT UK)","2654682","http://opencorporates.com/companies/gb/2654682","673478594"
"London Borough of Redbridge","http://opendatacommunities.org/doc/london-borough-council/redbridge","1BCENTRALPUB","Central Services to the Public","1CTRADSURDEF","Trading Account Surpluses & Deficits","REV","Revenue","R5753","Cashiers","04-SUPPLIES","Supplies And Services","04D","Printing, stationery and general office expenses","5710","Stationery","3530095","201908",17/10/2018 00:00:00,4.55,"53770","Office Stationery Supplies","REDACTED DATA","OFFICE DEPOT UK LTD (EX-GUILBERT UK)","2654682","http://opencorporates.com/companies/gb/2654682","673478594"
"London Borough of Redbridge","http://opendatacommunities.org/doc/london-borough-council/redbridge","1BCENTRALPUB","Central Services to the Public","1CTRADSURDEF","Trading Account Surpluses & Deficits","REV","Revenue","R5753","Cashiers","04-SUPPLIES","Supplies And Services","04D","Printing, stationery and general office expenses","5710","Stationery","3530095","201908",17/10/2018 00:00:00,9.2,"53770","Office Stationery Supplies","REDACTED DATA","OFFICE DEPOT UK LTD (EX-GUILBERT UK)","2654682","http://opencorporates.com/companies/gb/2654682","673478594"
"London Borough of Redbridge","http://opendatacommunities.org/doc/london-borough-council/redbridge","1BCENTRALPUB","Central Services to the Public","1CTRADSURDEF","Trading Account Surpluses & Deficits","REV","Revenue","R5753","Cashiers","04-SUPPLIES","Supplies And Services","04D","Printing, stationery and general office expenses","5710","Stationery","3530095","201908",17/10/2018 00:00:00,4.8,"53770","Office Stationery Supplies","REDACTED DATA","OFFICE DEPOT UK LTD (EX-GUILBERT UK)","2654682","http://opencorporates.com/companies/gb/2654682","673478594"
"London Borough of Redbridge","http://opendatacommunities.org/doc/london-borough-council/redbridge","1BCENTRALPUB","Central Services to the Public","1CTRADSURDEF","Trading Account Surpluses & Deficits","REV","Revenue","R5753","Cashiers","04-SUPPLIES","Supplies And Services","04D","Printing, stationery and general office expenses","5710","Stationery","3530095","201908",26/10/2018 00:00:00,3.3,"53770","Office Stationery Supplies","REDACTED DATA","OFFICE DEPOT UK LTD (EX-GUILBERT UK)","2654682","http://opencorporates.com/companies/gb/2654682","673478594"
"London Borough of Redbridge","http://opendatacommunities.org/doc/london-borough-council/redbridge","1BCENTRALPUB","Central Services to the Public","1CTRADSURDEF","Trading Account Surpluses & Deficits","REV","Revenue","R5753","Cashiers","04-SUPPLIES","Supplies And Services","04D","Printing, stationery and general office expenses","5710","Stationery","3530095","201908",26/10/2018 00:00:00,6.6,"53770","Office Stationery Supplies","REDACTED DATA","OFFICE DEPOT UK LTD (EX-GUILBERT UK)","2654682","http://opencorporates.com/companies/gb/2654682","673478594"
"London Borough of Redbridge","http://opendatacommunities.org/doc/london-borough-council/redbridge","1BCENTRALPUB","Central Services to the Public","1CTRADSURDEF","Trading Account Surpluses & Deficits","REV","Revenue","R5753","Cashiers","04-SUPPLIES","Supplies And Services","04D","Printing, stationery and general office expenses","5710","Stationery","3530095","201908",26/10/2018 00:00:00,22.92,"53770","Office Stationery Supplies","REDACTED DATA","OFFICE DEPOT UK LTD (EX-GUILBERT UK)","2654682","http://opencorporates.com/companies/gb/2654682","673478594"
"London Borough of Redbridge","http://opendatacommunities.org/doc/london-borough-council/redbridge","1BCENTRALPUB","Central Services to the Public","1CTRADSURDEF","Trading Account Surpluses & Deficits","REV","Revenue","R5753","Cashiers","04-SUPPLIES","Supplies And Services","04D","Printing, stationery and general office expenses","5710","Stationery","3530095","201908",17/10/2018 00:00:00,6.87,"53770","Office Stationery Supplies","REDACTED DATA","OFFICE DEPOT UK LTD (EX-GUILBERT UK)","2654682","http://opencorporates.com/companies/gb/2654682","673478594"
"London Borough of Redbridge","http://opendatacommunities.org/doc/london-borough-council/redbridge","1BCENTRALPUB","Central Services to the Public","1CTRADSURDEF","Trading Account Surpluses & Deficits","REV","Revenue","R5753","Cashiers","04-SUPPLIES","Supplies And Services","04D","Printing, stationery and general office expenses","5710","Stationery","3530095","201908",17/10/2018 00:00:00,5.3,"53770","Office Stationery Supplies","REDACTED DATA","OFFICE DEPOT UK LTD (EX-GUILBERT UK)","2654682","http://opencorporates.com/companies/gb/2654682","673478594"
"London Borough of Redbridge","http://opendatacommunities.org/doc/london-borough-council/redbridge","1BCENTRALPUB","Central Services to the Public","1CTRADSURDEF","Trading Account Surpluses & Deficits","REV","Revenue","R5753","Cashiers","04-SUPPLIES","Supplies And Services","04D","Printing, stationery and general office expenses","5710","Stationery","3530095","201908",17/10/2018 00:00:00,7.45,"53770","Office Stationery Supplies","REDACTED DATA","OFFICE DEPOT UK LTD (EX-GUILBERT UK)","2654682","http://opencorporates.com/companies/gb/2654682","673478594"
"London Borough of Redbridge","http://opendatacommunities.org/doc/london-borough-council/redbridge","1BCENTRALPUB","Central Services to the Public","1CTRADSURDEF","Trading Account Surpluses & Deficits","REV","Revenue","R5754","Income","04-SUPPLIES","Supplies And Services","04H","Grants and subscriptions","5954","Professional Fees","60389792","201908",16/11/2018 00:00:00,1.5,"48582","Loans and Debt - Management","REDACTED DATA","MOORCROFT DEBT RECOVERY LTD","1703704","http://opencorporates.com/companies/gb/1703704","453109273"
"London Borough of Redbridge","http://opendatacommunities.org/doc/london-borough-council/redbridge","1BCENTRALPUB","Central Services to the Public","1CTRADSURDEF","Trading Account Surpluses & Deficits","REV","Revenue","R5754","Income","04-SUPPLIES","Supplies And Services","04H","Grants and subscriptions","5954","Professional Fees","60389791","201908",16/11/2018 00:00:00,120.54,"48582","Loans and Debt - Management","REDACTED DATA","MOORCROFT DEBT RECOVERY LTD","1703704","http://opencorporates.com/companies/gb/1703704","453109273"
"London Borough of Redbridge","http://opendatacommunities.org/doc/london-borough-council/redbridge","1BCENTRALPUB","Central Services to the Public","1CTRADSURDEF","Trading Account Surpluses & Deficits","REV","Revenue","R5754","Income","04-SUPPLIES","Supplies And Services","04H","Grants and subscriptions","5954","Professional Fees","60389793","201908",16/11/2018 00:00:00,16.5,"48582","Loans and Debt - Management","REDACTED DATA","MOORCROFT DEBT RECOVERY LTD","1703704","http://opencorporates.com/companies/gb/1703704","453109273"
"London Borough of Redbridge","http://opendatacommunities.org/doc/london-borough-council/redbridge","1BCENTRALPUB","Central Services to the Public","1CTRADSURDEF","Trading Account Surpluses & Deficits","REV","Revenue","R5754","Income","04-SUPPLIES","Supplies And Services","04H","Grants and subscriptions","5954","Professional Fees","60389794","201908",16/11/2018 00:00:00,7.5,"48582","Loans and Debt - Management","REDACTED DATA","MOORCROFT DEBT RECOVERY LTD","1703704","http://opencorporates.com/companies/gb/1703704","453109273"
"London Borough of Redbridge","http://opendatacommunities.org/doc/london-borough-council/redbridge","1BCENTRALPUB","Central Services to the Public","1CTRADSURDEF","Trading Account Surpluses & Deficits","REV","Revenue","R5770","Income Assessment","04-SUPPLIES","Supplies And Services","04H","Grants and subscriptions","5954","Professional Fees","60389790","201908",16/11/2018 00:00:00,67.5,"48582","Loans and Debt - Management","REDACTED DATA","MOORCROFT DEBT RECOVERY LTD","1703704","http://opencorporates.com/companies/gb/1703704","453109273"
"London Borough of Redbridge","http://opendatacommunities.org/doc/london-borough-council/redbridge","1BCENTRALPUB","Central Services to the Public","1CTRADSURDEF","Trading Account Surpluses & Deficits","REV","Revenue","R6755","Emergency Plan Stratgy","04-SUPPLIES","Supplies And Services","04D","Printing, stationery and general office expenses","5710","Stationery","3530095","201908",17/10/2018 00:00:00,9.96,"53770","Office Stationery Supplies","REDACTED DATA","OFFICE DEPOT UK LTD (EX-GUILBERT UK)","2654682","http://opencorporates.com/companies/gb/2654682","673478594"
"London Borough of Redbridge","http://opendatacommunities.org/doc/london-borough-council/redbridge","1BCENTRALPUB","Central Services to the Public","1CTRADSURDEF","Trading Account Surpluses & Deficits","REV","Revenue","R6755","Emergency Plan Stratgy","04-SUPPLIES","Supplies And Services","04D","Printing, stationery and general office expenses","5710","Stationery","3530095","201908",16/10/2018 00:00:00,-9.96,"53770","Office Stationery Supplies","REDACTED DATA","OFFICE DEPOT UK LTD (EX-GUILBERT UK)","2654682","http://opencorporates.com/companies/gb/2654682","673478594"
"London Borough of Redbridge","http://opendatacommunities.org/doc/london-borough-council/redbridge","1BCORPDEM","Corporate & Democratic Core","1CCORPMGT","Corporate Management","REV","Revenue","R0029","Chief Executive","01-EMPLOYEES","Employees","01B","Indirect employee expenses","2403","External Training","60390764","201908",30/11/2018 00:00:00,3500,"12100","Business and Management Consultants","REDACTED DATA","EQUALITY IN ORGANISATIONS","",,""
"London Borough of Redbridge","http://opendatacommunities.org/doc/london-borough-council/redbridge","1BCORPDEM","Corporate & Democratic Core","1CCORPMGT","Corporate Management","REV","Revenue","R0029","Chief Executive","04-SUPPLIES","Supplies And Services","04B","Catering","5601","Catering Provisions (Food & Drink)","60389879","201908",23/11/2018 00:00:00,143,"16250","Catering Food and Drink Suppliers","REDACTED DATA","COLLINS CATERING","",,""
"London Borough of Redbridge","http://opendatacommunities.org/doc/london-borough-council/redbridge","1BCORPDEM","Corporate & Democratic Core","1CCORPMGT","Corporate Management","REV","Revenue","R0029","Chief Executive","04-SUPPLIES","Supplies And Services","04B","Catering","5602","Refreshments","80031614","201908",25/10/2018 00:00:00,17,"84070","Water Suppliers - Bottled","REDACTED DATA","EDEN SPRINGS (UK) LTD (NATURE SPRING)","4063744","http://opencorporates.com/companies/gb/4063744","232160411"
"London Borough of Redbridge","http://opendatacommunities.org/doc/london-borough-council/redbridge","1BCORPDEM","Corporate & Democratic Core","1CCORPMGT","Corporate Management","REV","Revenue","R0029","Chief Executive","04-SUPPLIES","Supplies And Services","04E","Services","5759","Hire Of Venues","60388437","201908",17/10/2017 00:00:00,146.33,"48583","Local Government","REDACTED DATA","VISION REDBRIDGE CULTURE AND LEISURE","6032714","http://opencorporates.com/companies/gb/6032714","906429031"
"London Borough of Redbridge","http://opendatacommunities.org/doc/london-borough-council/redbridge","1BCORPDEM","Corporate & Democratic Core","1CCORPMGT","Corporate Management","REV","Revenue","R0029","Chief Executive","04-SUPPLIES","Supplies And Services","04E","Services","5759","Hire Of Venues","60389859","201908",13/11/2018 00:00:00,-216.68,"48583","Local Government","REDACTED DATA","VISION REDBRIDGE CULTURE AND LEISURE","6032714","http://opencorporates.com/companies/gb/6032714","906429031"
"London Borough of Redbridge","http://opendatacommunities.org/doc/london-borough-council/redbridge","1BCORPDEM","Corporate & Democratic Core","1CCORPMGT","Corporate Management","REV","Revenue","R0029","Chief Executive","04-SUPPLIES","Supplies And Services","04E","Services","5759","Hire Of Venues","60389860","201908",13/11/2018 00:00:00,-216.68,"48583","Local Government","REDACTED DATA","VISION REDBRIDGE CULTURE AND LEISURE","6032714","http://opencorporates.com/companies/gb/6032714","906429031"
"London Borough of Redbridge","http://opendatacommunities.org/doc/london-borough-council/redbridge","1BCORPDEM","Corporate & Democratic Core","1CCORPMGT","Corporate Management","REV","Revenue","R0029","Chief Executive","04-SUPPLIES","Supplies And Services","04E","Services","5759","Hire Of Venues","60388446","201908",22/03/2018 00:00:00,216.68,"48583","Local Government","REDACTED DATA","VISION REDBRIDGE CULTURE AND LEISURE","6032714","http://opencorporates.com/companies/gb/6032714","906429031"
"London Borough of Redbridge","http://opendatacommunities.org/doc/london-borough-council/redbridge","1BCORPDEM","Corporate & Democratic Core","1CCORPMGT","Corporate Management","REV","Revenue","R0029","Chief Executive","04-SUPPLIES","Supplies And Services","04E","Services","5759","Hire Of Venues","60388419","201908",22/03/2018 00:00:00,216.68,"48583","Local Government","REDACTED DATA","VISION REDBRIDGE CULTURE AND LEISURE","6032714","http://opencorporates.com/companies/gb/6032714","906429031"
"London Borough of Redbridge","http://opendatacommunities.org/doc/london-borough-council/redbridge","1BOTHEROPI&E","Other Operating Income & Expenditure","1CELECTIONS","Elections","REV","Revenue","R9362","Electoral Registration","04-SUPPLIES","Supplies And Services","04D","Printing, stationery and general office expenses","5705","Postage","60389321","201908",30/07/2018 00:00:00,218.4,"24510","Delivery Services","REDACTED DATA","ROYAL MAIL GROUP LTD","4138203","http://opencorporates.com/companies/gb/4138203","243170002"
"London Borough of Redbridge","http://opendatacommunities.org/doc/london-borough-council/redbridge","1BOTHEROPI&E","Other Operating Income & Expenditure","1CELECTIONS","Elections","REV","Revenue","R9362","Electoral Registration","04-SUPPLIES","Supplies And Services","04D","Printing, stationery and general office expenses","5705","Postage","60389323","201908",25/06/2018 00:00:00,118.55,"24510","Delivery Services","REDACTED DATA","ROYAL MAIL GROUP LTD","4138203","http://opencorporates.com/companies/gb/4138203","243170002"
"London Borough of Redbridge","http://opendatacommunities.org/doc/london-borough-council/redbridge","1BOTHEROPI&E","Other Operating Income & Expenditure","1CELECTIONS","Elections","REV","Revenue","R9362","Electoral Registration","04-SUPPLIES","Supplies And Services","04D","Printing, stationery and general office expenses","5710","Stationery","3530095","201908",13/10/2018 00:00:00,2.02,"53770","Office Stationery Supplies","REDACTED DATA","OFFICE DEPOT UK LTD (EX-GUILBERT UK)","2654682","http://opencorporates.com/companies/gb/2654682","673478594"
"London Borough of Redbridge","http://opendatacommunities.org/doc/london-borough-council/redbridge","1BOTHEROPI&E","Other Operating Income & Expenditure","1CELECTIONS","Elections","REV","Revenue","R9362","Electoral Registration","04-SUPPLIES","Supplies And Services","04D","Printing, stationery and general office expenses","5710","Stationery","3530095","201908",13/10/2018 00:00:00,38.29,"53770","Office Stationery Supplies","REDACTED DATA","OFFICE DEPOT UK LTD (EX-GUILBERT UK)","2654682","http://opencorporates.com/companies/gb/2654682","673478594"
"London Borough of Redbridge","http://opendatacommunities.org/doc/london-borough-council/redbridge","1BOTHEROPI&E","Other Operating Income & Expenditure","1CELECTIONS","Elections","REV","Revenue","R9362","Electoral Registration","04-SUPPLIES","Supplies And Services","04D","Printing, stationery and general office expenses","5710","Stationery","3530095","201908",13/10/2018 00:00:00,2.46,"53770","Office Stationery Supplies","REDACTED DATA","OFFICE DEPOT UK LTD (EX-GUILBERT UK)","2654682","http://opencorporates.com/companies/gb/2654682","673478594"
"London Borough of Redbridge","http://opendatacommunities.org/doc/london-borough-council/redbridge","1BOTHEROPI&E","Other Operating Income & Expenditure","1CELECTIONS","Elections","REV","Revenue","R9363","Municipal Elections","04-SUPPLIES","Supplies And Services","04D","Printing, stationery and general office expenses","5705","Postage","60390502","201908",12/11/2018 00:00:00,0.96,"24510","Delivery Services","REDACTED DATA","ROYAL MAIL GROUP LTD","4138203","http://opencorporates.com/companies/gb/4138203","243170002"
"London Borough of Redbridge","http://opendatacommunities.org/doc/london-borough-council/redbridge","1BOTHEROPI&E","Other Operating Income & Expenditure","1CTRADSURDEF","Trading Account Surpluses & Deficits","REV","Revenue","R7207","Capital Team Staffing","01-EMPLOYEES","Employees","01A","Direct employee expenses","4","Agency Staff - Pay","60390708","201908",28/11/2018 00:00:00,1165.44,"31230","Employment and Recruitment Agencies","REDACTED DATA","THE OYSTER PARTNERSHIP LTD","5020374","http://opencorporates.com/companies/gb/5020374","832961025"
"London Borough of Redbridge","http://opendatacommunities.org/doc/london-borough-council/redbridge","1BOTHEROPI&E","Other Operating Income & Expenditure","1CTRADSURDEF","Trading Account Surpluses & Deficits","REV","Revenue","R7207","Capital Team Staffing","01-EMPLOYEES","Employees","01A","Direct employee expenses","4","Agency Staff - Pay","60389426","201908",14/11/2018 00:00:00,952,"31230","Employment and Recruitment Agencies","REDACTED DATA","THE OYSTER PARTNERSHIP LTD","5020374","http://opencorporates.com/companies/gb/5020374","832961025"
"London Borough of Redbridge","http://opendatacommunities.org/doc/london-borough-council/redbridge","1BOTHEROPI&E","Other Operating Income & Expenditure","1CTRADSURDEF","Trading Account Surpluses & Deficits","REV","Revenue","R7207","Capital Team Staffing","01-EMPLOYEES","Employees","01A","Direct employee expenses","4","Agency Staff - Pay","60388456","201908",05/11/2018 00:00:00,117.5,"1961","Advertising - Agencies","REDACTED DATA","PENNA PLC (PENNA COMMUNICATIONS)","1912150","http://opencorporates.com/companies/gb/1912150","605849719"
"London Borough of Redbridge","http://opendatacommunities.org/doc/london-borough-council/redbridge","1BOTHEROPI&E","Other Operating Income & Expenditure","1CTRADSURDEF","Trading Account Surpluses & Deficits","REV","Revenue","R7207","Capital Team Staffing","01-EMPLOYEES","Employees","01B","Indirect employee expenses","2403","External Training","60388345","201908",23/10/2018 00:00:00,399,"29380","Educational Training Providers","REDACTED DATA","CONSIDERATE CONSTRUCTORS SCHEME LTD","8724924637","http://opencorporates.com/companies/gb/8724924637","807162935"
"London Borough of Redbridge","http://opendatacommunities.org/doc/london-borough-council/redbridge","1BOTHEROPI&E","Other Operating Income & Expenditure","1CTRADSURDEF","Trading Account Surpluses & Deficits","REV","Revenue","R7207","Capital Team Staffing","04-SUPPLIES","Supplies And Services","04D","Printing, stationery and general office expenses","5710","Stationery","60389170","201908",31/10/2018 00:00:00,1.93,"74100","Storage Services","REDACTED DATA","OFFSITE ARCHIVE STORAGE & INTEGRATED SERVICES UK LTD (OASIS UK)","1910077","http://opencorporates.com/companies/gb/1910077","787113120"
"London Borough of Redbridge","http://opendatacommunities.org/doc/london-borough-council/redbridge","1BOTHEROPI&E","Other Operating Income & Expenditure","1CTRADSURDEF","Trading Account Surpluses & Deficits","REV","Revenue","R7207","Capital Team Staffing","04-SUPPLIES","Supplies And Services","04D","Printing, stationery and general office expenses","5710","Stationery","60389193","201908",31/10/2018 00:00:00,2.7,"74100","Storage Services","REDACTED DATA","OFFSITE ARCHIVE STORAGE & INTEGRATED SERVICES UK LTD (OASIS UK)","1910077","http://opencorporates.com/companies/gb/1910077","787113120"
"London Borough of Redbridge","http://opendatacommunities.org/doc/london-borough-council/redbridge","1BOTHEROPI&E","Other Operating Income & Expenditure","1CTRADSURDEF","Trading Account Surpluses & Deficits","REV","Revenue","R7207","Capital Team Staffing","04-SUPPLIES","Supplies And Services","04D","Printing, stationery and general office expenses","5710","Stationery","3530095","201908",06/10/2018 00:00:00,411.9,"53770","Office Stationery Supplies","REDACTED DATA","OFFICE DEPOT UK LTD (EX-GUILBERT UK)","2654682","http://opencorporates.com/companies/gb/2654682","673478594"
"London Borough of Redbridge","http://opendatacommunities.org/doc/london-borough-council/redbridge","1BOTHEROPI&E","Other Operating Income & Expenditure","1CTRADSURDEF","Trading Account Surpluses & Deficits","REV","Revenue","R7207","Capital Team Staffing","04-SUPPLIES","Supplies And Services","04F","Communications and computing","5852","Computer Equipment - Repairs & Maintenance","60390716","201908",30/11/2018 00:00:00,80,"20703","Computer Systems and Software","REDACTED DATA","ANFOLD SOFTWARE LTD","6784037","http://opencorporates.com/companies/gb/6784037","972830303"
"London Borough of Redbridge","http://opendatacommunities.org/doc/london-borough-council/redbridge","1BOTHEROPI&E","Other Operating Income & Expenditure","1CTRADSURDEF","Trading Account Surpluses & Deficits","REV","Revenue","R7207","Capital Team Staffing","04-SUPPLIES","Supplies And Services","04H","Grants and subscriptions","5956","Subscriptions","60389202","201908",12/11/2018 00:00:00,99,"64700","Research Organisations","REDACTED DATA","BUILDING RESEARCH ESTABLISHMENT LTD","3319324","http://opencorporates.com/companies/gb/3319324","689949927"
"London Borough of Redbridge","http://opendatacommunities.org/doc/london-borough-council/redbridge","1BOTHEROPI&E","Other Operating Income & Expenditure","1CTRADSURDEF","Trading Account Surpluses & Deficits","REV","Revenue","R7207","Capital Team Staffing","04-SUPPLIES","Supplies And Services","04H","Grants and subscriptions","5956","Subscriptions","60389203","201908",12/11/2018 00:00:00,250,"64700","Research Organisations","REDACTED DATA","BUILDING RESEARCH ESTABLISHMENT LTD","3319324","http://opencorporates.com/companies/gb/3319324","689949927"
"London Borough of Redbridge","http://opendatacommunities.org/doc/london-borough-council/redbridge","1BOTHEROPI&E","Other Operating Income & Expenditure","1CTRADSURDEF","Trading Account Surpluses & Deficits","REV","Revenue","R8514","Enablement programme","04-SUPPLIES","Supplies And Services","04K","Miscellaneous expenses","6280","Miscellaneous Expenditure","60388996","201908",25/10/2018 00:00:00,173.25,"20703","Computer Systems and Software","REDACTED DATA","CIVICA  UK LTD","1628868","http://opencorporates.com/companies/gb/1628868","391171065"
"London Borough of Redbridge","http://opendatacommunities.org/doc/london-borough-council/redbridge","1BOTHEROPI&E","Other Operating Income & Expenditure","1CTRADSURDEF","Trading Account Surpluses & Deficits","REV","Revenue","R9001","Customer Contact Centre","01-EMPLOYEES","Employees","01B","Indirect employee expenses","2403","External Training","60390362","201908",20/11/2018 00:00:00,650,"76510","Telecommunication Services","REDACTED DATA","MAINTEL EUROPE LIMITED","2665837","http://opencorporates.com/companies/gb/2665837","744336531"
"London Borough of Redbridge","http://opendatacommunities.org/doc/london-borough-council/redbridge","1BOTHEROPI&E","Other Operating Income & Expenditure","1CTRADSURDEF","Trading Account Surpluses & Deficits","REV","Revenue","R9001","Customer Contact Centre","04-SUPPLIES","Supplies And Services","04B","Catering","5602","Refreshments","80031626","201908",25/10/2018 00:00:00,48.92,"84070","Water Suppliers - Bottled","REDACTED DATA","EDEN SPRINGS (UK) LTD (NATURE SPRING)","4063744","http://opencorporates.com/companies/gb/4063744","232160411"
"London Borough of Redbridge","http://opendatacommunities.org/doc/london-borough-council/redbridge","1BOTHEROPI&E","Other Operating Income & Expenditure","1CTRADSURDEF","Trading Account Surpluses & Deficits","REV","Revenue","R9003","CLOSED - One Stop Shop","04-SUPPLIES","Supplies And Services","04D","Printing, stationery and general office expenses","5710","Stationery","3530095","201908",25/10/2018 00:00:00,17.1,"53770","Office Stationery Supplies","REDACTED DATA","OFFICE DEPOT UK LTD (EX-GUILBERT UK)","2654682","http://opencorporates.com/companies/gb/2654682","673478594"
"London Borough of Redbridge","http://opendatacommunities.org/doc/london-borough-council/redbridge","1BOTHEROPI&E","Other Operating Income & Expenditure","1CTRADSURDEF","Trading Account Surpluses & Deficits","REV","Revenue","R9003","CLOSED - One Stop Shop","04-SUPPLIES","Supplies And Services","04D","Printing, stationery and general office expenses","5710","Stationery","3530095","201908",25/10/2018 00:00:00,24.15,"53770","Office Stationery Supplies","REDACTED DATA","OFFICE DEPOT UK LTD (EX-GUILBERT UK)","2654682","http://opencorporates.com/companies/gb/2654682","673478594"
"London Borough of Redbridge","http://opendatacommunities.org/doc/london-borough-council/redbridge","1BOTHEROPI&E","Other Operating Income & Expenditure","1CTRADSURDEF","Trading Account Surpluses & Deficits","REV","Revenue","R9003","CLOSED - One Stop Shop","04-SUPPLIES","Supplies And Services","04D","Printing, stationery and general office expenses","5710","Stationery","3530095","201908",25/10/2018 00:00:00,19.35,"53770","Office Stationery Supplies","REDACTED DATA","OFFICE DEPOT UK LTD (EX-GUILBERT UK)","2654682","http://opencorporates.com/companies/gb/2654682","673478594"
"London Borough of Redbridge","http://opendatacommunities.org/doc/london-borough-council/redbridge","1BOTHEROPI&E","Other Operating Income & Expenditure","1CTRADSURDEF","Trading Account Surpluses & Deficits","REV","Revenue","R9148","Tree Holding Account","02-PREMISES","Premises","02I","Grounds maintenance costs","4753","Trees / Recreational","60390696","201908",16/11/2018 00:00:00,2997.5,"80228","Tree Work and Forestry Services","REDACTED DATA","DEAN TUCKER LTD","9178711","http://opencorporates.com/companies/gb/9178711","193245792"
"London Borough of Redbridge","http://opendatacommunities.org/doc/london-borough-council/redbridge","1BOTHEROPI&E","Other Operating Income & Expenditure","1CTRADSURDEF","Trading Account Surpluses & Deficits","REV","Revenue","R9148","Tree Holding Account","02-PREMISES","Premises","02I","Grounds maintenance costs","4753","Trees / Recreational","60390017","201908",18/11/2018 00:00:00,4924,"80228","Tree Work and Forestry Services","REDACTED DATA","KINGS LANDSCAPES","5411774","http://opencorporates.com/companies/gb/5411774","838472105"
"London Borough of Redbridge","http://opendatacommunities.org/doc/london-borough-council/redbridge","1BOTHEROPI&E","Other Operating Income & Expenditure","1CTRADSURDEF","Trading Account Surpluses & Deficits","REV","Revenue","R9148","Tree Holding Account","02-PREMISES","Premises","02I","Grounds maintenance costs","4753","Trees / Recreational","60389365","201908",13/11/2018 00:00:00,580,"80228","Tree Work and Forestry Services","REDACTED DATA","BECKER TREE CONTRACTS LIMITED","3668415","http://opencorporates.com/companies/gb/3668415","726078330"
"London Borough of Redbridge","http://opendatacommunities.org/doc/london-borough-council/redbridge","1BOTHEROPI&E","Other Operating Income & Expenditure","1CTRADSURDEF","Trading Account Surpluses & Deficits","REV","Revenue","R9148","Tree Holding Account","02-PREMISES","Premises","02I","Grounds maintenance costs","4753","Trees / Recreational","60389914","201908",20/11/2018 00:00:00,3310,"80228","Tree Work and Forestry Services","REDACTED DATA","BECKER TREE CONTRACTS LIMITED","3668415","http://opencorporates.com/companies/gb/3668415","726078330"
"London Borough of Redbridge","http://opendatacommunities.org/doc/london-borough-council/redbridge","1BOTHEROPI&E","Other Operating Income & Expenditure","1CTRADSURDEF","Trading Account Surpluses & Deficits","REV","Revenue","R9148","Tree Holding Account","02-PREMISES","Premises","02I","Grounds maintenance costs","4753","Trees / Recreational","60389364","201908",13/11/2018 00:00:00,880,"80228","Tree Work and Forestry Services","REDACTED DATA","BECKER TREE CONTRACTS LIMITED","3668415","http://opencorporates.com/companies/gb/3668415","726078330"
"London Borough of Redbridge","http://opendatacommunities.org/doc/london-borough-council/redbridge","1BOTHEROPI&E","Other Operating Income & Expenditure","1CTRADSURDEF","Trading Account Surpluses & Deficits","REV","Revenue","R9148","Tree Holding Account","02-PREMISES","Premises","02I","Grounds maintenance costs","4753","Trees / Recreational","60389713","201908",07/11/2018 00:00:00,240,"90043","Highway Maintenance","REDACTED DATA","S H GOSS & CO LTD","",,""
"London Borough of Redbridge","http://opendatacommunities.org/doc/london-borough-council/redbridge","1BOTHEROPI&E","Other Operating Income & Expenditure","1CTRADSURDEF","Trading Account Surpluses & Deficits","REV","Revenue","R9150","Bank Charges / Audit Fees","09-INCOME","Income","09B","Other Grants/Reimbursements and Contributions","8350","Prompt Payment Discount","70104833","201908",01/11/2018 00:00:00,5.99,"20703","Computer Systems and Software","REDACTED DATA","COMPUTER & DESIGN SERVICES LTD","1161218","http://opencorporates.com/companies/gb/1161218","187310657"
"London Borough of Redbridge","http://opendatacommunities.org/doc/london-borough-council/redbridge","1BOTHEROPI&E","Other Operating Income & Expenditure","1CTRADSURDEF","Trading Account Surpluses & Deficits","REV","Revenue","R9150","Bank Charges / Audit Fees","09-INCOME","Income","09B","Other Grants/Reimbursements and Contributions","8350","Prompt Payment Discount","70104663","201908",07/11/2018 00:00:00,15.48,"12100","Business and Management Consultants","REDACTED DATA","M3 HOUSING LTD","4966582","http://opencorporates.com/companies/gb/4966582","832980608"
"London Borough of Redbridge","http://opendatacommunities.org/doc/london-borough-council/redbridge","1BOTHEROPI&E","Other Operating Income & Expenditure","1CTRADSURDEF","Trading Account Surpluses & Deficits","REV","Revenue","R9152","Operational Accounting","04-SUPPLIES","Supplies And Services","04D","Printing, stationery and general office expenses","5710","Stationery","3530095","201908",18/10/2018 00:00:00,2.3,"53770","Office Stationery Supplies","REDACTED DATA","OFFICE DEPOT UK LTD (EX-GUILBERT UK)","2654682","http://opencorporates.com/companies/gb/2654682","673478594"
"London Borough of Redbridge","http://opendatacommunities.org/doc/london-borough-council/redbridge","1BOTHEROPI&E","Other Operating Income & Expenditure","1CTRADSURDEF","Trading Account Surpluses & Deficits","REV","Revenue","R9152","Operational Accounting","04-SUPPLIES","Supplies And Services","04D","Printing, stationery and general office expenses","5710","Stationery","3530095","201908",25/10/2018 00:00:00,9.3,"53770","Office Stationery Supplies","REDACTED DATA","OFFICE DEPOT UK LTD (EX-GUILBERT UK)","2654682","http://opencorporates.com/companies/gb/2654682","673478594"
"London Borough of Redbridge","http://opendatacommunities.org/doc/london-borough-council/redbridge","1BOTHEROPI&E","Other Operating Income & Expenditure","1CTRADSURDEF","Trading Account Surpluses & Deficits","REV","Revenue","R9152","Operational Accounting","04-SUPPLIES","Supplies And Services","04D","Printing, stationery and general office expenses","5710","Stationery","3530095","201908",18/10/2018 00:00:00,13.5,"53770","Office Stationery Supplies","REDACTED DATA","OFFICE DEPOT UK LTD (EX-GUILBERT UK)","2654682","http://opencorporates.com/companies/gb/2654682","673478594"
"London Borough of Redbridge","http://opendatacommunities.org/doc/london-borough-council/redbridge","1BOTHEROPI&E","Other Operating Income & Expenditure","1CTRADSURDEF","Trading Account Surpluses & Deficits","REV","Revenue","R9152","Operational Accounting","04-SUPPLIES","Supplies And Services","04E","Services","5759","Hire Of Venues","60389040","201908",17/09/2018 00:00:00,350,"64480","Religious Organisations","REDACTED DATA","CITYGATES CHURCH","",,""
"London Borough of Redbridge","http://opendatacommunities.org/doc/london-borough-council/redbridge","1BOTHEROPI&E","Other Operating Income & Expenditure","1CTRADSURDEF","Trading Account Surpluses & Deficits","REV","Revenue","R9152","Operational Accounting","04-SUPPLIES","Supplies And Services","04G","Expenses","5901","Conference Expenses","60390382","201908",21/11/2018 00:00:00,67.5,"64480","Religious Organisations","REDACTED DATA","CITYGATES CHURCH","",,""
"London Borough of Redbridge","http://opendatacommunities.org/doc/london-borough-council/redbridge","1BOTHEROPI&E","Other Operating Income & Expenditure","1CTRADSURDEF","Trading Account Surpluses & Deficits","REV","Revenue","R9152","Operational Accounting","04-SUPPLIES","Supplies And Services","04G","Expenses","5901","Conference Expenses","60390015","201908",20/11/2018 00:00:00,295,"45255","Institutes - Professional","REDACTED DATA","CIPFA BUSINESS LIMITED","2376684","http://opencorporates.com/companies/gb/2376684","627390725"
"London Borough of Redbridge","http://opendatacommunities.org/doc/london-borough-council/redbridge","1BOTHEROPI&E","Other Operating Income & Expenditure","1CTRADSURDEF","Trading Account Surpluses & Deficits","REV","Revenue","R9152","Operational Accounting","04-SUPPLIES","Supplies And Services","04H","Grants and subscriptions","5954","Professional Fees","60390444","201908",28/11/2018 00:00:00,1212,"35240","Financial Services","REDACTED DATA","LOCAL GOVERNMENT FUTURES LTD","5308266","http://opencorporates.com/companies/gb/5308266","855940493"
"London Borough of Redbridge","http://opendatacommunities.org/doc/london-borough-council/redbridge","1BOTHEROPI&E","Other Operating Income & Expenditure","1CTRADSURDEF","Trading Account Surpluses & Deficits","REV","Revenue","R9160","Strategic IT","01-EMPLOYEES","Employees","01B","Indirect employee expenses","2403","External Training","60388382","201908",02/11/2018 00:00:00,220,"64480","Religious Organisations","REDACTED DATA","CITYGATES CHURCH","",,""
"London Borough of Redbridge","http://opendatacommunities.org/doc/london-borough-council/redbridge","1BOTHEROPI&E","Other Operating Income & Expenditure","1CTRADSURDEF","Trading Account Surpluses & Deficits","REV","Revenue","R9252","IT Applications","04-SUPPLIES","Supplies And Services","04D","Printing, stationery and general office expenses","5703","Reprographics","60389234","201908",12/11/2018 00:00:00,-60,"57614","Photocopiers","REDACTED DATA","CANON UK LTD","1264300","http://opencorporates.com/companies/gb/1264300","523797128"
"London Borough of Redbridge","http://opendatacommunities.org/doc/london-borough-council/redbridge","1BOTHEROPI&E","Other Operating Income & Expenditure","1CTRADSURDEF","Trading Account Surpluses & Deficits","REV","Revenue","R9252","IT Applications","04-SUPPLIES","Supplies And Services","04D","Printing, stationery and general office expenses","5710","Stationery","60389694","201908",15/11/2018 00:00:00,5533.5,"20617","Computer Bureau and Facilities Management","REDACTED DATA","MIRRORSPHERE LTD","6388568","http://opencorporates.com/companies/gb/6388568","918941394"
"London Borough of Redbridge","http://opendatacommunities.org/doc/london-borough-council/redbridge","1BOTHEROPI&E","Other Operating Income & Expenditure","1CTRADSURDEF","Trading Account Surpluses & Deficits","REV","Revenue","R9252","IT Applications","04-SUPPLIES","Supplies And Services","04F","Communications and computing","5851","Computer Equipment - Purchases","60390601","201908",29/11/2018 00:00:00,485,"53400","Office Equipment Servicing and Maintenance","REDACTED DATA","UNITED TECHNOLOGIES UK LTD(UTL)","3805286","http://opencorporates.com/companies/gb/3805286","740173460"
"London Borough of Redbridge","http://opendatacommunities.org/doc/london-borough-council/redbridge","1BOTHEROPI&E","Other Operating Income & Expenditure","1CTRADSURDEF","Trading Account Surpluses & Deficits","REV","Revenue","R9252","IT Applications","04-SUPPLIES","Supplies And Services","04F","Communications and computing","5851","Computer Equipment - Purchases","60389830","201908",19/11/2018 00:00:00,150,"48586","Locksmiths","REDACTED DATA","MARTIN LOCK & SAFE","",,"248118853"
"London Borough of Redbridge","http://opendatacommunities.org/doc/london-borough-council/redbridge","1BOTHEROPI&E","Other Operating Income & Expenditure","1CTRADSURDEF","Trading Account Surpluses & Deficits","REV","Revenue","R9252","IT Applications","04-SUPPLIES","Supplies And Services","04F","Communications and computing","5851","Computer Equipment - Purchases","60390054","201908",21/11/2018 00:00:00,380,"20703","Computer Systems and Software","REDACTED DATA","STONE COMPUTERS","2658501","http://opencorporates.com/companies/gb/2658501","747878857"
"London Borough of Redbridge","http://opendatacommunities.org/doc/london-borough-council/redbridge","1BOTHEROPI&E","Other Operating Income & Expenditure","1CTRADSURDEF","Trading Account Surpluses & Deficits","REV","Revenue","R9252","IT Applications","04-SUPPLIES","Supplies And Services","04F","Communications and computing","5853","Computer Software","60389219","201908",12/11/2018 00:00:00,5160,"20703","Computer Systems and Software","REDACTED DATA","MHR INTERNATIONAL UK LIMITED","1852206","http://opencorporates.com/companies/gb/1852206","705850636"
"London Borough of Redbridge","http://opendatacommunities.org/doc/london-borough-council/redbridge","1BOTHEROPI&E","Other Operating Income & Expenditure","1CTRADSURDEF","Trading Account Surpluses & Deficits","REV","Revenue","R9252","IT Applications","04-SUPPLIES","Supplies And Services","04F","Communications and computing","5853","Computer Software","60390569","201908",28/11/2018 00:00:00,2750,"31230","Employment and Recruitment Agencies","REDACTED DATA","VENN GROUP","",,"766711704"
"London Borough of Redbridge","http://opendatacommunities.org/doc/london-borough-council/redbridge","1BOTHEROPI&E","Other Operating Income & Expenditure","1CTRADSURDEF","Trading Account Surpluses & Deficits","REV","Revenue","R9252","IT Applications","04-SUPPLIES","Supplies And Services","04F","Communications and computing","5853","Computer Software","60390022","201908",21/11/2018 00:00:00,23534.95,"20703","Computer Systems and Software","REDACTED DATA","PHOENIX SOFTWARE LTD","2548628","http://opencorporates.com/companies/gb/2548628","755349015"
"London Borough of Redbridge","http://opendatacommunities.org/doc/london-borough-council/redbridge","1BOTHEROPI&E","Other Operating Income & Expenditure","1CTRADSURDEF","Trading Account Surpluses & Deficits","REV","Revenue","R9252","IT Applications","04-SUPPLIES","Supplies And Services","04F","Communications and computing","5854","Exchange Line Rental","3530245","201908",01/10/2018 00:00:00,50.76,"76510","Telecommunication Services","REDACTED DATA","VIRGIN MEDIA PAYMENTS LTD(MAIN ACCT)","1785381","http://opencorporates.com/companies/gb/1785381","591819014"
"London Borough of Redbridge","http://opendatacommunities.org/doc/london-borough-council/redbridge","1BOTHEROPI&E","Other Operating Income & Expenditure","1CTRADSURDEF","Trading Account Surpluses & Deficits","REV","Revenue","R9252","IT Applications","04-SUPPLIES","Supplies And Services","04F","Communications and computing","5854","Exchange Line Rental","3530257","201908",26/09/2018 00:00:00,7,"76510","Telecommunication Services","REDACTED DATA","VIRGIN MEDIA PAYMENTS LTD(MAIN ACCT)","1785381","http://opencorporates.com/companies/gb/1785381","591819014"
"London Borough of Redbridge","http://opendatacommunities.org/doc/london-borough-council/redbridge","1BOTHEROPI&E","Other Operating Income & Expenditure","1CTRADSURDEF","Trading Account Surpluses & Deficits","REV","Revenue","R9252","IT Applications","04-SUPPLIES","Supplies And Services","04F","Communications and computing","5854","Exchange Line Rental","3530253","201908",26/09/2018 00:00:00,7,"76510","Telecommunication Services","REDACTED DATA","VIRGIN MEDIA PAYMENTS LTD(MAIN ACCT)","1785381","http://opencorporates.com/companies/gb/1785381","591819014"
"London Borough of Redbridge","http://opendatacommunities.org/doc/london-borough-council/redbridge","1BOTHEROPI&E","Other Operating Income & Expenditure","1CTRADSURDEF","Trading Account Surpluses & Deficits","REV","Revenue","R9252","IT Applications","04-SUPPLIES","Supplies And Services","04F","Communications and computing","5854","Exchange Line Rental","3530254","201908",26/09/2018 00:00:00,7,"76510","Telecommunication Services","REDACTED DATA","VIRGIN MEDIA PAYMENTS LTD(MAIN ACCT)","1785381","http://opencorporates.com/companies/gb/1785381","591819014"
"London Borough of Redbridge","http://opendatacommunities.org/doc/london-borough-council/redbridge","1BOTHEROPI&E","Other Operating Income & Expenditure","1CTRADSURDEF","Trading Account Surpluses & Deficits","REV","Revenue","R9252","IT Applications","04-SUPPLIES","Supplies And Services","04F","Communications and computing","5854","Exchange Line Rental","3530263","201908",26/09/2018 00:00:00,33,"76510","Telecommunication Services","REDACTED DATA","VIRGIN MEDIA PAYMENTS LTD(MAIN ACCT)","1785381","http://opencorporates.com/companies/gb/1785381","591819014"
"London Borough of Redbridge","http://opendatacommunities.org/doc/london-borough-council/redbridge","1BOTHEROPI&E","Other Operating Income & Expenditure","1CTRADSURDEF","Trading Account Surpluses & Deficits","REV","Revenue","R9252","IT Applications","04-SUPPLIES","Supplies And Services","04F","Communications and computing","5854","Exchange Line Rental","3530264","201908",26/09/2018 00:00:00,14.85,"76510","Telecommunication Services","REDACTED DATA","VIRGIN MEDIA PAYMENTS LTD(MAIN ACCT)","1785381","http://opencorporates.com/companies/gb/1785381","591819014"
"London Borough of Redbridge","http://opendatacommunities.org/doc/london-borough-council/redbridge","1BOTHEROPI&E","Other Operating Income & Expenditure","1CTRADSURDEF","Trading Account Surpluses & Deficits","REV","Revenue","R9252","IT Applications","04-SUPPLIES","Supplies And Services","04F","Communications and computing","5854","Exchange Line Rental","3530265","201908",26/09/2018 00:00:00,0,"76510","Telecommunication Services","REDACTED DATA","VIRGIN MEDIA PAYMENTS LTD(MAIN ACCT)","1785381","http://opencorporates.com/companies/gb/1785381","591819014"
"London Borough of Redbridge","http://opendatacommunities.org/doc/london-borough-council/redbridge","1BOTHEROPI&E","Other Operating Income & Expenditure","1CTRADSURDEF","Trading Account Surpluses & Deficits","REV","Revenue","R9252","IT Applications","04-SUPPLIES","Supplies And Services","04F","Communications and computing","5854","Exchange Line Rental","3530266","201908",26/09/2018 00:00:00,0,"76510","Telecommunication Services","REDACTED DATA","VIRGIN MEDIA PAYMENTS LTD(MAIN ACCT)","1785381","http://opencorporates.com/companies/gb/1785381","591819014"
"London Borough of Redbridge","http://opendatacommunities.org/doc/london-borough-council/redbridge","1BOTHEROPI&E","Other Operating Income & Expenditure","1CTRADSURDEF","Trading Account Surpluses & Deficits","REV","Revenue","R9252","IT Applications","04-SUPPLIES","Supplies And Services","04F","Communications and computing","5854","Exchange Line Rental","3530255","201908",26/09/2018 00:00:00,7,"76510","Telecommunication Services","REDACTED DATA","VIRGIN MEDIA PAYMENTS LTD(MAIN ACCT)","1785381","http://opencorporates.com/companies/gb/1785381","591819014"
"London Borough of Redbridge","http://opendatacommunities.org/doc/london-borough-council/redbridge","1BOTHEROPI&E","Other Operating Income & Expenditure","1CTRADSURDEF","Trading Account Surpluses & Deficits","REV","Revenue","R9252","IT Applications","04-SUPPLIES","Supplies And Services","04F","Communications and computing","5854","Exchange Line Rental","3530256","201908",26/09/2018 00:00:00,7,"76510","Telecommunication Services","REDACTED DATA","VIRGIN MEDIA PAYMENTS LTD(MAIN ACCT)","1785381","http://opencorporates.com/companies/gb/1785381","591819014"
"London Borough of Redbridge","http://opendatacommunities.org/doc/london-borough-council/redbridge","1BOTHEROPI&E","Other Operating Income & Expenditure","1CTRADSURDEF","Trading Account Surpluses & Deficits","REV","Revenue","R9252","IT Applications","04-SUPPLIES","Supplies And Services","04F","Communications and computing","5854","Exchange Line Rental","3530258","201908",26/09/2018 00:00:00,7,"76510","Telecommunication Services","REDACTED DATA","VIRGIN MEDIA PAYMENTS LTD(MAIN ACCT)","1785381","http://opencorporates.com/companies/gb/1785381","591819014"
"London Borough of Redbridge","http://opendatacommunities.org/doc/london-borough-council/redbridge","1BOTHEROPI&E","Other Operating Income & Expenditure","1CTRADSURDEF","Trading Account Surpluses & Deficits","REV","Revenue","R9252","IT Applications","04-SUPPLIES","Supplies And Services","04F","Communications and computing","5854","Exchange Line Rental","3530259","201908",26/09/2018 00:00:00,373.2,"76510","Telecommunication Services","REDACTED DATA","VIRGIN MEDIA PAYMENTS LTD(MAIN ACCT)","1785381","http://opencorporates.com/companies/gb/1785381","591819014"
"London Borough of Redbridge","http://opendatacommunities.org/doc/london-borough-council/redbridge","1BOTHEROPI&E","Other Operating Income & Expenditure","1CTRADSURDEF","Trading Account Surpluses & Deficits","REV","Revenue","R9252","IT Applications","04-SUPPLIES","Supplies And Services","04F","Communications and computing","5854","Exchange Line Rental","3530267","201908",26/09/2018 00:00:00,0,"76510","Telecommunication Services","REDACTED DATA","VIRGIN MEDIA PAYMENTS LTD(MAIN ACCT)","1785381","http://opencorporates.com/companies/gb/1785381","591819014"
"London Borough of Redbridge","http://opendatacommunities.org/doc/london-borough-council/redbridge","1BOTHEROPI&E","Other Operating Income & Expenditure","1CTRADSURDEF","Trading Account Surpluses & Deficits","REV","Revenue","R9252","IT Applications","04-SUPPLIES","Supplies And Services","04F","Communications and computing","5854","Exchange Line Rental","3530268","201908",26/09/2018 00:00:00,0,"76510","Telecommunication Services","REDACTED DATA","VIRGIN MEDIA PAYMENTS LTD(MAIN ACCT)","1785381","http://opencorporates.com/companies/gb/1785381","591819014"
"London Borough of Redbridge","http://opendatacommunities.org/doc/london-borough-council/redbridge","1BOTHEROPI&E","Other Operating Income & Expenditure","1CTRADSURDEF","Trading Account Surpluses & Deficits","REV","Revenue","R9252","IT Applications","04-SUPPLIES","Supplies And Services","04F","Communications and computing","5854","Exchange Line Rental","3530247","201908",01/10/2018 00:00:00,42.05,"76510","Telecommunication Services","REDACTED DATA","VIRGIN MEDIA PAYMENTS LTD(MAIN ACCT)","1785381","http://opencorporates.com/companies/gb/1785381","591819014"
"London Borough of Redbridge","http://opendatacommunities.org/doc/london-borough-council/redbridge","1BOTHEROPI&E","Other Operating Income & Expenditure","1CTRADSURDEF","Trading Account Surpluses & Deficits","REV","Revenue","R9252","IT Applications","04-SUPPLIES","Supplies And Services","04F","Communications and computing","5854","Exchange Line Rental","3530261","201908",26/09/2018 00:00:00,373.2,"76510","Telecommunication Services","REDACTED DATA","VIRGIN MEDIA PAYMENTS LTD(MAIN ACCT)","1785381","http://opencorporates.com/companies/gb/1785381","591819014"
"London Borough of Redbridge","http://opendatacommunities.org/doc/london-borough-council/redbridge","1BOTHEROPI&E","Other Operating Income & Expenditure","1CTRADSURDEF","Trading Account Surpluses & Deficits","REV","Revenue","R9252","IT Applications","04-SUPPLIES","Supplies And Services","04F","Communications and computing","5854","Exchange Line Rental","3530251","201908",26/09/2018 00:00:00,7,"76510","Telecommunication Services","REDACTED DATA","VIRGIN MEDIA PAYMENTS LTD(MAIN ACCT)","1785381","http://opencorporates.com/companies/gb/1785381","591819014"
"London Borough of Redbridge","http://opendatacommunities.org/doc/london-borough-council/redbridge","1BOTHEROPI&E","Other Operating Income & Expenditure","1CTRADSURDEF","Trading Account Surpluses & Deficits","REV","Revenue","R9252","IT Applications","04-SUPPLIES","Supplies And Services","04F","Communications and computing","5854","Exchange Line Rental","3530252","201908",26/09/2018 00:00:00,7,"76510","Telecommunication Services","REDACTED DATA","VIRGIN MEDIA PAYMENTS LTD(MAIN ACCT)","1785381","http://opencorporates.com/companies/gb/1785381","591819014"
"London Borough of Redbridge","http://opendatacommunities.org/doc/london-borough-council/redbridge","1BOTHEROPI&E","Other Operating Income & Expenditure","1CTRADSURDEF","Trading Account Surpluses & Deficits","REV","Revenue","R9252","IT Applications","04-SUPPLIES","Supplies And Services","04F","Communications and computing","5854","Exchange Line Rental","3530244","201908",01/10/2018 00:00:00,27.8,"76510","Telecommunication Services","REDACTED DATA","VIRGIN MEDIA PAYMENTS LTD(MAIN ACCT)","1785381","http://opencorporates.com/companies/gb/1785381","591819014"
"London Borough of Redbridge","http://opendatacommunities.org/doc/london-borough-council/redbridge","1BOTHEROPI&E","Other Operating Income & Expenditure","1CTRADSURDEF","Trading Account Surpluses & Deficits","REV","Revenue","R9252","IT Applications","04-SUPPLIES","Supplies And Services","04F","Communications and computing","5854","Exchange Line Rental","3531197","201908",25/10/2018 00:00:00,0.01,"76510","Telecommunication Services","REDACTED DATA","VIRGIN MEDIA PAYMENTS LTD(MAIN ACCT)","1785381","http://opencorporates.com/companies/gb/1785381","591819014"
"London Borough of Redbridge","http://opendatacommunities.org/doc/london-borough-council/redbridge","1BOTHEROPI&E","Other Operating Income & Expenditure","1CTRADSURDEF","Trading Account Surpluses & Deficits","REV","Revenue","R9252","IT Applications","04-SUPPLIES","Supplies And Services","04F","Communications and computing","5854","Exchange Line Rental","3531198","201908",25/10/2018 00:00:00,0,"76510","Telecommunication Services","REDACTED DATA","VIRGIN MEDIA PAYMENTS LTD(MAIN ACCT)","1785381","http://opencorporates.com/companies/gb/1785381","591819014"
"London Borough of Redbridge","http://opendatacommunities.org/doc/london-borough-council/redbridge","1BOTHEROPI&E","Other Operating Income & Expenditure","1CTRADSURDEF","Trading Account Surpluses & Deficits","REV","Revenue","R9252","IT Applications","04-SUPPLIES","Supplies And Services","04F","Communications and computing","5854","Exchange Line Rental","3531196","201908",25/10/2018 00:00:00,0,"76510","Telecommunication Services","REDACTED DATA","VIRGIN MEDIA PAYMENTS LTD(MAIN ACCT)","1785381","http://opencorporates.com/companies/gb/1785381","591819014"
"London Borough of Redbridge","http://opendatacommunities.org/doc/london-borough-council/redbridge","1BOTHEROPI&E","Other Operating Income & Expenditure","1CTRADSURDEF","Trading Account Surpluses & Deficits","REV","Revenue","R9252","IT Applications","04-SUPPLIES","Supplies And Services","04F","Communications and computing","5854","Exchange Line Rental","3531195","201908",25/10/2018 00:00:00,0,"76510","Telecommunication Services","REDACTED DATA","VIRGIN MEDIA PAYMENTS LTD(MAIN ACCT)","1785381","http://opencorporates.com/companies/gb/1785381","591819014"
"London Borough of Redbridge","http://opendatacommunities.org/doc/london-borough-council/redbridge","1BOTHEROPI&E","Other Operating Income & Expenditure","1CTRADSURDEF","Trading Account Surpluses & Deficits","REV","Revenue","R9252","IT Applications","04-SUPPLIES","Supplies And Services","04F","Communications and computing","5854","Exchange Line Rental","3531194","201908",25/10/2018 00:00:00,14.85,"76510","Telecommunication Services","REDACTED DATA","VIRGIN MEDIA PAYMENTS LTD(MAIN ACCT)","1785381","http://opencorporates.com/companies/gb/1785381","591819014"
"London Borough of Redbridge","http://opendatacommunities.org/doc/london-borough-council/redbridge","1BOTHEROPI&E","Other Operating Income & Expenditure","1CTRADSURDEF","Trading Account Surpluses & Deficits","REV","Revenue","R9252","IT Applications","04-SUPPLIES","Supplies And Services","04F","Communications and computing","5854","Exchange Line Rental","3531193","201908",25/10/2018 00:00:00,33,"76510","Telecommunication Services","REDACTED DATA","VIRGIN MEDIA PAYMENTS LTD(MAIN ACCT)","1785381","http://opencorporates.com/companies/gb/1785381","591819014"
"London Borough of Redbridge","http://opendatacommunities.org/doc/london-borough-council/redbridge","1BOTHEROPI&E","Other Operating Income & Expenditure","1CTRADSURDEF","Trading Account Surpluses & Deficits","REV","Revenue","R9252","IT Applications","04-SUPPLIES","Supplies And Services","04F","Communications and computing","5854","Exchange Line Rental","3531191","201908",25/10/2018 00:00:00,373.2,"76510","Telecommunication Services","REDACTED DATA","VIRGIN MEDIA PAYMENTS LTD(MAIN ACCT)","1785381","http://opencorporates.com/companies/gb/1785381","591819014"
"London Borough of Redbridge","http://opendatacommunities.org/doc/london-borough-council/redbridge","1BOTHEROPI&E","Other Operating Income & Expenditure","1CTRADSURDEF","Trading Account Surpluses & Deficits","REV","Revenue","R9252","IT Applications","04-SUPPLIES","Supplies And Services","04F","Communications and computing","5854","Exchange Line Rental","3531181","201908",25/10/2018 00:00:00,7,"76510","Telecommunication Services","REDACTED DATA","VIRGIN MEDIA PAYMENTS LTD(MAIN ACCT)","1785381","http://opencorporates.com/companies/gb/1785381","591819014"
"London Borough of Redbridge","http://opendatacommunities.org/doc/london-borough-council/redbridge","1BOTHEROPI&E","Other Operating Income & Expenditure","1CTRADSURDEF","Trading Account Surpluses & Deficits","REV","Revenue","R9252","IT Applications","04-SUPPLIES","Supplies And Services","04F","Communications and computing","5854","Exchange Line Rental","3531182","201908",25/10/2018 00:00:00,7,"76510","Telecommunication Services","REDACTED DATA","VIRGIN MEDIA PAYMENTS LTD(MAIN ACCT)","1785381","http://opencorporates.com/companies/gb/1785381","591819014"
"London Borough of Redbridge","http://opendatacommunities.org/doc/london-borough-council/redbridge","1BOTHEROPI&E","Other Operating Income & Expenditure","1CTRADSURDEF","Trading Account Surpluses & Deficits","REV","Revenue","R9252","IT Applications","04-SUPPLIES","Supplies And Services","04F","Communications and computing","5854","Exchange Line Rental","3531183","201908",25/10/2018 00:00:00,7,"76510","Telecommunication Services","REDACTED DATA","VIRGIN MEDIA PAYMENTS LTD(MAIN ACCT)","1785381","http://opencorporates.com/companies/gb/1785381","591819014"
"London Borough of Redbridge","http://opendatacommunities.org/doc/london-borough-council/redbridge","1BOTHEROPI&E","Other Operating Income & Expenditure","1CTRADSURDEF","Trading Account Surpluses & Deficits","REV","Revenue","R9252","IT Applications","04-SUPPLIES","Supplies And Services","04F","Communications and computing","5854","Exchange Line Rental","3531184","201908",25/10/2018 00:00:00,7,"76510","Telecommunication Services","REDACTED DATA","VIRGIN MEDIA PAYMENTS LTD(MAIN ACCT)","1785381","http://opencorporates.com/companies/gb/1785381","591819014"
"London Borough of Redbridge","http://opendatacommunities.org/doc/london-borough-council/redbridge","1BOTHEROPI&E","Other Operating Income & Expenditure","1CTRADSURDEF","Trading Account Surpluses & Deficits","REV","Revenue","R9252","IT Applications","04-SUPPLIES","Supplies And Services","04F","Communications and computing","5854","Exchange Line Rental","3531185","201908",25/10/2018 00:00:00,7,"76510","Telecommunication Services","REDACTED DATA","VIRGIN MEDIA PAYMENTS LTD(MAIN ACCT)","1785381","http://opencorporates.com/companies/gb/1785381","591819014"
"London Borough of Redbridge","http://opendatacommunities.org/doc/london-borough-council/redbridge","1BOTHEROPI&E","Other Operating Income & Expenditure","1CTRADSURDEF","Trading Account Surpluses & Deficits","REV","Revenue","R9252","IT Applications","04-SUPPLIES","Supplies And Services","04F","Communications and computing","5854","Exchange Line Rental","3531186","201908",25/10/2018 00:00:00,7,"76510","Telecommunication Services","REDACTED DATA","VIRGIN MEDIA PAYMENTS LTD(MAIN ACCT)","1785381","http://opencorporates.com/companies/gb/1785381","591819014"
"London Borough of Redbridge","http://opendatacommunities.org/doc/london-borough-council/redbridge","1BOTHEROPI&E","Other Operating Income & Expenditure","1CTRADSURDEF","Trading Account Surpluses & Deficits","REV","Revenue","R9252","IT Applications","04-SUPPLIES","Supplies And Services","04F","Communications and computing","5854","Exchange Line Rental","3531187","201908",25/10/2018 00:00:00,7,"76510","Telecommunication Services","REDACTED DATA","VIRGIN MEDIA PAYMENTS LTD(MAIN ACCT)","1785381","http://opencorporates.com/companies/gb/1785381","591819014"
"London Borough of Redbridge","http://opendatacommunities.org/doc/london-borough-council/redbridge","1BOTHEROPI&E","Other Operating Income & Expenditure","1CTRADSURDEF","Trading Account Surpluses & Deficits","REV","Revenue","R9252","IT Applications","04-SUPPLIES","Supplies And Services","04F","Communications and computing","5854","Exchange Line Rental","3531188","201908",25/10/2018 00:00:00,7,"76510","Telecommunication Services","REDACTED DATA","VIRGIN MEDIA PAYMENTS LTD(MAIN ACCT)","1785381","http://opencorporates.com/companies/gb/1785381","591819014"
"London Borough of Redbridge","http://opendatacommunities.org/doc/london-borough-council/redbridge","1BOTHEROPI&E","Other Operating Income & Expenditure","1CTRADSURDEF","Trading Account Surpluses & Deficits","REV","Revenue","R9252","IT Applications","04-SUPPLIES","Supplies And Services","04F","Communications and computing","5854","Exchange Line Rental","3531189","201908",25/10/2018 00:00:00,373.2,"76510","Telecommunication Services","REDACTED DATA","VIRGIN MEDIA PAYMENTS LTD(MAIN ACCT)","1785381","http://opencorporates.com/companies/gb/1785381","591819014"
"London Borough of Redbridge","http://opendatacommunities.org/doc/london-borough-council/redbridge","1BOTHEROPI&E","Other Operating Income & Expenditure","1CTRADSURDEF","Trading Account Surpluses & Deficits","REV","Revenue","R9252","IT Applications","04-SUPPLIES","Supplies And Services","04F","Communications and computing","5854","Exchange Line Rental","3531177","201908",01/11/2018 00:00:00,42.05,"76510","Telecommunication Services","REDACTED DATA","VIRGIN MEDIA PAYMENTS LTD(MAIN ACCT)","1785381","http://opencorporates.com/companies/gb/1785381","591819014"
"London Borough of Redbridge","http://opendatacommunities.org/doc/london-borough-council/redbridge","1BOTHEROPI&E","Other Operating Income & Expenditure","1CTRADSURDEF","Trading Account Surpluses & Deficits","REV","Revenue","R9252","IT Applications","04-SUPPLIES","Supplies And Services","04F","Communications and computing","5854","Exchange Line Rental","3531174","201908",01/11/2018 00:00:00,27.8,"76510","Telecommunication Services","REDACTED DATA","VIRGIN MEDIA PAYMENTS LTD(MAIN ACCT)","1785381","http://opencorporates.com/companies/gb/1785381","591819014"
"London Borough of Redbridge","http://opendatacommunities.org/doc/london-borough-council/redbridge","1BOTHEROPI&E","Other Operating Income & Expenditure","1CTRADSURDEF","Trading Account Surpluses & Deficits","REV","Revenue","R9252","IT Applications","04-SUPPLIES","Supplies And Services","04F","Communications and computing","5854","Exchange Line Rental","3531175","201908",01/11/2018 00:00:00,50.76,"76510","Telecommunication Services","REDACTED DATA","VIRGIN MEDIA PAYMENTS LTD(MAIN ACCT)","1785381","http://opencorporates.com/companies/gb/1785381","591819014"
"London Borough of Redbridge","http://opendatacommunities.org/doc/london-borough-council/redbridge","1BOTHEROPI&E","Other Operating Income & Expenditure","1CTRADSURDEF","Trading Account Surpluses & Deficits","REV","Revenue","R9252","IT Applications","04-SUPPLIES","Supplies And Services","04F","Communications and computing","5856","Leased Line Rentals","60389186","201908",12/11/2018 00:00:00,65412.48,"20617","Computer Bureau and Facilities Management","REDACTED DATA","INFRAMON LTD","5556896","http://opencorporates.com/companies/gb/5556896","869741959"
"London Borough of Redbridge","http://opendatacommunities.org/doc/london-borough-council/redbridge","1BOTHEROPI&E","Other Operating Income & Expenditure","1CTRADSURDEF","Trading Account Surpluses & Deficits","REV","Revenue","R9252","IT Applications","04-SUPPLIES","Supplies And Services","04K","Miscellaneous expenses","6259","Service Management Exp","60387302","201908",18/10/2018 00:00:00,430,"20703","Computer Systems and Software","REDACTED DATA","STONE COMPUTERS","2658501","http://opencorporates.com/companies/gb/2658501","747878857"
"London Borough of Redbridge","http://opendatacommunities.org/doc/london-borough-council/redbridge","1BOTHEROPI&E","Other Operating Income & Expenditure","1CTRADSURDEF","Trading Account Surpluses & Deficits","REV","Revenue","R9278","IT - Vision RCL Costs","04-SUPPLIES","Supplies And Services","04F","Communications and computing","5854","Exchange Line Rental","3531179","201908",01/11/2018 00:00:00,40,"76510","Telecommunication Services","REDACTED DATA","VIRGIN MEDIA PAYMENTS LTD(MAIN ACCT)","1785381","http://opencorporates.com/companies/gb/1785381","591819014"
"London Borough of Redbridge","http://opendatacommunities.org/doc/london-borough-council/redbridge","1BOTHEROPI&E","Other Operating Income & Expenditure","1CTRADSURDEF","Trading Account Surpluses & Deficits","REV","Revenue","R9278","IT - Vision RCL Costs","04-SUPPLIES","Supplies And Services","04F","Communications and computing","5854","Exchange Line Rental","3531171","201908",01/11/2018 00:00:00,43.35,"76510","Telecommunication Services","REDACTED DATA","VIRGIN MEDIA PAYMENTS LTD(MAIN ACCT)","1785381","http://opencorporates.com/companies/gb/1785381","591819014"
"London Borough of Redbridge","http://opendatacommunities.org/doc/london-borough-council/redbridge","1BOTHEROPI&E","Other Operating Income & Expenditure","1CTRADSURDEF","Trading Account Surpluses & Deficits","REV","Revenue","R9278","IT - Vision RCL Costs","04-SUPPLIES","Supplies And Services","04F","Communications and computing","5854","Exchange Line Rental","3530241","201908",01/10/2018 00:00:00,43.35,"76510","Telecommunication Services","REDACTED DATA","VIRGIN MEDIA PAYMENTS LTD(MAIN ACCT)","1785381","http://opencorporates.com/companies/gb/1785381","591819014"
"London Borough of Redbridge","http://opendatacommunities.org/doc/london-borough-council/redbridge","1BOTHEROPI&E","Other Operating Income & Expenditure","1CTRADSURDEF","Trading Account Surpluses & Deficits","REV","Revenue","R9278","IT - Vision RCL Costs","04-SUPPLIES","Supplies And Services","04F","Communications and computing","5854","Exchange Line Rental","3530249","201908",01/10/2018 00:00:00,40,"76510","Telecommunication Services","REDACTED DATA","VIRGIN MEDIA PAYMENTS LTD(MAIN ACCT)","1785381","http://opencorporates.com/companies/gb/1785381","591819014"
"London Borough of Redbridge","http://opendatacommunities.org/doc/london-borough-council/redbridge","1BOTHEROPI&E","Other Operating Income & Expenditure","1CTRADSURDEF","Trading Account Surpluses & Deficits","REV","Revenue","R9278","IT - Vision RCL Costs","04-SUPPLIES","Supplies And Services","04F","Communications and computing","5858","Phones","3531172","201908",01/11/2018 00:00:00,41.21,"76510","Telecommunication Services","REDACTED DATA","VIRGIN MEDIA PAYMENTS LTD(MAIN ACCT)","1785381","http://opencorporates.com/companies/gb/1785381","591819014"
"London Borough of Redbridge","http://opendatacommunities.org/doc/london-borough-council/redbridge","1BOTHEROPI&E","Other Operating Income & Expenditure","1CTRADSURDEF","Trading Account Surpluses & Deficits","REV","Revenue","R9278","IT - Vision RCL Costs","04-SUPPLIES","Supplies And Services","04F","Communications and computing","5858","Phones","3531166","201908",01/11/2018 00:00:00,25.08,"76510","Telecommunication Services","REDACTED DATA","VIRGIN MEDIA PAYMENTS LTD(MAIN ACCT)","1785381","http://opencorporates.com/companies/gb/1785381","591819014"
"London Borough of Redbridge","http://opendatacommunities.org/doc/london-borough-council/redbridge","1BOTHEROPI&E","Other Operating Income & Expenditure","1CTRADSURDEF","Trading Account Surpluses & Deficits","REV","Revenue","R9278","IT - Vision RCL Costs","04-SUPPLIES","Supplies And Services","04F","Communications and computing","5858","Phones","3530236","201908",01/10/2018 00:00:00,25.08,"76510","Telecommunication Services","REDACTED DATA","VIRGIN MEDIA PAYMENTS LTD(MAIN ACCT)","1785381","http://opencorporates.com/companies/gb/1785381","591819014"
"London Borough of Redbridge","http://opendatacommunities.org/doc/london-borough-council/redbridge","1BOTHEROPI&E","Other Operating Income & Expenditure","1CTRADSURDEF","Trading Account Surpluses & Deficits","REV","Revenue","R9278","IT - Vision RCL Costs","04-SUPPLIES","Supplies And Services","04F","Communications and computing","5858","Phones","3530242","201908",01/10/2018 00:00:00,41.21,"76510","Telecommunication Services","REDACTED DATA","VIRGIN MEDIA PAYMENTS LTD(MAIN ACCT)","1785381","http://opencorporates.com/companies/gb/1785381","591819014"
"London Borough of Redbridge","http://opendatacommunities.org/doc/london-borough-council/redbridge","1BOTHEROPI&E","Other Operating Income & Expenditure","1CTRADSURDEF","Trading Account Surpluses & Deficits","REV","Revenue","R9352","Legal Supplies & Services","04-SUPPLIES","Supplies And Services","04D","Printing, stationery and general office expenses","5710","Stationery","3530095","201908",27/10/2018 00:00:00,27.9,"53770","Office Stationery Supplies","REDACTED DATA","OFFICE DEPOT UK LTD (EX-GUILBERT UK)","2654682","http://opencorporates.com/companies/gb/2654682","673478594"
"London Borough of Redbridge","http://opendatacommunities.org/doc/london-borough-council/redbridge","1BOTHEROPI&E","Other Operating Income & Expenditure","1CTRADSURDEF","Trading Account Surpluses & Deficits","REV","Revenue","R9352","Legal Supplies & Services","04-SUPPLIES","Supplies And Services","04D","Printing, stationery and general office expenses","5710","Stationery","3530095","201908",18/10/2018 00:00:00,1.9,"53770","Office Stationery Supplies","REDACTED DATA","OFFICE DEPOT UK LTD (EX-GUILBERT UK)","2654682","http://opencorporates.com/companies/gb/2654682","673478594"
"London Borough of Redbridge","http://opendatacommunities.org/doc/london-borough-council/redbridge","1BOTHEROPI&E","Other Operating Income & Expenditure","1CTRADSURDEF","Trading Account Surpluses & Deficits","REV","Revenue","R9352","Legal Supplies & Services","04-SUPPLIES","Supplies And Services","04D","Printing, stationery and general office expenses","5710","Stationery","3530095","201908",18/10/2018 00:00:00,9,"53770","Office Stationery Supplies","REDACTED DATA","OFFICE DEPOT UK LTD (EX-GUILBERT UK)","2654682","http://opencorporates.com/companies/gb/2654682","673478594"
"London Borough of Redbridge","http://opendatacommunities.org/doc/london-borough-council/redbridge","1BOTHEROPI&E","Other Operating Income & Expenditure","1CTRADSURDEF","Trading Account Surpluses & Deficits","REV","Revenue","R9352","Legal Supplies & Services","04-SUPPLIES","Supplies And Services","04D","Printing, stationery and general office expenses","5710","Stationery","3530095","201908",18/10/2018 00:00:00,18.6,"53770","Office Stationery Supplies","REDACTED DATA","OFFICE DEPOT UK LTD (EX-GUILBERT UK)","2654682","http://opencorporates.com/companies/gb/2654682","673478594"
"London Borough of Redbridge","http://opendatacommunities.org/doc/london-borough-council/redbridge","1BOTHEROPI&E","Other Operating Income & Expenditure","1CTRADSURDEF","Trading Account Surpluses & Deficits","REV","Revenue","R9352","Legal Supplies & Services","04-SUPPLIES","Supplies And Services","04D","Printing, stationery and general office expenses","5710","Stationery","3530095","201908",05/10/2018 00:00:00,18.6,"53770","Office Stationery Supplies","REDACTED DATA","OFFICE DEPOT UK LTD (EX-GUILBERT UK)","2654682","http://opencorporates.com/companies/gb/2654682","673478594"
"London Borough of Redbridge","http://opendatacommunities.org/doc/london-borough-council/redbridge","1BOTHEROPI&E","Other Operating Income & Expenditure","1CTRADSURDEF","Trading Account Surpluses & Deficits","REV","Revenue","R9352","Legal Supplies & Services","04-SUPPLIES","Supplies And Services","04D","Printing, stationery and general office expenses","5710","Stationery","3530095","201908",05/10/2018 00:00:00,4.85,"53770","Office Stationery Supplies","REDACTED DATA","OFFICE DEPOT UK LTD (EX-GUILBERT UK)","2654682","http://opencorporates.com/companies/gb/2654682","673478594"
"London Borough of Redbridge","http://opendatacommunities.org/doc/london-borough-council/redbridge","1BOTHEROPI&E","Other Operating Income & Expenditure","1CTRADSURDEF","Trading Account Surpluses & Deficits","REV","Revenue","R9352","Legal Supplies & Services","04-SUPPLIES","Supplies And Services","04D","Printing, stationery and general office expenses","5710","Stationery","3530095","201908",04/10/2018 00:00:00,63.8,"53770","Office Stationery Supplies","REDACTED DATA","OFFICE DEPOT UK LTD (EX-GUILBERT UK)","2654682","http://opencorporates.com/companies/gb/2654682","673478594"
"London Borough of Redbridge","http://opendatacommunities.org/doc/london-borough-council/redbridge","1BOTHEROPI&E","Other Operating Income & Expenditure","1CTRADSURDEF","Trading Account Surpluses & Deficits","REV","Revenue","R9352","Legal Supplies & Services","04-SUPPLIES","Supplies And Services","04D","Printing, stationery and general office expenses","5710","Stationery","3530095","201908",04/10/2018 00:00:00,5.65,"53770","Office Stationery Supplies","REDACTED DATA","OFFICE DEPOT UK LTD (EX-GUILBERT UK)","2654682","http://opencorporates.com/companies/gb/2654682","673478594"
"London Borough of Redbridge","http://opendatacommunities.org/doc/london-borough-council/redbridge","1BOTHEROPI&E","Other Operating Income & Expenditure","1CTRADSURDEF","Trading Account Surpluses & Deficits","REV","Revenue","R9352","Legal Supplies & Services","04-SUPPLIES","Supplies And Services","04D","Printing, stationery and general office expenses","5710","Stationery","3530095","201908",04/10/2018 00:00:00,1.99,"53770","Office Stationery Supplies","REDACTED DATA","OFFICE DEPOT UK LTD (EX-GUILBERT UK)","2654682","http://opencorporates.com/companies/gb/2654682","673478594"
"London Borough of Redbridge","http://opendatacommunities.org/doc/london-borough-council/redbridge","1BOTHEROPI&E","Other Operating Income & Expenditure","1CTRADSURDEF","Trading Account Surpluses & Deficits","REV","Revenue","R9352","Legal Supplies & Services","04-SUPPLIES","Supplies And Services","04D","Printing, stationery and general office expenses","5710","Stationery","3530095","201908",31/10/2018 00:00:00,76.56,"53770","Office Stationery Supplies","REDACTED DATA","OFFICE DEPOT UK LTD (EX-GUILBERT UK)","2654682","http://opencorporates.com/companies/gb/2654682","673478594"
"London Borough of Redbridge","http://opendatacommunities.org/doc/london-borough-council/redbridge","1BOTHEROPI&E","Other Operating Income & Expenditure","1CTRADSURDEF","Trading Account Surpluses & Deficits","REV","Revenue","R9352","Legal Supplies & Services","04-SUPPLIES","Supplies And Services","04D","Printing, stationery and general office expenses","5710","Stationery","3530095","201908",24/10/2018 00:00:00,44.56,"53770","Office Stationery Supplies","REDACTED DATA","OFFICE DEPOT UK LTD (EX-GUILBERT UK)","2654682","http://opencorporates.com/companies/gb/2654682","673478594"
"London Borough of Redbridge","http://opendatacommunities.org/doc/london-borough-council/redbridge","1BOTHEROPI&E","Other Operating Income & Expenditure","1CTRADSURDEF","Trading Account Surpluses & Deficits","REV","Revenue","R9459","Pensions Team","04-SUPPLIES","Supplies And Services","04F","Communications and computing","5853","Computer Software","60389811","201908",17/11/2018 00:00:00,697.5,"20703","Computer Systems and Software","REDACTED DATA","ZOHO ORPORATION PVT LIMITED","U72900TN2010PTC075961","http://opencorporates.com/companies/gb/U72900TN2010PTC075961","33750845713"
"London Borough of Redbridge","http://opendatacommunities.org/doc/london-borough-council/redbridge","1BOTHEROPI&E","Other Operating Income & Expenditure","1CTRADSURDEF","Trading Account Surpluses & Deficits","REV","Revenue","R9460","Pay, Contracts & HRD","04-SUPPLIES","Supplies And Services","04F","Communications and computing","5853","Computer Software","60389811","201908",17/11/2018 00:00:00,697.5,"20703","Computer Systems and Software","REDACTED DATA","ZOHO ORPORATION PVT LIMITED","U72900TN2010PTC075961","http://opencorporates.com/companies/gb/U72900TN2010PTC075961","33750845713"
"London Borough of Redbridge","http://opendatacommunities.org/doc/london-borough-council/redbridge","1BOTHEROPI&E","Other Operating Income & Expenditure","1CTRADSURDEF","Trading Account Surpluses & Deficits","REV","Revenue","R9460","Pay, Contracts & HRD","04-SUPPLIES","Supplies And Services","04H","Grants and subscriptions","5954","Professional Fees","60390782","201908",30/11/2018 00:00:00,1019,"20703","Computer Systems and Software","REDACTED DATA","MHR INTERNATIONAL UK LIMITED","1852206","http://opencorporates.com/companies/gb/1852206","705850636"
"London Borough of Redbridge","http://opendatacommunities.org/doc/london-borough-council/redbridge","1BOTHEROPI&E","Other Operating Income & Expenditure","1CTRADSURDEF","Trading Account Surpluses & Deficits","REV","Revenue","R9462","HR Employee Experience","01-EMPLOYEES","Employees","01A","Direct employee expenses","4","Agency Staff - Pay","60389919","201908",20/11/2018 00:00:00,586.5,"53280","Nursing Agencies","REDACTED DATA","JUST RECRUIT GROUP LTD","7222010","http://opencorporates.com/companies/gb/7222010","998933630"
"London Borough of Redbridge","http://opendatacommunities.org/doc/london-borough-council/redbridge","1BOTHEROPI&E","Other Operating Income & Expenditure","1CTRADSURDEF","Trading Account Surpluses & Deficits","REV","Revenue","R9462","HR Employee Experience","01-EMPLOYEES","Employees","01A","Direct employee expenses","4","Agency Staff - Pay","60389709","201908",14/11/2018 00:00:00,586.5,"53280","Nursing Agencies","REDACTED DATA","JUST RECRUIT GROUP LTD","7222010","http://opencorporates.com/companies/gb/7222010","998933630"
"London Borough of Redbridge","http://opendatacommunities.org/doc/london-borough-council/redbridge","1BOTHEROPI&E","Other Operating Income & Expenditure","1CTRADSURDEF","Trading Account Surpluses & Deficits","REV","Revenue","R9462","HR Employee Experience","01-EMPLOYEES","Employees","01A","Direct employee expenses","4","Agency Staff - Pay","60390388","201908",27/11/2018 00:00:00,586.5,"53280","Nursing Agencies","REDACTED DATA","JUST RECRUIT GROUP LTD","7222010","http://opencorporates.com/companies/gb/7222010","998933630"
"London Borough of Redbridge","http://opendatacommunities.org/doc/london-borough-council/redbridge","1BOTHEROPI&E","Other Operating Income & Expenditure","1CTRADSURDEF","Trading Account Surpluses & Deficits","REV","Revenue","R9462","HR Employee Experience","04-SUPPLIES","Supplies And Services","04K","Miscellaneous expenses","6233","Licences","60389226","201908",13/11/2018 00:00:00,713,"24080","Database Services","REDACTED DATA","ATLANTIC DATA LTD","4085856","http://opencorporates.com/companies/gb/4085856","755878078"
"London Borough of Redbridge","http://opendatacommunities.org/doc/london-borough-council/redbridge","1BOTHEROPI&E","Other Operating Income & Expenditure","1CTRADSURDEF","Trading Account Surpluses & Deficits","REV","Revenue","R9551","CLM Maintenance","02-PREMISES","Premises","02A","Repairs, alteration and maintenance of buildings","3001","Major Works Programme","3531936","201908",09/11/2018 00:00:00,226.32,"11700","Burglar and Intruder Alarm Systems","REDACTED DATA","OPENVIEW SECURITY SOLUTIONS LTD","3376202","http://opencorporates.com/companies/gb/3376202","696815967"
"London Borough of Redbridge","http://opendatacommunities.org/doc/london-borough-council/redbridge","1BOTHEROPI&E","Other Operating Income & Expenditure","1CTRADSURDEF","Trading Account Surpluses & Deficits","REV","Revenue","R9551","CLM Maintenance","02-PREMISES","Premises","02A","Repairs, alteration and maintenance of buildings","3001","Major Works Programme","3532583","201908",18/11/2018 00:00:00,942.3,"16710","Central Heating - Installation and Servicing","REDACTED DATA","J R ASHWORTH PLMBING & HTG LTD","",,""
"London Borough of Redbridge","http://opendatacommunities.org/doc/london-borough-council/redbridge","1BOTHEROPI&E","Other Operating Income & Expenditure","1CTRADSURDEF","Trading Account Surpluses & Deficits","REV","Revenue","R9551","CLM Maintenance","02-PREMISES","Premises","02A","Repairs, alteration and maintenance of buildings","3016","General Premises Costs","60389593","201908",03/10/2018 00:00:00,56.63,"26625","Do It Yourself Wholesalers","REDACTED DATA","SCREWFIX DIRECT LIMITED T/A TRADE UK","3006378","http://opencorporates.com/companies/gb/3006378","232555575"
"London Borough of Redbridge","http://opendatacommunities.org/doc/london-borough-council/redbridge","1BOTHEROPI&E","Other Operating Income & Expenditure","1CTRADSURDEF","Trading Account Surpluses & Deficits","REV","Revenue","R9551","CLM Maintenance","02-PREMISES","Premises","02A","Repairs, alteration and maintenance of buildings","3016","General Premises Costs","60389594","201908",26/10/2018 00:00:00,44.95,"26625","Do It Yourself Wholesalers","REDACTED DATA","SCREWFIX DIRECT LIMITED T/A TRADE UK","3006378","http://opencorporates.com/companies/gb/3006378","232555575"
"London Borough of Redbridge","http://opendatacommunities.org/doc/london-borough-council/redbridge","1BOTHEROPI&E","Other Operating Income & Expenditure","1CTRADSURDEF","Trading Account Surpluses & Deficits","REV","Revenue","R9551","CLM Maintenance","02-PREMISES","Premises","02A","Repairs, alteration and maintenance of buildings","3016","General Premises Costs","3532525","201908",15/11/2018 00:00:00,-0.82,"2880","Air Conditioning Equipment and Systems","REDACTED DATA","EMS ENGINEERING MAINTENANCE SERVICES LIMITED","2002804","http://opencorporates.com/companies/gb/2002804","434851250"
"London Borough of Redbridge","http://opendatacommunities.org/doc/london-borough-council/redbridge","1BOTHEROPI&E","Other Operating Income & Expenditure","1CTRADSURDEF","Trading Account Surpluses & Deficits","REV","Revenue","R9551","CLM Maintenance","02-PREMISES","Premises","02A","Repairs, alteration and maintenance of buildings","3016","General Premises Costs","3532525","201908",15/11/2018 00:00:00,0,"2880","Air Conditioning Equipment and Systems","REDACTED DATA","EMS ENGINEERING MAINTENANCE SERVICES LIMITED","2002804","http://opencorporates.com/companies/gb/2002804","434851250"
"London Borough of Redbridge","http://opendatacommunities.org/doc/london-borough-council/redbridge","1BOTHEROPI&E","Other Operating Income & Expenditure","1CTRADSURDEF","Trading Account Surpluses & Deficits","REV","Revenue","R9551","CLM Maintenance","02-PREMISES","Premises","02A","Repairs, alteration and maintenance of buildings","3016","General Premises Costs","3532533","201908",12/11/2018 00:00:00,140,"30045","Electrical Engineers","REDACTED DATA","COUNTY ELECTRICAL SOLUTIONS LTD","6476990","http://opencorporates.com/companies/gb/6476990","924889474"
"London Borough of Redbridge","http://opendatacommunities.org/doc/london-borough-council/redbridge","1BOTHEROPI&E","Other Operating Income & Expenditure","1CTRADSURDEF","Trading Account Surpluses & Deficits","REV","Revenue","R9551","CLM Maintenance","02-PREMISES","Premises","02A","Repairs, alteration and maintenance of buildings","3016","General Premises Costs","3532533","201908",12/11/2018 00:00:00,85.55,"30045","Electrical Engineers","REDACTED DATA","COUNTY ELECTRICAL SOLUTIONS LTD","6476990","http://opencorporates.com/companies/gb/6476990","924889474"
"London Borough of Redbridge","http://opendatacommunities.org/doc/london-borough-council/redbridge","1BOTHEROPI&E","Other Operating Income & Expenditure","1CTRADSURDEF","Trading Account Surpluses & Deficits","REV","Revenue","R9551","CLM Maintenance","02-PREMISES","Premises","02A","Repairs, alteration and maintenance of buildings","3026","Minor Maintenance","3532534","201908",16/11/2018 00:00:00,0,"30580","Electricians and Electrical Contractors","REDACTED DATA","EVANS & SHEA LTD","9365711","http://opencorporates.com/companies/gb/9365711","212776513"
"London Borough of Redbridge","http://opendatacommunities.org/doc/london-borough-council/redbridge","1BOTHEROPI&E","Other Operating Income & Expenditure","1CTRADSURDEF","Trading Account Surpluses & Deficits","REV","Revenue","R9551","CLM Maintenance","02-PREMISES","Premises","02A","Repairs, alteration and maintenance of buildings","3026","Minor Maintenance","3532564","201908",09/11/2018 00:00:00,105,"16111","Catering Equipment","REDACTED DATA","J SCOTT & SONS  LTD","",,"354241082"
"London Borough of Redbridge","http://opendatacommunities.org/doc/london-borough-council/redbridge","1BOTHEROPI&E","Other Operating Income & Expenditure","1CTRADSURDEF","Trading Account Surpluses & Deficits","REV","Revenue","R9551","CLM Maintenance","02-PREMISES","Premises","02A","Repairs, alteration and maintenance of buildings","3026","Minor Maintenance","3532534","201908",16/11/2018 00:00:00,48,"30580","Electricians and Electrical Contractors","REDACTED DATA","EVANS & SHEA LTD","9365711","http://opencorporates.com/companies/gb/9365711","212776513"
"London Borough of Redbridge","http://opendatacommunities.org/doc/london-borough-council/redbridge","1BOTHEROPI&E","Other Operating Income & Expenditure","1CTRADSURDEF","Trading Account Surpluses & Deficits","REV","Revenue","R9551","CLM Maintenance","02-PREMISES","Premises","02A","Repairs, alteration and maintenance of buildings","3026","Minor Maintenance","3530163","201908",31/10/2018 00:00:00,0,"30580","Electricians and Electrical Contractors","REDACTED DATA","EVANS & SHEA LTD","9365711","http://opencorporates.com/companies/gb/9365711","212776513"
"London Borough of Redbridge","http://opendatacommunities.org/doc/london-borough-council/redbridge","1BOTHEROPI&E","Other Operating Income & Expenditure","1CTRADSURDEF","Trading Account Surpluses & Deficits","REV","Revenue","R9551","CLM Maintenance","02-PREMISES","Premises","02A","Repairs, alteration and maintenance of buildings","3026","Minor Maintenance","3530163","201908",31/10/2018 00:00:00,59,"30580","Electricians and Electrical Contractors","REDACTED DATA","EVANS & SHEA LTD","9365711","http://opencorporates.com/companies/gb/9365711","212776513"
"London Borough of Redbridge","http://opendatacommunities.org/doc/london-borough-council/redbridge","1BOTHEROPI&E","Other Operating Income & Expenditure","1CTRADSURDEF","Trading Account Surpluses & Deficits","REV","Revenue","R9551","CLM Maintenance","02-PREMISES","Premises","02A","Repairs, alteration and maintenance of buildings","3026","Minor Maintenance","3530128","201908",25/10/2018 00:00:00,180.5,"16111","Catering Equipment","REDACTED DATA","J SCOTT & SONS  LTD","",,"354241082"
"London Borough of Redbridge","http://opendatacommunities.org/doc/london-borough-council/redbridge","1BOTHEROPI&E","Other Operating Income & Expenditure","1CTRADSURDEF","Trading Account Surpluses & Deficits","REV","Revenue","R9551","CLM Maintenance","02-PREMISES","Premises","02A","Repairs, alteration and maintenance of buildings","3026","Minor Maintenance","3530182","201908",30/06/2018 00:00:00,112.5,"16111","Catering Equipment","REDACTED DATA","J SCOTT & SONS  LTD","",,"354241082"
"London Borough of Redbridge","http://opendatacommunities.org/doc/london-borough-council/redbridge","1BOTHEROPI&E","Other Operating Income & Expenditure","1CTRADSURDEF","Trading Account Surpluses & Deficits","REV","Revenue","R9551","CLM Maintenance","02-PREMISES","Premises","02A","Repairs, alteration and maintenance of buildings","3026","Minor Maintenance","3530125","201908",17/10/2018 00:00:00,181,"16111","Catering Equipment","REDACTED DATA","J SCOTT & SONS  LTD","",,"354241082"
"London Borough of Redbridge","http://opendatacommunities.org/doc/london-borough-council/redbridge","1BOTHEROPI&E","Other Operating Income & Expenditure","1CTRADSURDEF","Trading Account Surpluses & Deficits","REV","Revenue","R9551","CLM Maintenance","02-PREMISES","Premises","02A","Repairs, alteration and maintenance of buildings","3026","Minor Maintenance","3531938","201908",31/10/2018 00:00:00,68.72,"11040","Builders","REDACTED DATA","M & G CONSTRUCTION LTD.","1918880","http://opencorporates.com/companies/gb/1918880","406392853"
"London Borough of Redbridge","http://opendatacommunities.org/doc/london-borough-council/redbridge","1BOTHEROPI&E","Other Operating Income & Expenditure","1CTRADSURDEF","Trading Account Surpluses & Deficits","REV","Revenue","R9551","CLM Maintenance","02-PREMISES","Premises","02A","Repairs, alteration and maintenance of buildings","3026","Minor Maintenance","3532574","201908",20/11/2018 00:00:00,422.15,"16111","Catering Equipment","REDACTED DATA","J SCOTT & SONS  LTD","",,"354241082"
"London Borough of Redbridge","http://opendatacommunities.org/doc/london-borough-council/redbridge","1BOTHEROPI&E","Other Operating Income & Expenditure","1CTRADSURDEF","Trading Account Surpluses & Deficits","REV","Revenue","R9551","CLM Maintenance","02-PREMISES","Premises","02A","Repairs, alteration and maintenance of buildings","3026","Minor Maintenance","3532575","201908",02/11/2018 00:00:00,72,"35290","Fire Alarm Systems","REDACTED DATA","MULTI-ALARM SYSTEMS (GB) LTD","1020755","http://opencorporates.com/companies/gb/1020755","358056637"
"London Borough of Redbridge","http://opendatacommunities.org/doc/london-borough-council/redbridge","1BOTHEROPI&E","Other Operating Income & Expenditure","1CTRADSURDEF","Trading Account Surpluses & Deficits","REV","Revenue","R9551","CLM Maintenance","02-PREMISES","Premises","02A","Repairs, alteration and maintenance of buildings","3026","Minor Maintenance","3532512","201908",31/10/2018 00:00:00,99,"35290","Fire Alarm Systems","REDACTED DATA","MULTI-ALARM SYSTEMS (GB) LTD","1020755","http://opencorporates.com/companies/gb/1020755","358056637"
"London Borough of Redbridge","http://opendatacommunities.org/doc/london-borough-council/redbridge","1BOTHEROPI&E","Other Operating Income & Expenditure","1CTRADSURDEF","Trading Account Surpluses & Deficits","REV","Revenue","R9551","CLM Maintenance","02-PREMISES","Premises","02A","Repairs, alteration and maintenance of buildings","3026","Minor Maintenance","3532572","201908",02/11/2018 00:00:00,72,"35290","Fire Alarm Systems","REDACTED DATA","MULTI-ALARM SYSTEMS (GB) LTD","1020755","http://opencorporates.com/companies/gb/1020755","358056637"
"London Borough of Redbridge","http://opendatacommunities.org/doc/london-borough-council/redbridge","1BOTHEROPI&E","Other Operating Income & Expenditure","1CTRADSURDEF","Trading Account Surpluses & Deficits","REV","Revenue","R9551","CLM Maintenance","02-PREMISES","Premises","02A","Repairs, alteration and maintenance of buildings","3026","Minor Maintenance","3532569","201908",15/11/2018 00:00:00,225,"40470","Glaziers","REDACTED DATA","ADVANCED WOODFORD GLAZING COMPANY","5866306","http://opencorporates.com/companies/gb/5866306","906069231"
"London Borough of Redbridge","http://opendatacommunities.org/doc/london-borough-council/redbridge","1BOTHEROPI&E","Other Operating Income & Expenditure","1CTRADSURDEF","Trading Account Surpluses & Deficits","REV","Revenue","R9551","CLM Maintenance","02-PREMISES","Premises","02A","Repairs, alteration and maintenance of buildings","3026","Minor Maintenance","3532576","201908",09/11/2018 00:00:00,191.1,"35290","Fire Alarm Systems","REDACTED DATA","MULTI-ALARM SYSTEMS (GB) LTD","1020755","http://opencorporates.com/companies/gb/1020755","358056637"
"London Borough of Redbridge","http://opendatacommunities.org/doc/london-borough-council/redbridge","1BOTHEROPI&E","Other Operating Income & Expenditure","1CTRADSURDEF","Trading Account Surpluses & Deficits","REV","Revenue","R9551","CLM Maintenance","02-PREMISES","Premises","02A","Repairs, alteration and maintenance of buildings","3026","Minor Maintenance","3532587","201908",13/11/2018 00:00:00,310,"65470","Roofing Services","REDACTED DATA","CENTRO ROOFING LIMITED","1634189","http://opencorporates.com/companies/gb/1634189","374751921"
"London Borough of Redbridge","http://opendatacommunities.org/doc/london-borough-council/redbridge","1BOTHEROPI&E","Other Operating Income & Expenditure","1CTRADSURDEF","Trading Account Surpluses & Deficits","REV","Revenue","R9551","CLM Maintenance","02-PREMISES","Premises","02A","Repairs, alteration and maintenance of buildings","3026","Minor Maintenance","3531944","201908",09/11/2018 00:00:00,240.17,"32489","Environmental Engineers","REDACTED DATA","PHOENIX PRODUCT DEVELOPMENT LTD T/AS PROPELAIR","3681995","http://opencorporates.com/companies/gb/3681995","726586992"
"London Borough of Redbridge","http://opendatacommunities.org/doc/london-borough-council/redbridge","1BOTHEROPI&E","Other Operating Income & Expenditure","1CTRADSURDEF","Trading Account Surpluses & Deficits","REV","Revenue","R9551","CLM Maintenance","02-PREMISES","Premises","02A","Repairs, alteration and maintenance of buildings","3026","Minor Maintenance","3531967","201908",12/11/2018 00:00:00,58.91,"30250","Electrical Heating Equipment and Systems","REDACTED DATA","OAKRAY LTD","1458147","http://opencorporates.com/companies/gb/1458147","327787712"
"London Borough of Redbridge","http://opendatacommunities.org/doc/london-borough-council/redbridge","1BOTHEROPI&E","Other Operating Income & Expenditure","1CTRADSURDEF","Trading Account Surpluses & Deficits","REV","Revenue","R9551","CLM Maintenance","02-PREMISES","Premises","02A","Repairs, alteration and maintenance of buildings","3026","Minor Maintenance","3531965","201908",12/11/2018 00:00:00,84.15,"30250","Electrical Heating Equipment and Systems","REDACTED DATA","OAKRAY LTD","1458147","http://opencorporates.com/companies/gb/1458147","327787712"
"London Borough of Redbridge","http://opendatacommunities.org/doc/london-borough-council/redbridge","1BOTHEROPI&E","Other Operating Income & Expenditure","1CTRADSURDEF","Trading Account Surpluses & Deficits","REV","Revenue","R9551","CLM Maintenance","02-PREMISES","Premises","02A","Repairs, alteration and maintenance of buildings","3026","Minor Maintenance","3532589","201908",23/11/2018 00:00:00,2176.29,"35290","Fire Alarm Systems","REDACTED DATA","MULTI-ALARM SYSTEMS (GB) LTD","1020755","http://opencorporates.com/companies/gb/1020755","358056637"
"London Borough of Redbridge","http://opendatacommunities.org/doc/london-borough-council/redbridge","1BOTHEROPI&E","Other Operating Income & Expenditure","1CTRADSURDEF","Trading Account Surpluses & Deficits","REV","Revenue","R9551","CLM Maintenance","02-PREMISES","Premises","02A","Repairs, alteration and maintenance of buildings","3026","Minor Maintenance","3532598","201908",26/11/2018 00:00:00,72,"35290","Fire Alarm Systems","REDACTED DATA","MULTI-ALARM SYSTEMS (GB) LTD","1020755","http://opencorporates.com/companies/gb/1020755","358056637"
"London Borough of Redbridge","http://opendatacommunities.org/doc/london-borough-council/redbridge","1BOTHEROPI&E","Other Operating Income & Expenditure","1CTRADSURDEF","Trading Account Surpluses & Deficits","REV","Revenue","R9551","CLM Maintenance","02-PREMISES","Premises","02A","Repairs, alteration and maintenance of buildings","3026","Minor Maintenance","3532518","201908",11/11/2018 00:00:00,110,"46040","Joinery Manufacturers","REDACTED DATA","DRS DOORS LTD","9608644","http://opencorporates.com/companies/gb/9608644","164467489"
"London Borough of Redbridge","http://opendatacommunities.org/doc/london-borough-council/redbridge","1BOTHEROPI&E","Other Operating Income & Expenditure","1CTRADSURDEF","Trading Account Surpluses & Deficits","REV","Revenue","R9551","CLM Maintenance","02-PREMISES","Premises","02A","Repairs, alteration and maintenance of buildings","3026","Minor Maintenance","3532535","201908",16/11/2018 00:00:00,0,"30580","Electricians and Electrical Contractors","REDACTED DATA","EVANS & SHEA LTD","9365711","http://opencorporates.com/companies/gb/9365711","212776513"
"London Borough of Redbridge","http://opendatacommunities.org/doc/london-borough-council/redbridge","1BOTHEROPI&E","Other Operating Income & Expenditure","1CTRADSURDEF","Trading Account Surpluses & Deficits","REV","Revenue","R9551","CLM Maintenance","02-PREMISES","Premises","02A","Repairs, alteration and maintenance of buildings","3026","Minor Maintenance","3532535","201908",16/11/2018 00:00:00,48,"30580","Electricians and Electrical Contractors","REDACTED DATA","EVANS & SHEA LTD","9365711","http://opencorporates.com/companies/gb/9365711","212776513"
"London Borough of Redbridge","http://opendatacommunities.org/doc/london-borough-council/redbridge","1BOTHEROPI&E","Other Operating Income & Expenditure","1CTRADSURDEF","Trading Account Surpluses & Deficits","REV","Revenue","R9551","CLM Maintenance","02-PREMISES","Premises","02A","Repairs, alteration and maintenance of buildings","3026","Minor Maintenance","3531915","201908",11/10/2018 00:00:00,80,"50275","Mechanical Engineers","REDACTED DATA","SJP MECHANICAL SERVICES LTD","1495029221","http://opencorporates.com/companies/gb/1495029221",""
"London Borough of Redbridge","http://opendatacommunities.org/doc/london-borough-council/redbridge","1BOTHEROPI&E","Other Operating Income & Expenditure","1CTRADSURDEF","Trading Account Surpluses & Deficits","REV","Revenue","R9551","CLM Maintenance","02-PREMISES","Premises","02A","Repairs, alteration and maintenance of buildings","3026","Minor Maintenance","3532565","201908",09/11/2018 00:00:00,90,"16111","Catering Equipment","REDACTED DATA","J SCOTT & SONS  LTD","",,"354241082"
"London Borough of Redbridge","http://opendatacommunities.org/doc/london-borough-council/redbridge","1BOTHEROPI&E","Other Operating Income & Expenditure","1CTRADSURDEF","Trading Account Surpluses & Deficits","REV","Revenue","R9551","CLM Maintenance","02-PREMISES","Premises","02A","Repairs, alteration and maintenance of buildings","3026","Minor Maintenance","3531915","201908",11/10/2018 00:00:00,0,"50275","Mechanical Engineers","REDACTED DATA","SJP MECHANICAL SERVICES LTD","1495029221","http://opencorporates.com/companies/gb/1495029221",""
"London Borough of Redbridge","http://opendatacommunities.org/doc/london-borough-council/redbridge","1BOTHEROPI&E","Other Operating Income & Expenditure","1CTRADSURDEF","Trading Account Surpluses & Deficits","REV","Revenue","R9551","CLM Maintenance","02-PREMISES","Premises","02A","Repairs, alteration and maintenance of buildings","3026","Minor Maintenance","3531924","201908",08/11/2018 00:00:00,180,"50275","Mechanical Engineers","REDACTED DATA","SJP MECHANICAL SERVICES LTD","1495029221","http://opencorporates.com/companies/gb/1495029221",""
"London Borough of Redbridge","http://opendatacommunities.org/doc/london-borough-council/redbridge","1BOTHEROPI&E","Other Operating Income & Expenditure","1CTRADSURDEF","Trading Account Surpluses & Deficits","REV","Revenue","R9551","CLM Maintenance","02-PREMISES","Premises","02A","Repairs, alteration and maintenance of buildings","3026","Minor Maintenance","3531924","201908",08/11/2018 00:00:00,0,"50275","Mechanical Engineers","REDACTED DATA","SJP MECHANICAL SERVICES LTD","1495029221","http://opencorporates.com/companies/gb/1495029221",""
"London Borough of Redbridge","http://opendatacommunities.org/doc/london-borough-council/redbridge","1BOTHEROPI&E","Other Operating Income & Expenditure","1CTRADSURDEF","Trading Account Surpluses & Deficits","REV","Revenue","R9551","CLM Maintenance","02-PREMISES","Premises","02A","Repairs, alteration and maintenance of buildings","3026","Minor Maintenance","3532518","201908",11/11/2018 00:00:00,0,"46040","Joinery Manufacturers","REDACTED DATA","DRS DOORS LTD","9608644","http://opencorporates.com/companies/gb/9608644","164467489"
"London Borough of Redbridge","http://opendatacommunities.org/doc/london-borough-council/redbridge","1BOTHEROPI&E","Other Operating Income & Expenditure","1CTRADSURDEF","Trading Account Surpluses & Deficits","REV","Revenue","R9551","CLM Maintenance","02-PREMISES","Premises","02A","Repairs, alteration and maintenance of buildings","3026","Minor Maintenance","3532570","201908",19/11/2018 00:00:00,275,"46040","Joinery Manufacturers","REDACTED DATA","DRS DOORS LTD","9608644","http://opencorporates.com/companies/gb/9608644","164467489"
"London Borough of Redbridge","http://opendatacommunities.org/doc/london-borough-council/redbridge","1BOTHEROPI&E","Other Operating Income & Expenditure","1CTRADSURDEF","Trading Account Surpluses & Deficits","REV","Revenue","R9551","CLM Maintenance","02-PREMISES","Premises","02A","Repairs, alteration and maintenance of buildings","3026","Minor Maintenance","3532570","201908",19/11/2018 00:00:00,150,"46040","Joinery Manufacturers","REDACTED DATA","DRS DOORS LTD","9608644","http://opencorporates.com/companies/gb/9608644","164467489"
"London Borough of Redbridge","http://opendatacommunities.org/doc/london-borough-council/redbridge","1BOTHEROPI&E","Other Operating Income & Expenditure","1CTRADSURDEF","Trading Account Surpluses & Deficits","REV","Revenue","R9551","CLM Maintenance","02-PREMISES","Premises","02A","Repairs, alteration and maintenance of buildings","3026","Minor Maintenance","3532568","201908",15/11/2018 00:00:00,110,"46040","Joinery Manufacturers","REDACTED DATA","DRS DOORS LTD","9608644","http://opencorporates.com/companies/gb/9608644","164467489"
"London Borough of Redbridge","http://opendatacommunities.org/doc/london-borough-council/redbridge","1BOTHEROPI&E","Other Operating Income & Expenditure","1CTRADSURDEF","Trading Account Surpluses & Deficits","REV","Revenue","R9551","CLM Maintenance","02-PREMISES","Premises","02A","Repairs, alteration and maintenance of buildings","3026","Minor Maintenance","3532568","201908",15/11/2018 00:00:00,0,"46040","Joinery Manufacturers","REDACTED DATA","DRS DOORS LTD","9608644","http://opencorporates.com/companies/gb/9608644","164467489"
"London Borough of Redbridge","http://opendatacommunities.org/doc/london-borough-council/redbridge","1BOTHEROPI&E","Other Operating Income & Expenditure","1CTRADSURDEF","Trading Account Surpluses & Deficits","REV","Revenue","R9551","CLM Maintenance","02-PREMISES","Premises","02A","Repairs, alteration and maintenance of buildings","3026","Minor Maintenance","3530133","201908",28/03/2017 00:00:00,36.62,"11700","Burglar and Intruder Alarm Systems","REDACTED DATA","OPENVIEW SECURITY SOLUTIONS LTD","3376202","http://opencorporates.com/companies/gb/3376202","696815967"
"London Borough of Redbridge","http://opendatacommunities.org/doc/london-borough-council/redbridge","1BOTHEROPI&E","Other Operating Income & Expenditure","1CTRADSURDEF","Trading Account Surpluses & Deficits","REV","Revenue","R9551","CLM Maintenance","02-PREMISES","Premises","02A","Repairs, alteration and maintenance of buildings","3026","Minor Maintenance","3530134","201908",28/03/2017 00:00:00,18.31,"11700","Burglar and Intruder Alarm Systems","REDACTED DATA","OPENVIEW SECURITY SOLUTIONS LTD","3376202","http://opencorporates.com/companies/gb/3376202","696815967"
"London Borough of Redbridge","http://opendatacommunities.org/doc/london-borough-council/redbridge","1BOTHEROPI&E","Other Operating Income & Expenditure","1CTRADSURDEF","Trading Account Surpluses & Deficits","REV","Revenue","R9551","CLM Maintenance","02-PREMISES","Premises","02A","Repairs, alteration and maintenance of buildings","3026","Minor Maintenance","3530146","201908",28/03/2017 00:00:00,103.03,"11700","Burglar and Intruder Alarm Systems","REDACTED DATA","OPENVIEW SECURITY SOLUTIONS LTD","3376202","http://opencorporates.com/companies/gb/3376202","696815967"
"London Borough of Redbridge","http://opendatacommunities.org/doc/london-borough-council/redbridge","1BOTHEROPI&E","Other Operating Income & Expenditure","1CTRADSURDEF","Trading Account Surpluses & Deficits","REV","Revenue","R9551","CLM Maintenance","02-PREMISES","Premises","02A","Repairs, alteration and maintenance of buildings","3026","Minor Maintenance","3530165","201908",28/03/2017 00:00:00,36.62,"11700","Burglar and Intruder Alarm Systems","REDACTED DATA","OPENVIEW SECURITY SOLUTIONS LTD","3376202","http://opencorporates.com/companies/gb/3376202","696815967"
"London Borough of Redbridge","http://opendatacommunities.org/doc/london-borough-council/redbridge","1BOTHEROPI&E","Other Operating Income & Expenditure","1CTRADSURDEF","Trading Account Surpluses & Deficits","REV","Revenue","R9551","CLM Maintenance","02-PREMISES","Premises","02A","Repairs, alteration and maintenance of buildings","3026","Minor Maintenance","3530154","201908",28/03/2017 00:00:00,36.62,"11700","Burglar and Intruder Alarm Systems","REDACTED DATA","OPENVIEW SECURITY SOLUTIONS LTD","3376202","http://opencorporates.com/companies/gb/3376202","696815967"
"London Borough of Redbridge","http://opendatacommunities.org/doc/london-borough-council/redbridge","1BOTHEROPI&E","Other Operating Income & Expenditure","1CTRADSURDEF","Trading Account Surpluses & Deficits","REV","Revenue","R9551","CLM Maintenance","02-PREMISES","Premises","02A","Repairs, alteration and maintenance of buildings","3026","Minor Maintenance","3530155","201908",28/03/2017 00:00:00,18.31,"11700","Burglar and Intruder Alarm Systems","REDACTED DATA","OPENVIEW SECURITY SOLUTIONS LTD","3376202","http://opencorporates.com/companies/gb/3376202","696815967"
"London Borough of Redbridge","http://opendatacommunities.org/doc/london-borough-council/redbridge","1BOTHEROPI&E","Other Operating Income & Expenditure","1CTRADSURDEF","Trading Account Surpluses & Deficits","REV","Revenue","R9551","CLM Maintenance","02-PREMISES","Premises","02A","Repairs, alteration and maintenance of buildings","3026","Minor Maintenance","3530156","201908",28/03/2017 00:00:00,18.31,"11700","Burglar and Intruder Alarm Systems","REDACTED DATA","OPENVIEW SECURITY SOLUTIONS LTD","3376202","http://opencorporates.com/companies/gb/3376202","696815967"
"London Borough of Redbridge","http://opendatacommunities.org/doc/london-borough-council/redbridge","1BOTHEROPI&E","Other Operating Income & Expenditure","1CTRADSURDEF","Trading Account Surpluses & Deficits","REV","Revenue","R9551","CLM Maintenance","02-PREMISES","Premises","02A","Repairs, alteration and maintenance of buildings","3026","Minor Maintenance","3530157","201908",28/03/2017 00:00:00,18.31,"11700","Burglar and Intruder Alarm Systems","REDACTED DATA","OPENVIEW SECURITY SOLUTIONS LTD","3376202","http://opencorporates.com/companies/gb/3376202","696815967"
"London Borough of Redbridge","http://opendatacommunities.org/doc/london-borough-council/redbridge","1BOTHEROPI&E","Other Operating Income & Expenditure","1CTRADSURDEF","Trading Account Surpluses & Deficits","REV","Revenue","R9551","CLM Maintenance","02-PREMISES","Premises","02A","Repairs, alteration and maintenance of buildings","3026","Minor Maintenance","3530152","201908",28/03/2017 00:00:00,27.47,"11700","Burglar and Intruder Alarm Systems","REDACTED DATA","OPENVIEW SECURITY SOLUTIONS LTD","3376202","http://opencorporates.com/companies/gb/3376202","696815967"
"London Borough of Redbridge","http://opendatacommunities.org/doc/london-borough-council/redbridge","1BOTHEROPI&E","Other Operating Income & Expenditure","1CTRADSURDEF","Trading Account Surpluses & Deficits","REV","Revenue","R9551","CLM Maintenance","02-PREMISES","Premises","02A","Repairs, alteration and maintenance of buildings","3026","Minor Maintenance","3530153","201908",28/03/2017 00:00:00,18.31,"11700","Burglar and Intruder Alarm Systems","REDACTED DATA","OPENVIEW SECURITY SOLUTIONS LTD","3376202","http://opencorporates.com/companies/gb/3376202","696815967"
"London Borough of Redbridge","http://opendatacommunities.org/doc/london-borough-council/redbridge","1BOTHEROPI&E","Other Operating Income & Expenditure","1CTRADSURDEF","Trading Account Surpluses & Deficits","REV","Revenue","R9551","CLM Maintenance","02-PREMISES","Premises","02A","Repairs, alteration and maintenance of buildings","3026","Minor Maintenance","3530166","201908",28/03/2017 00:00:00,36.62,"11700","Burglar and Intruder Alarm Systems","REDACTED DATA","OPENVIEW SECURITY SOLUTIONS LTD","3376202","http://opencorporates.com/companies/gb/3376202","696815967"
"London Borough of Redbridge","http://opendatacommunities.org/doc/london-borough-council/redbridge","1BOTHEROPI&E","Other Operating Income & Expenditure","1CTRADSURDEF","Trading Account Surpluses & Deficits","REV","Revenue","R9551","CLM Maintenance","02-PREMISES","Premises","02A","Repairs, alteration and maintenance of buildings","3026","Minor Maintenance","3530144","201908",28/03/2017 00:00:00,36.62,"11700","Burglar and Intruder Alarm Systems","REDACTED DATA","OPENVIEW SECURITY SOLUTIONS LTD","3376202","http://opencorporates.com/companies/gb/3376202","696815967"
"London Borough of Redbridge","http://opendatacommunities.org/doc/london-borough-council/redbridge","1BOTHEROPI&E","Other Operating Income & Expenditure","1CTRADSURDEF","Trading Account Surpluses & Deficits","REV","Revenue","R9551","CLM Maintenance","02-PREMISES","Premises","02A","Repairs, alteration and maintenance of buildings","3026","Minor Maintenance","3530145","201908",28/03/2017 00:00:00,109.86,"11700","Burglar and Intruder Alarm Systems","REDACTED DATA","OPENVIEW SECURITY SOLUTIONS LTD","3376202","http://opencorporates.com/companies/gb/3376202","696815967"
"London Borough of Redbridge","http://opendatacommunities.org/doc/london-borough-council/redbridge","1BOTHEROPI&E","Other Operating Income & Expenditure","1CTRADSURDEF","Trading Account Surpluses & Deficits","REV","Revenue","R9551","CLM Maintenance","02-PREMISES","Premises","02A","Repairs, alteration and maintenance of buildings","3026","Minor Maintenance","3530149","201908",28/03/2017 00:00:00,18.31,"11700","Burglar and Intruder Alarm Systems","REDACTED DATA","OPENVIEW SECURITY SOLUTIONS LTD","3376202","http://opencorporates.com/companies/gb/3376202","696815967"
"London Borough of Redbridge","http://opendatacommunities.org/doc/london-borough-council/redbridge","1BOTHEROPI&E","Other Operating Income & Expenditure","1CTRADSURDEF","Trading Account Surpluses & Deficits","REV","Revenue","R9551","CLM Maintenance","02-PREMISES","Premises","02A","Repairs, alteration and maintenance of buildings","3026","Minor Maintenance","3530150","201908",28/03/2017 00:00:00,18.31,"11700","Burglar and Intruder Alarm Systems","REDACTED DATA","OPENVIEW SECURITY SOLUTIONS LTD","3376202","http://opencorporates.com/companies/gb/3376202","696815967"
"London Borough of Redbridge","http://opendatacommunities.org/doc/london-borough-council/redbridge","1BOTHEROPI&E","Other Operating Income & Expenditure","1CTRADSURDEF","Trading Account Surpluses & Deficits","REV","Revenue","R9551","CLM Maintenance","02-PREMISES","Premises","02A","Repairs, alteration and maintenance of buildings","3026","Minor Maintenance","3530176","201908",03/11/2018 00:00:00,285,"2950","Air Conditioning and Refrigeration Contractors","REDACTED DATA","NIXON & FARROW","4159118","http://opencorporates.com/companies/gb/4159118","683409123"
"London Borough of Redbridge","http://opendatacommunities.org/doc/london-borough-council/redbridge","1BOTHEROPI&E","Other Operating Income & Expenditure","1CTRADSURDEF","Trading Account Surpluses & Deficits","REV","Revenue","R9551","CLM Maintenance","02-PREMISES","Premises","02A","Repairs, alteration and maintenance of buildings","3026","Minor Maintenance","3530129","201908",01/11/2018 00:00:00,37.72,"11700","Burglar and Intruder Alarm Systems","REDACTED DATA","OPENVIEW SECURITY SOLUTIONS LTD","3376202","http://opencorporates.com/companies/gb/3376202","696815967"
"London Borough of Redbridge","http://opendatacommunities.org/doc/london-borough-council/redbridge","1BOTHEROPI&E","Other Operating Income & Expenditure","1CTRADSURDEF","Trading Account Surpluses & Deficits","REV","Revenue","R9551","CLM Maintenance","02-PREMISES","Premises","02A","Repairs, alteration and maintenance of buildings","3026","Minor Maintenance","3530130","201908",01/11/2018 00:00:00,205,"2950","Air Conditioning and Refrigeration Contractors","REDACTED DATA","NIXON & FARROW","4159118","http://opencorporates.com/companies/gb/4159118","683409123"
"London Borough of Redbridge","http://opendatacommunities.org/doc/london-borough-council/redbridge","1BOTHEROPI&E","Other Operating Income & Expenditure","1CTRADSURDEF","Trading Account Surpluses & Deficits","REV","Revenue","R9551","CLM Maintenance","02-PREMISES","Premises","02A","Repairs, alteration and maintenance of buildings","3026","Minor Maintenance","3530169","201908",28/03/2017 00:00:00,46.58,"11700","Burglar and Intruder Alarm Systems","REDACTED DATA","OPENVIEW SECURITY SOLUTIONS LTD","3376202","http://opencorporates.com/companies/gb/3376202","696815967"
"London Borough of Redbridge","http://opendatacommunities.org/doc/london-borough-council/redbridge","1BOTHEROPI&E","Other Operating Income & Expenditure","1CTRADSURDEF","Trading Account Surpluses & Deficits","REV","Revenue","R9551","CLM Maintenance","02-PREMISES","Premises","02A","Repairs, alteration and maintenance of buildings","3026","Minor Maintenance","3530171","201908",28/03/2017 00:00:00,78.87,"11700","Burglar and Intruder Alarm Systems","REDACTED DATA","OPENVIEW SECURITY SOLUTIONS LTD","3376202","http://opencorporates.com/companies/gb/3376202","696815967"
"London Borough of Redbridge","http://opendatacommunities.org/doc/london-borough-council/redbridge","1BOTHEROPI&E","Other Operating Income & Expenditure","1CTRADSURDEF","Trading Account Surpluses & Deficits","REV","Revenue","R9551","CLM Maintenance","02-PREMISES","Premises","02A","Repairs, alteration and maintenance of buildings","3026","Minor Maintenance","3530142","201908",28/03/2017 00:00:00,36.62,"11700","Burglar and Intruder Alarm Systems","REDACTED DATA","OPENVIEW SECURITY SOLUTIONS LTD","3376202","http://opencorporates.com/companies/gb/3376202","696815967"
"London Borough of Redbridge","http://opendatacommunities.org/doc/london-borough-council/redbridge","1BOTHEROPI&E","Other Operating Income & Expenditure","1CTRADSURDEF","Trading Account Surpluses & Deficits","REV","Revenue","R9551","CLM Maintenance","02-PREMISES","Premises","02A","Repairs, alteration and maintenance of buildings","3026","Minor Maintenance","3530143","201908",28/03/2017 00:00:00,74.51,"11700","Burglar and Intruder Alarm Systems","REDACTED DATA","OPENVIEW SECURITY SOLUTIONS LTD","3376202","http://opencorporates.com/companies/gb/3376202","696815967"
"London Borough of Redbridge","http://opendatacommunities.org/doc/london-borough-council/redbridge","1BOTHEROPI&E","Other Operating Income & Expenditure","1CTRADSURDEF","Trading Account Surpluses & Deficits","REV","Revenue","R9551","CLM Maintenance","02-PREMISES","Premises","02A","Repairs, alteration and maintenance of buildings","3026","Minor Maintenance","3530136","201908",28/03/2017 00:00:00,36.62,"11700","Burglar and Intruder Alarm Systems","REDACTED DATA","OPENVIEW SECURITY SOLUTIONS LTD","3376202","http://opencorporates.com/companies/gb/3376202","696815967"
"London Borough of Redbridge","http://opendatacommunities.org/doc/london-borough-council/redbridge","1BOTHEROPI&E","Other Operating Income & Expenditure","1CTRADSURDEF","Trading Account Surpluses & Deficits","REV","Revenue","R9551","CLM Maintenance","02-PREMISES","Premises","02A","Repairs, alteration and maintenance of buildings","3026","Minor Maintenance","3530137","201908",28/03/2017 00:00:00,27.47,"11700","Burglar and Intruder Alarm Systems","REDACTED DATA","OPENVIEW SECURITY SOLUTIONS LTD","3376202","http://opencorporates.com/companies/gb/3376202","696815967"
"London Borough of Redbridge","http://opendatacommunities.org/doc/london-borough-council/redbridge","1BOTHEROPI&E","Other Operating Income & Expenditure","1CTRADSURDEF","Trading Account Surpluses & Deficits","REV","Revenue","R9551","CLM Maintenance","02-PREMISES","Premises","02A","Repairs, alteration and maintenance of buildings","3026","Minor Maintenance","3530138","201908",28/03/2017 00:00:00,352.54,"11700","Burglar and Intruder Alarm Systems","REDACTED DATA","OPENVIEW SECURITY SOLUTIONS LTD","3376202","http://opencorporates.com/companies/gb/3376202","696815967"
"London Borough of Redbridge","http://opendatacommunities.org/doc/london-borough-council/redbridge","1BOTHEROPI&E","Other Operating Income & Expenditure","1CTRADSURDEF","Trading Account Surpluses & Deficits","REV","Revenue","R9551","CLM Maintenance","02-PREMISES","Premises","02A","Repairs, alteration and maintenance of buildings","3026","Minor Maintenance","3530158","201908",28/03/2017 00:00:00,317.99,"11700","Burglar and Intruder Alarm Systems","REDACTED DATA","OPENVIEW SECURITY SOLUTIONS LTD","3376202","http://opencorporates.com/companies/gb/3376202","696815967"
"London Borough of Redbridge","http://opendatacommunities.org/doc/london-borough-council/redbridge","1BOTHEROPI&E","Other Operating Income & Expenditure","1CTRADSURDEF","Trading Account Surpluses & Deficits","REV","Revenue","R9551","CLM Maintenance","02-PREMISES","Premises","02A","Repairs, alteration and maintenance of buildings","3026","Minor Maintenance","3530159","201908",28/03/2017 00:00:00,9.16,"11700","Burglar and Intruder Alarm Systems","REDACTED DATA","OPENVIEW SECURITY SOLUTIONS LTD","3376202","http://opencorporates.com/companies/gb/3376202","696815967"
"London Borough of Redbridge","http://opendatacommunities.org/doc/london-borough-council/redbridge","1BOTHEROPI&E","Other Operating Income & Expenditure","1CTRADSURDEF","Trading Account Surpluses & Deficits","REV","Revenue","R9551","CLM Maintenance","02-PREMISES","Premises","02A","Repairs, alteration and maintenance of buildings","3026","Minor Maintenance","3530161","201908",28/03/2017 00:00:00,18.31,"11700","Burglar and Intruder Alarm Systems","REDACTED DATA","OPENVIEW SECURITY SOLUTIONS LTD","3376202","http://opencorporates.com/companies/gb/3376202","696815967"
"London Borough of Redbridge","http://opendatacommunities.org/doc/london-borough-council/redbridge","1BOTHEROPI&E","Other Operating Income & Expenditure","1CTRADSURDEF","Trading Account Surpluses & Deficits","REV","Revenue","R9551","CLM Maintenance","02-PREMISES","Premises","02A","Repairs, alteration and maintenance of buildings","3026","Minor Maintenance","3530162","201908",28/03/2017 00:00:00,18.31,"11700","Burglar and Intruder Alarm Systems","REDACTED DATA","OPENVIEW SECURITY SOLUTIONS LTD","3376202","http://opencorporates.com/companies/gb/3376202","696815967"
"London Borough of Redbridge","http://opendatacommunities.org/doc/london-borough-council/redbridge","1BOTHEROPI&E","Other Operating Income & Expenditure","1CTRADSURDEF","Trading Account Surpluses & Deficits","REV","Revenue","R9551","CLM Maintenance","02-PREMISES","Premises","02A","Repairs, alteration and maintenance of buildings","3026","Minor Maintenance","3530167","201908",28/03/2017 00:00:00,45.78,"11700","Burglar and Intruder Alarm Systems","REDACTED DATA","OPENVIEW SECURITY SOLUTIONS LTD","3376202","http://opencorporates.com/companies/gb/3376202","696815967"
"London Borough of Redbridge","http://opendatacommunities.org/doc/london-borough-council/redbridge","1BOTHEROPI&E","Other Operating Income & Expenditure","1CTRADSURDEF","Trading Account Surpluses & Deficits","REV","Revenue","R9551","CLM Maintenance","02-PREMISES","Premises","02A","Repairs, alteration and maintenance of buildings","3026","Minor Maintenance","3530168","201908",28/03/2017 00:00:00,120.28,"11700","Burglar and Intruder Alarm Systems","REDACTED DATA","OPENVIEW SECURITY SOLUTIONS LTD","3376202","http://opencorporates.com/companies/gb/3376202","696815967"
"London Borough of Redbridge","http://opendatacommunities.org/doc/london-borough-council/redbridge","1BOTHEROPI&E","Other Operating Income & Expenditure","1CTRADSURDEF","Trading Account Surpluses & Deficits","REV","Revenue","R9551","CLM Maintenance","02-PREMISES","Premises","02A","Repairs, alteration and maintenance of buildings","3026","Minor Maintenance","3530147","201908",28/03/2017 00:00:00,54.93,"11700","Burglar and Intruder Alarm Systems","REDACTED DATA","OPENVIEW SECURITY SOLUTIONS LTD","3376202","http://opencorporates.com/companies/gb/3376202","696815967"
"London Borough of Redbridge","http://opendatacommunities.org/doc/london-borough-council/redbridge","1BOTHEROPI&E","Other Operating Income & Expenditure","1CTRADSURDEF","Trading Account Surpluses & Deficits","REV","Revenue","R9551","CLM Maintenance","02-PREMISES","Premises","02A","Repairs, alteration and maintenance of buildings","3026","Minor Maintenance","3530172","201908",28/03/2017 00:00:00,64.09,"11700","Burglar and Intruder Alarm Systems","REDACTED DATA","OPENVIEW SECURITY SOLUTIONS LTD","3376202","http://opencorporates.com/companies/gb/3376202","696815967"
"London Borough of Redbridge","http://opendatacommunities.org/doc/london-borough-council/redbridge","1BOTHEROPI&E","Other Operating Income & Expenditure","1CTRADSURDEF","Trading Account Surpluses & Deficits","REV","Revenue","R9551","CLM Maintenance","02-PREMISES","Premises","02A","Repairs, alteration and maintenance of buildings","3026","Minor Maintenance","3532511","201908",13/11/2018 00:00:00,37.72,"11700","Burglar and Intruder Alarm Systems","REDACTED DATA","OPENVIEW SECURITY SOLUTIONS LTD","3376202","http://opencorporates.com/companies/gb/3376202","696815967"
"London Borough of Redbridge","http://opendatacommunities.org/doc/london-borough-council/redbridge","1BOTHEROPI&E","Other Operating Income & Expenditure","1CTRADSURDEF","Trading Account Surpluses & Deficits","REV","Revenue","R9551","CLM Maintenance","02-PREMISES","Premises","02A","Repairs, alteration and maintenance of buildings","3026","Minor Maintenance","3532514","201908",14/11/2018 00:00:00,134.48,"11700","Burglar and Intruder Alarm Systems","REDACTED DATA","OPENVIEW SECURITY SOLUTIONS LTD","3376202","http://opencorporates.com/companies/gb/3376202","696815967"
"London Borough of Redbridge","http://opendatacommunities.org/doc/london-borough-council/redbridge","1BOTHEROPI&E","Other Operating Income & Expenditure","1CTRADSURDEF","Trading Account Surpluses & Deficits","REV","Revenue","R9551","CLM Maintenance","02-PREMISES","Premises","02A","Repairs, alteration and maintenance of buildings","3026","Minor Maintenance","3532513","201908",14/11/2018 00:00:00,37.72,"11700","Burglar and Intruder Alarm Systems","REDACTED DATA","OPENVIEW SECURITY SOLUTIONS LTD","3376202","http://opencorporates.com/companies/gb/3376202","696815967"
"London Borough of Redbridge","http://opendatacommunities.org/doc/london-borough-council/redbridge","1BOTHEROPI&E","Other Operating Income & Expenditure","1CTRADSURDEF","Trading Account Surpluses & Deficits","REV","Revenue","R9551","CLM Maintenance","02-PREMISES","Premises","02A","Repairs, alteration and maintenance of buildings","3026","Minor Maintenance","3532563","201908",19/11/2018 00:00:00,85,"27660","Drain and Sewer Clearance","REDACTED DATA","DRAIN AID LTD","3500245","http://opencorporates.com/companies/gb/3500245","710447956"
"London Borough of Redbridge","http://opendatacommunities.org/doc/london-borough-council/redbridge","1BOTHEROPI&E","Other Operating Income & Expenditure","1CTRADSURDEF","Trading Account Surpluses & Deficits","REV","Revenue","R9551","CLM Maintenance","02-PREMISES","Premises","02A","Repairs, alteration and maintenance of buildings","3026","Minor Maintenance","3531948","201908",09/11/2018 00:00:00,377.2,"11700","Burglar and Intruder Alarm Systems","REDACTED DATA","OPENVIEW SECURITY SOLUTIONS LTD","3376202","http://opencorporates.com/companies/gb/3376202","696815967"
"London Borough of Redbridge","http://opendatacommunities.org/doc/london-borough-council/redbridge","1BOTHEROPI&E","Other Operating Income & Expenditure","1CTRADSURDEF","Trading Account Surpluses & Deficits","REV","Revenue","R9551","CLM Maintenance","02-PREMISES","Premises","02A","Repairs, alteration and maintenance of buildings","3026","Minor Maintenance","3531949","201908",09/11/2018 00:00:00,37.72,"11700","Burglar and Intruder Alarm Systems","REDACTED DATA","OPENVIEW SECURITY SOLUTIONS LTD","3376202","http://opencorporates.com/companies/gb/3376202","696815967"
"London Borough of Redbridge","http://opendatacommunities.org/doc/london-borough-council/redbridge","1BOTHEROPI&E","Other Operating Income & Expenditure","1CTRADSURDEF","Trading Account Surpluses & Deficits","REV","Revenue","R9551","CLM Maintenance","02-PREMISES","Premises","02A","Repairs, alteration and maintenance of buildings","3026","Minor Maintenance","3531926","201908",08/11/2018 00:00:00,85,"27660","Drain and Sewer Clearance","REDACTED DATA","DRAIN AID LTD","3500245","http://opencorporates.com/companies/gb/3500245","710447956"
"London Borough of Redbridge","http://opendatacommunities.org/doc/london-borough-council/redbridge","1BOTHEROPI&E","Other Operating Income & Expenditure","1CTRADSURDEF","Trading Account Surpluses & Deficits","REV","Revenue","R9551","CLM Maintenance","02-PREMISES","Premises","02A","Repairs, alteration and maintenance of buildings","3026","Minor Maintenance","3531927","201908",08/11/2018 00:00:00,37.72,"11700","Burglar and Intruder Alarm Systems","REDACTED DATA","OPENVIEW SECURITY SOLUTIONS LTD","3376202","http://opencorporates.com/companies/gb/3376202","696815967"
"London Borough of Redbridge","http://opendatacommunities.org/doc/london-borough-council/redbridge","1BOTHEROPI&E","Other Operating Income & Expenditure","1CTRADSURDEF","Trading Account Surpluses & Deficits","REV","Revenue","R9551","CLM Maintenance","02-PREMISES","Premises","02A","Repairs, alteration and maintenance of buildings","3026","Minor Maintenance","3531955","201908",12/11/2018 00:00:00,37.72,"11700","Burglar and Intruder Alarm Systems","REDACTED DATA","OPENVIEW SECURITY SOLUTIONS LTD","3376202","http://opencorporates.com/companies/gb/3376202","696815967"
"London Borough of Redbridge","http://opendatacommunities.org/doc/london-borough-council/redbridge","1BOTHEROPI&E","Other Operating Income & Expenditure","1CTRADSURDEF","Trading Account Surpluses & Deficits","REV","Revenue","R9551","CLM Maintenance","02-PREMISES","Premises","02A","Repairs, alteration and maintenance of buildings","3026","Minor Maintenance","3532591","201908",26/11/2018 00:00:00,85,"27660","Drain and Sewer Clearance","REDACTED DATA","DRAIN AID LTD","3500245","http://opencorporates.com/companies/gb/3500245","710447956"
"London Borough of Redbridge","http://opendatacommunities.org/doc/london-borough-council/redbridge","1BOTHEROPI&E","Other Operating Income & Expenditure","1CTRADSURDEF","Trading Account Surpluses & Deficits","REV","Revenue","R9551","CLM Maintenance","02-PREMISES","Premises","02A","Repairs, alteration and maintenance of buildings","3026","Minor Maintenance","3532529","201908",15/11/2018 00:00:00,37.72,"11700","Burglar and Intruder Alarm Systems","REDACTED DATA","OPENVIEW SECURITY SOLUTIONS LTD","3376202","http://opencorporates.com/companies/gb/3376202","696815967"
"London Borough of Redbridge","http://opendatacommunities.org/doc/london-borough-council/redbridge","1BOTHEROPI&E","Other Operating Income & Expenditure","1CTRADSURDEF","Trading Account Surpluses & Deficits","REV","Revenue","R9551","CLM Maintenance","02-PREMISES","Premises","02A","Repairs, alteration and maintenance of buildings","3026","Minor Maintenance","3532590","201908",26/11/2018 00:00:00,37.72,"11700","Burglar and Intruder Alarm Systems","REDACTED DATA","OPENVIEW SECURITY SOLUTIONS LTD","3376202","http://opencorporates.com/companies/gb/3376202","696815967"
"London Borough of Redbridge","http://opendatacommunities.org/doc/london-borough-council/redbridge","1BOTHEROPI&E","Other Operating Income & Expenditure","1CTRADSURDEF","Trading Account Surpluses & Deficits","REV","Revenue","R9551","CLM Maintenance","02-PREMISES","Premises","02A","Repairs, alteration and maintenance of buildings","3026","Minor Maintenance","3532561","201908",14/11/2018 00:00:00,85,"27660","Drain and Sewer Clearance","REDACTED DATA","DRAIN AID LTD","3500245","http://opencorporates.com/companies/gb/3500245","710447956"
"London Borough of Redbridge","http://opendatacommunities.org/doc/london-borough-council/redbridge","1BOTHEROPI&E","Other Operating Income & Expenditure","1CTRADSURDEF","Trading Account Surpluses & Deficits","REV","Revenue","R9551","CLM Maintenance","02-PREMISES","Premises","02A","Repairs, alteration and maintenance of buildings","3026","Minor Maintenance","3532562","201908",19/11/2018 00:00:00,85,"27660","Drain and Sewer Clearance","REDACTED DATA","DRAIN AID LTD","3500245","http://opencorporates.com/companies/gb/3500245","710447956"
"London Borough of Redbridge","http://opendatacommunities.org/doc/london-borough-council/redbridge","1BOTHEROPI&E","Other Operating Income & Expenditure","1CTRADSURDEF","Trading Account Surpluses & Deficits","REV","Revenue","R9551","CLM Maintenance","02-PREMISES","Premises","02A","Repairs, alteration and maintenance of buildings","3026","Minor Maintenance","3532551","201908",19/11/2018 00:00:00,480.7,"11700","Burglar and Intruder Alarm Systems","REDACTED DATA","OPENVIEW SECURITY SOLUTIONS LTD","3376202","http://opencorporates.com/companies/gb/3376202","696815967"
"London Borough of Redbridge","http://opendatacommunities.org/doc/london-borough-council/redbridge","1BOTHEROPI&E","Other Operating Income & Expenditure","1CTRADSURDEF","Trading Account Surpluses & Deficits","REV","Revenue","R9551","CLM Maintenance","02-PREMISES","Premises","02A","Repairs, alteration and maintenance of buildings","3026","Minor Maintenance","3531937","201908",09/11/2018 00:00:00,37.72,"11700","Burglar and Intruder Alarm Systems","REDACTED DATA","OPENVIEW SECURITY SOLUTIONS LTD","3376202","http://opencorporates.com/companies/gb/3376202","696815967"
"London Borough of Redbridge","http://opendatacommunities.org/doc/london-borough-council/redbridge","1BOTHEROPI&E","Other Operating Income & Expenditure","1CTRADSURDEF","Trading Account Surpluses & Deficits","REV","Revenue","R9551","CLM Maintenance","02-PREMISES","Premises","02A","Repairs, alteration and maintenance of buildings","3026","Minor Maintenance","3531921","201908",07/11/2018 00:00:00,37.72,"11700","Burglar and Intruder Alarm Systems","REDACTED DATA","OPENVIEW SECURITY SOLUTIONS LTD","3376202","http://opencorporates.com/companies/gb/3376202","696815967"
"London Borough of Redbridge","http://opendatacommunities.org/doc/london-borough-council/redbridge","1BOTHEROPI&E","Other Operating Income & Expenditure","1CTRADSURDEF","Trading Account Surpluses & Deficits","REV","Revenue","R9551","CLM Maintenance","02-PREMISES","Premises","02A","Repairs, alteration and maintenance of buildings","3026","Minor Maintenance","3531950","201908",09/11/2018 00:00:00,226.32,"11700","Burglar and Intruder Alarm Systems","REDACTED DATA","OPENVIEW SECURITY SOLUTIONS LTD","3376202","http://opencorporates.com/companies/gb/3376202","696815967"
"London Borough of Redbridge","http://opendatacommunities.org/doc/london-borough-council/redbridge","1BOTHEROPI&E","Other Operating Income & Expenditure","1CTRADSURDEF","Trading Account Surpluses & Deficits","REV","Revenue","R9551","CLM Maintenance","02-PREMISES","Premises","02A","Repairs, alteration and maintenance of buildings","3026","Minor Maintenance","3531978","201908",12/11/2018 00:00:00,21.5,"30045","Electrical Engineers","REDACTED DATA","COUNTY ELECTRICAL SOLUTIONS LTD","6476990","http://opencorporates.com/companies/gb/6476990","924889474"
"London Borough of Redbridge","http://opendatacommunities.org/doc/london-borough-council/redbridge","1BOTHEROPI&E","Other Operating Income & Expenditure","1CTRADSURDEF","Trading Account Surpluses & Deficits","REV","Revenue","R9551","CLM Maintenance","02-PREMISES","Premises","02A","Repairs, alteration and maintenance of buildings","3026","Minor Maintenance","3531979","201908",11/11/2018 00:00:00,342.8,"16710","Central Heating - Installation and Servicing","REDACTED DATA","J R ASHWORTH PLMBING & HTG LTD","",,""
"London Borough of Redbridge","http://opendatacommunities.org/doc/london-borough-council/redbridge","1BOTHEROPI&E","Other Operating Income & Expenditure","1CTRADSURDEF","Trading Account Surpluses & Deficits","REV","Revenue","R9551","CLM Maintenance","02-PREMISES","Premises","02A","Repairs, alteration and maintenance of buildings","3026","Minor Maintenance","3532578","201908",20/11/2018 00:00:00,280,"57130","Pest and Vermin Control Products","REDACTED DATA","RAPTOR SERVICES LTD(RAPTOR PEST CONTROL)","6624216","http://opencorporates.com/companies/gb/6624216","650089346"
"London Borough of Redbridge","http://opendatacommunities.org/doc/london-borough-council/redbridge","1BOTHEROPI&E","Other Operating Income & Expenditure","1CTRADSURDEF","Trading Account Surpluses & Deficits","REV","Revenue","R9551","CLM Maintenance","02-PREMISES","Premises","02A","Repairs, alteration and maintenance of buildings","3026","Minor Maintenance","3532507","201908",12/11/2018 00:00:00,142.8,"2880","Air Conditioning Equipment and Systems","REDACTED DATA","EMS ENGINEERING MAINTENANCE SERVICES LIMITED","2002804","http://opencorporates.com/companies/gb/2002804","434851250"
"London Borough of Redbridge","http://opendatacommunities.org/doc/london-borough-council/redbridge","1BOTHEROPI&E","Other Operating Income & Expenditure","1CTRADSURDEF","Trading Account Surpluses & Deficits","REV","Revenue","R9551","CLM Maintenance","02-PREMISES","Premises","02A","Repairs, alteration and maintenance of buildings","3026","Minor Maintenance","3532507","201908",12/11/2018 00:00:00,0,"2880","Air Conditioning Equipment and Systems","REDACTED DATA","EMS ENGINEERING MAINTENANCE SERVICES LIMITED","2002804","http://opencorporates.com/companies/gb/2002804","434851250"
"London Borough of Redbridge","http://opendatacommunities.org/doc/london-borough-council/redbridge","1BOTHEROPI&E","Other Operating Income & Expenditure","1CTRADSURDEF","Trading Account Surpluses & Deficits","REV","Revenue","R9551","CLM Maintenance","02-PREMISES","Premises","02A","Repairs, alteration and maintenance of buildings","3026","Minor Maintenance","3532553","201908",12/11/2018 00:00:00,60,"30045","Electrical Engineers","REDACTED DATA","COUNTY ELECTRICAL SOLUTIONS LTD","6476990","http://opencorporates.com/companies/gb/6476990","924889474"
"London Borough of Redbridge","http://opendatacommunities.org/doc/london-borough-council/redbridge","1BOTHEROPI&E","Other Operating Income & Expenditure","1CTRADSURDEF","Trading Account Surpluses & Deficits","REV","Revenue","R9551","CLM Maintenance","02-PREMISES","Premises","02A","Repairs, alteration and maintenance of buildings","3026","Minor Maintenance","3532554","201908",12/11/2018 00:00:00,0,"30045","Electrical Engineers","REDACTED DATA","COUNTY ELECTRICAL SOLUTIONS LTD","6476990","http://opencorporates.com/companies/gb/6476990","924889474"
"London Borough of Redbridge","http://opendatacommunities.org/doc/london-borough-council/redbridge","1BOTHEROPI&E","Other Operating Income & Expenditure","1CTRADSURDEF","Trading Account Surpluses & Deficits","REV","Revenue","R9551","CLM Maintenance","02-PREMISES","Premises","02A","Repairs, alteration and maintenance of buildings","3026","Minor Maintenance","3532554","201908",12/11/2018 00:00:00,84.5,"30045","Electrical Engineers","REDACTED DATA","COUNTY ELECTRICAL SOLUTIONS LTD","6476990","http://opencorporates.com/companies/gb/6476990","924889474"
"London Borough of Redbridge","http://opendatacommunities.org/doc/london-borough-council/redbridge","1BOTHEROPI&E","Other Operating Income & Expenditure","1CTRADSURDEF","Trading Account Surpluses & Deficits","REV","Revenue","R9551","CLM Maintenance","02-PREMISES","Premises","02A","Repairs, alteration and maintenance of buildings","3026","Minor Maintenance","3532530","201908",12/11/2018 00:00:00,60,"30045","Electrical Engineers","REDACTED DATA","COUNTY ELECTRICAL SOLUTIONS LTD","6476990","http://opencorporates.com/companies/gb/6476990","924889474"
"London Borough of Redbridge","http://opendatacommunities.org/doc/london-borough-council/redbridge","1BOTHEROPI&E","Other Operating Income & Expenditure","1CTRADSURDEF","Trading Account Surpluses & Deficits","REV","Revenue","R9551","CLM Maintenance","02-PREMISES","Premises","02A","Repairs, alteration and maintenance of buildings","3026","Minor Maintenance","3532522","201908",12/11/2018 00:00:00,60,"30045","Electrical Engineers","REDACTED DATA","COUNTY ELECTRICAL SOLUTIONS LTD","6476990","http://opencorporates.com/companies/gb/6476990","924889474"
"London Borough of Redbridge","http://opendatacommunities.org/doc/london-borough-council/redbridge","1BOTHEROPI&E","Other Operating Income & Expenditure","1CTRADSURDEF","Trading Account Surpluses & Deficits","REV","Revenue","R9551","CLM Maintenance","02-PREMISES","Premises","02A","Repairs, alteration and maintenance of buildings","3026","Minor Maintenance","3532531","201908",12/11/2018 00:00:00,200,"30045","Electrical Engineers","REDACTED DATA","COUNTY ELECTRICAL SOLUTIONS LTD","6476990","http://opencorporates.com/companies/gb/6476990","924889474"
"London Borough of Redbridge","http://opendatacommunities.org/doc/london-borough-council/redbridge","1BOTHEROPI&E","Other Operating Income & Expenditure","1CTRADSURDEF","Trading Account Surpluses & Deficits","REV","Revenue","R9551","CLM Maintenance","02-PREMISES","Premises","02A","Repairs, alteration and maintenance of buildings","3026","Minor Maintenance","3531958","201908",12/11/2018 00:00:00,100,"30045","Electrical Engineers","REDACTED DATA","COUNTY ELECTRICAL SOLUTIONS LTD","6476990","http://opencorporates.com/companies/gb/6476990","924889474"
"London Borough of Redbridge","http://opendatacommunities.org/doc/london-borough-council/redbridge","1BOTHEROPI&E","Other Operating Income & Expenditure","1CTRADSURDEF","Trading Account Surpluses & Deficits","REV","Revenue","R9551","CLM Maintenance","02-PREMISES","Premises","02A","Repairs, alteration and maintenance of buildings","3026","Minor Maintenance","3531958","201908",12/11/2018 00:00:00,42.5,"30045","Electrical Engineers","REDACTED DATA","COUNTY ELECTRICAL SOLUTIONS LTD","6476990","http://opencorporates.com/companies/gb/6476990","924889474"
"London Borough of Redbridge","http://opendatacommunities.org/doc/london-borough-council/redbridge","1BOTHEROPI&E","Other Operating Income & Expenditure","1CTRADSURDEF","Trading Account Surpluses & Deficits","REV","Revenue","R9551","CLM Maintenance","02-PREMISES","Premises","02A","Repairs, alteration and maintenance of buildings","3026","Minor Maintenance","3531988","201908",11/11/2018 00:00:00,90,"16710","Central Heating - Installation and Servicing","REDACTED DATA","J R ASHWORTH PLMBING & HTG LTD","",,""
"London Borough of Redbridge","http://opendatacommunities.org/doc/london-borough-council/redbridge","1BOTHEROPI&E","Other Operating Income & Expenditure","1CTRADSURDEF","Trading Account Surpluses & Deficits","REV","Revenue","R9551","CLM Maintenance","02-PREMISES","Premises","02A","Repairs, alteration and maintenance of buildings","3026","Minor Maintenance","3531959","201908",12/11/2018 00:00:00,60,"30045","Electrical Engineers","REDACTED DATA","COUNTY ELECTRICAL SOLUTIONS LTD","6476990","http://opencorporates.com/companies/gb/6476990","924889474"
"London Borough of Redbridge","http://opendatacommunities.org/doc/london-borough-council/redbridge","1BOTHEROPI&E","Other Operating Income & Expenditure","1CTRADSURDEF","Trading Account Surpluses & Deficits","REV","Revenue","R9551","CLM Maintenance","02-PREMISES","Premises","02A","Repairs, alteration and maintenance of buildings","3026","Minor Maintenance","3531959","201908",12/11/2018 00:00:00,5,"30045","Electrical Engineers","REDACTED DATA","COUNTY ELECTRICAL SOLUTIONS LTD","6476990","http://opencorporates.com/companies/gb/6476990","924889474"
"London Borough of Redbridge","http://opendatacommunities.org/doc/london-borough-council/redbridge","1BOTHEROPI&E","Other Operating Income & Expenditure","1CTRADSURDEF","Trading Account Surpluses & Deficits","REV","Revenue","R9551","CLM Maintenance","02-PREMISES","Premises","02A","Repairs, alteration and maintenance of buildings","3026","Minor Maintenance","3531972","201908",12/11/2018 00:00:00,7.5,"30045","Electrical Engineers","REDACTED DATA","COUNTY ELECTRICAL SOLUTIONS LTD","6476990","http://opencorporates.com/companies/gb/6476990","924889474"
"London Borough of Redbridge","http://opendatacommunities.org/doc/london-borough-council/redbridge","1BOTHEROPI&E","Other Operating Income & Expenditure","1CTRADSURDEF","Trading Account Surpluses & Deficits","REV","Revenue","R9551","CLM Maintenance","02-PREMISES","Premises","02A","Repairs, alteration and maintenance of buildings","3026","Minor Maintenance","3531932","201908",07/11/2018 00:00:00,170,"48586","Locksmiths","REDACTED DATA","MARTIN LOCK & SAFE","",,"248118853"
"London Borough of Redbridge","http://opendatacommunities.org/doc/london-borough-council/redbridge","1BOTHEROPI&E","Other Operating Income & Expenditure","1CTRADSURDEF","Trading Account Surpluses & Deficits","REV","Revenue","R9551","CLM Maintenance","02-PREMISES","Premises","02A","Repairs, alteration and maintenance of buildings","3026","Minor Maintenance","3531933","201908",07/11/2018 00:00:00,62.05,"6940","Battery Suppliers","REDACTED DATA","GBS GENERAL BATTERY SUPPLY","3836192","http://opencorporates.com/companies/gb/3836192","597175196"
"London Borough of Redbridge","http://opendatacommunities.org/doc/london-borough-council/redbridge","1BOTHEROPI&E","Other Operating Income & Expenditure","1CTRADSURDEF","Trading Account Surpluses & Deficits","REV","Revenue","R9551","CLM Maintenance","02-PREMISES","Premises","02A","Repairs, alteration and maintenance of buildings","3026","Minor Maintenance","3531978","201908",12/11/2018 00:00:00,70,"30045","Electrical Engineers","REDACTED DATA","COUNTY ELECTRICAL SOLUTIONS LTD","6476990","http://opencorporates.com/companies/gb/6476990","924889474"
"London Borough of Redbridge","http://opendatacommunities.org/doc/london-borough-council/redbridge","1BOTHEROPI&E","Other Operating Income & Expenditure","1CTRADSURDEF","Trading Account Surpluses & Deficits","REV","Revenue","R9551","CLM Maintenance","02-PREMISES","Premises","02A","Repairs, alteration and maintenance of buildings","3026","Minor Maintenance","3532505","201908",20/09/2018 00:00:00,320,"57130","Pest and Vermin Control Products","REDACTED DATA","RAPTOR SERVICES LTD(RAPTOR PEST CONTROL)","6624216","http://opencorporates.com/companies/gb/6624216","650089346"
"London Borough of Redbridge","http://opendatacommunities.org/doc/london-borough-council/redbridge","1BOTHEROPI&E","Other Operating Income & Expenditure","1CTRADSURDEF","Trading Account Surpluses & Deficits","REV","Revenue","R9551","CLM Maintenance","02-PREMISES","Premises","02A","Repairs, alteration and maintenance of buildings","3026","Minor Maintenance","3532559","201908",12/11/2018 00:00:00,0,"30045","Electrical Engineers","REDACTED DATA","COUNTY ELECTRICAL SOLUTIONS LTD","6476990","http://opencorporates.com/companies/gb/6476990","924889474"
"London Borough of Redbridge","http://opendatacommunities.org/doc/london-borough-council/redbridge","1BOTHEROPI&E","Other Operating Income & Expenditure","1CTRADSURDEF","Trading Account Surpluses & Deficits","REV","Revenue","R9551","CLM Maintenance","02-PREMISES","Premises","02A","Repairs, alteration and maintenance of buildings","3026","Minor Maintenance","3532559","201908",12/11/2018 00:00:00,230,"30045","Electrical Engineers","REDACTED DATA","COUNTY ELECTRICAL SOLUTIONS LTD","6476990","http://opencorporates.com/companies/gb/6476990","924889474"
"London Borough of Redbridge","http://opendatacommunities.org/doc/london-borough-council/redbridge","1BOTHEROPI&E","Other Operating Income & Expenditure","1CTRADSURDEF","Trading Account Surpluses & Deficits","REV","Revenue","R9551","CLM Maintenance","02-PREMISES","Premises","02A","Repairs, alteration and maintenance of buildings","3026","Minor Maintenance","3531974","201908",12/11/2018 00:00:00,90,"30045","Electrical Engineers","REDACTED DATA","COUNTY ELECTRICAL SOLUTIONS LTD","6476990","http://opencorporates.com/companies/gb/6476990","924889474"
"London Borough of Redbridge","http://opendatacommunities.org/doc/london-borough-council/redbridge","1BOTHEROPI&E","Other Operating Income & Expenditure","1CTRADSURDEF","Trading Account Surpluses & Deficits","REV","Revenue","R9551","CLM Maintenance","02-PREMISES","Premises","02A","Repairs, alteration and maintenance of buildings","3026","Minor Maintenance","3531974","201908",12/11/2018 00:00:00,10,"30045","Electrical Engineers","REDACTED DATA","COUNTY ELECTRICAL SOLUTIONS LTD","6476990","http://opencorporates.com/companies/gb/6476990","924889474"
"London Borough of Redbridge","http://opendatacommunities.org/doc/london-borough-council/redbridge","1BOTHEROPI&E","Other Operating Income & Expenditure","1CTRADSURDEF","Trading Account Surpluses & Deficits","REV","Revenue","R9551","CLM Maintenance","02-PREMISES","Premises","02A","Repairs, alteration and maintenance of buildings","3026","Minor Maintenance","3531975","201908",12/11/2018 00:00:00,60,"30045","Electrical Engineers","REDACTED DATA","COUNTY ELECTRICAL SOLUTIONS LTD","6476990","http://opencorporates.com/companies/gb/6476990","924889474"
"London Borough of Redbridge","http://opendatacommunities.org/doc/london-borough-council/redbridge","1BOTHEROPI&E","Other Operating Income & Expenditure","1CTRADSURDEF","Trading Account Surpluses & Deficits","REV","Revenue","R9551","CLM Maintenance","02-PREMISES","Premises","02A","Repairs, alteration and maintenance of buildings","3026","Minor Maintenance","3531975","201908",12/11/2018 00:00:00,7.5,"30045","Electrical Engineers","REDACTED DATA","COUNTY ELECTRICAL SOLUTIONS LTD","6476990","http://opencorporates.com/companies/gb/6476990","924889474"
"London Borough of Redbridge","http://opendatacommunities.org/doc/london-borough-council/redbridge","1BOTHEROPI&E","Other Operating Income & Expenditure","1CTRADSURDEF","Trading Account Surpluses & Deficits","REV","Revenue","R9551","CLM Maintenance","02-PREMISES","Premises","02A","Repairs, alteration and maintenance of buildings","3026","Minor Maintenance","3531957","201908",12/11/2018 00:00:00,80,"30045","Electrical Engineers","REDACTED DATA","COUNTY ELECTRICAL SOLUTIONS LTD","6476990","http://opencorporates.com/companies/gb/6476990","924889474"
"London Borough of Redbridge","http://opendatacommunities.org/doc/london-borough-council/redbridge","1BOTHEROPI&E","Other Operating Income & Expenditure","1CTRADSURDEF","Trading Account Surpluses & Deficits","REV","Revenue","R9551","CLM Maintenance","02-PREMISES","Premises","02A","Repairs, alteration and maintenance of buildings","3026","Minor Maintenance","3531957","201908",12/11/2018 00:00:00,35,"30045","Electrical Engineers","REDACTED DATA","COUNTY ELECTRICAL SOLUTIONS LTD","6476990","http://opencorporates.com/companies/gb/6476990","924889474"
"London Borough of Redbridge","http://opendatacommunities.org/doc/london-borough-council/redbridge","1BOTHEROPI&E","Other Operating Income & Expenditure","1CTRADSURDEF","Trading Account Surpluses & Deficits","REV","Revenue","R9551","CLM Maintenance","02-PREMISES","Premises","02A","Repairs, alteration and maintenance of buildings","3026","Minor Maintenance","3532549","201908",12/11/2018 00:00:00,60,"30045","Electrical Engineers","REDACTED DATA","COUNTY ELECTRICAL SOLUTIONS LTD","6476990","http://opencorporates.com/companies/gb/6476990","924889474"
"London Borough of Redbridge","http://opendatacommunities.org/doc/london-borough-council/redbridge","1BOTHEROPI&E","Other Operating Income & Expenditure","1CTRADSURDEF","Trading Account Surpluses & Deficits","REV","Revenue","R9551","CLM Maintenance","02-PREMISES","Premises","02A","Repairs, alteration and maintenance of buildings","3026","Minor Maintenance","3532537","201908",12/11/2018 00:00:00,90,"30045","Electrical Engineers","REDACTED DATA","COUNTY ELECTRICAL SOLUTIONS LTD","6476990","http://opencorporates.com/companies/gb/6476990","924889474"
"London Borough of Redbridge","http://opendatacommunities.org/doc/london-borough-council/redbridge","1BOTHEROPI&E","Other Operating Income & Expenditure","1CTRADSURDEF","Trading Account Surpluses & Deficits","REV","Revenue","R9551","CLM Maintenance","02-PREMISES","Premises","02A","Repairs, alteration and maintenance of buildings","3026","Minor Maintenance","3532537","201908",12/11/2018 00:00:00,44.58,"30045","Electrical Engineers","REDACTED DATA","COUNTY ELECTRICAL SOLUTIONS LTD","6476990","http://opencorporates.com/companies/gb/6476990","924889474"
"London Borough of Redbridge","http://opendatacommunities.org/doc/london-borough-council/redbridge","1BOTHEROPI&E","Other Operating Income & Expenditure","1CTRADSURDEF","Trading Account Surpluses & Deficits","REV","Revenue","R9551","CLM Maintenance","02-PREMISES","Premises","02A","Repairs, alteration and maintenance of buildings","3026","Minor Maintenance","3532594","201908",26/11/2018 00:00:00,51,"2880","Air Conditioning Equipment and Systems","REDACTED DATA","EMS ENGINEERING MAINTENANCE SERVICES LIMITED","2002804","http://opencorporates.com/companies/gb/2002804","434851250"
"London Borough of Redbridge","http://opendatacommunities.org/doc/london-borough-council/redbridge","1BOTHEROPI&E","Other Operating Income & Expenditure","1CTRADSURDEF","Trading Account Surpluses & Deficits","REV","Revenue","R9551","CLM Maintenance","02-PREMISES","Premises","02A","Repairs, alteration and maintenance of buildings","3026","Minor Maintenance","3532594","201908",26/11/2018 00:00:00,0,"2880","Air Conditioning Equipment and Systems","REDACTED DATA","EMS ENGINEERING MAINTENANCE SERVICES LIMITED","2002804","http://opencorporates.com/companies/gb/2002804","434851250"
"London Borough of Redbridge","http://opendatacommunities.org/doc/london-borough-council/redbridge","1BOTHEROPI&E","Other Operating Income & Expenditure","1CTRADSURDEF","Trading Account Surpluses & Deficits","REV","Revenue","R9551","CLM Maintenance","02-PREMISES","Premises","02A","Repairs, alteration and maintenance of buildings","3026","Minor Maintenance","3532543","201908",12/11/2018 00:00:00,60,"30045","Electrical Engineers","REDACTED DATA","COUNTY ELECTRICAL SOLUTIONS LTD","6476990","http://opencorporates.com/companies/gb/6476990","924889474"
"London Borough of Redbridge","http://opendatacommunities.org/doc/london-borough-council/redbridge","1BOTHEROPI&E","Other Operating Income & Expenditure","1CTRADSURDEF","Trading Account Surpluses & Deficits","REV","Revenue","R9551","CLM Maintenance","02-PREMISES","Premises","02A","Repairs, alteration and maintenance of buildings","3026","Minor Maintenance","3532543","201908",12/11/2018 00:00:00,7.5,"30045","Electrical Engineers","REDACTED DATA","COUNTY ELECTRICAL SOLUTIONS LTD","6476990","http://opencorporates.com/companies/gb/6476990","924889474"
"London Borough of Redbridge","http://opendatacommunities.org/doc/london-borough-council/redbridge","1BOTHEROPI&E","Other Operating Income & Expenditure","1CTRADSURDEF","Trading Account Surpluses & Deficits","REV","Revenue","R9551","CLM Maintenance","02-PREMISES","Premises","02A","Repairs, alteration and maintenance of buildings","3026","Minor Maintenance","3532544","201908",12/11/2018 00:00:00,60,"30045","Electrical Engineers","REDACTED DATA","COUNTY ELECTRICAL SOLUTIONS LTD","6476990","http://opencorporates.com/companies/gb/6476990","924889474"
"London Borough of Redbridge","http://opendatacommunities.org/doc/london-borough-council/redbridge","1BOTHEROPI&E","Other Operating Income & Expenditure","1CTRADSURDEF","Trading Account Surpluses & Deficits","REV","Revenue","R9551","CLM Maintenance","02-PREMISES","Premises","02A","Repairs, alteration and maintenance of buildings","3026","Minor Maintenance","3532544","201908",12/11/2018 00:00:00,7.5,"30045","Electrical Engineers","REDACTED DATA","COUNTY ELECTRICAL SOLUTIONS LTD","6476990","http://opencorporates.com/companies/gb/6476990","924889474"
"London Borough of Redbridge","http://opendatacommunities.org/doc/london-borough-council/redbridge","1BOTHEROPI&E","Other Operating Income & Expenditure","1CTRADSURDEF","Trading Account Surpluses & Deficits","REV","Revenue","R9551","CLM Maintenance","02-PREMISES","Premises","02A","Repairs, alteration and maintenance of buildings","3026","Minor Maintenance","3531961","201908",12/11/2018 00:00:00,0,"30045","Electrical Engineers","REDACTED DATA","COUNTY ELECTRICAL SOLUTIONS LTD","6476990","http://opencorporates.com/companies/gb/6476990","924889474"
"London Borough of Redbridge","http://opendatacommunities.org/doc/london-borough-council/redbridge","1BOTHEROPI&E","Other Operating Income & Expenditure","1CTRADSURDEF","Trading Account Surpluses & Deficits","REV","Revenue","R9551","CLM Maintenance","02-PREMISES","Premises","02A","Repairs, alteration and maintenance of buildings","3026","Minor Maintenance","3531961","201908",12/11/2018 00:00:00,60,"30045","Electrical Engineers","REDACTED DATA","COUNTY ELECTRICAL SOLUTIONS LTD","6476990","http://opencorporates.com/companies/gb/6476990","924889474"
"London Borough of Redbridge","http://opendatacommunities.org/doc/london-borough-council/redbridge","1BOTHEROPI&E","Other Operating Income & Expenditure","1CTRADSURDEF","Trading Account Surpluses & Deficits","REV","Revenue","R9551","CLM Maintenance","02-PREMISES","Premises","02A","Repairs, alteration and maintenance of buildings","3026","Minor Maintenance","3531970","201908",12/11/2018 00:00:00,0,"30045","Electrical Engineers","REDACTED DATA","COUNTY ELECTRICAL SOLUTIONS LTD","6476990","http://opencorporates.com/companies/gb/6476990","924889474"
"London Borough of Redbridge","http://opendatacommunities.org/doc/london-borough-council/redbridge","1BOTHEROPI&E","Other Operating Income & Expenditure","1CTRADSURDEF","Trading Account Surpluses & Deficits","REV","Revenue","R9551","CLM Maintenance","02-PREMISES","Premises","02A","Repairs, alteration and maintenance of buildings","3026","Minor Maintenance","3531970","201908",12/11/2018 00:00:00,60,"30045","Electrical Engineers","REDACTED DATA","COUNTY ELECTRICAL SOLUTIONS LTD","6476990","http://opencorporates.com/companies/gb/6476990","924889474"
"London Borough of Redbridge","http://opendatacommunities.org/doc/london-borough-council/redbridge","1BOTHEROPI&E","Other Operating Income & Expenditure","1CTRADSURDEF","Trading Account Surpluses & Deficits","REV","Revenue","R9551","CLM Maintenance","02-PREMISES","Premises","02A","Repairs, alteration and maintenance of buildings","3026","Minor Maintenance","3531930","201908",14/10/2018 00:00:00,60,"16710","Central Heating - Installation and Servicing","REDACTED DATA","J R ASHWORTH PLMBING & HTG LTD","",,""
"London Borough of Redbridge","http://opendatacommunities.org/doc/london-borough-council/redbridge","1BOTHEROPI&E","Other Operating Income & Expenditure","1CTRADSURDEF","Trading Account Surpluses & Deficits","REV","Revenue","R9551","CLM Maintenance","02-PREMISES","Premises","02A","Repairs, alteration and maintenance of buildings","3026","Minor Maintenance","3531972","201908",12/11/2018 00:00:00,60,"30045","Electrical Engineers","REDACTED DATA","COUNTY ELECTRICAL SOLUTIONS LTD","6476990","http://opencorporates.com/companies/gb/6476990","924889474"
"London Borough of Redbridge","http://opendatacommunities.org/doc/london-borough-council/redbridge","1BOTHEROPI&E","Other Operating Income & Expenditure","1CTRADSURDEF","Trading Account Surpluses & Deficits","REV","Revenue","R9551","CLM Maintenance","02-PREMISES","Premises","02A","Repairs, alteration and maintenance of buildings","3026","Minor Maintenance","3532555","201908",12/11/2018 00:00:00,102.5,"30045","Electrical Engineers","REDACTED DATA","COUNTY ELECTRICAL SOLUTIONS LTD","6476990","http://opencorporates.com/companies/gb/6476990","924889474"
"London Borough of Redbridge","http://opendatacommunities.org/doc/london-borough-council/redbridge","1BOTHEROPI&E","Other Operating Income & Expenditure","1CTRADSURDEF","Trading Account Surpluses & Deficits","REV","Revenue","R9551","CLM Maintenance","02-PREMISES","Premises","02A","Repairs, alteration and maintenance of buildings","3026","Minor Maintenance","3532556","201908",12/11/2018 00:00:00,0,"30045","Electrical Engineers","REDACTED DATA","COUNTY ELECTRICAL SOLUTIONS LTD","6476990","http://opencorporates.com/companies/gb/6476990","924889474"
"London Borough of Redbridge","http://opendatacommunities.org/doc/london-borough-council/redbridge","1BOTHEROPI&E","Other Operating Income & Expenditure","1CTRADSURDEF","Trading Account Surpluses & Deficits","REV","Revenue","R9551","CLM Maintenance","02-PREMISES","Premises","02A","Repairs, alteration and maintenance of buildings","3026","Minor Maintenance","3532556","201908",12/11/2018 00:00:00,60,"30045","Electrical Engineers","REDACTED DATA","COUNTY ELECTRICAL SOLUTIONS LTD","6476990","http://opencorporates.com/companies/gb/6476990","924889474"
"London Borough of Redbridge","http://opendatacommunities.org/doc/london-borough-council/redbridge","1BOTHEROPI&E","Other Operating Income & Expenditure","1CTRADSURDEF","Trading Account Surpluses & Deficits","REV","Revenue","R9551","CLM Maintenance","02-PREMISES","Premises","02A","Repairs, alteration and maintenance of buildings","3026","Minor Maintenance","3532530","201908",12/11/2018 00:00:00,12,"30045","Electrical Engineers","REDACTED DATA","COUNTY ELECTRICAL SOLUTIONS LTD","6476990","http://opencorporates.com/companies/gb/6476990","924889474"
"London Borough of Redbridge","http://opendatacommunities.org/doc/london-borough-council/redbridge","1BOTHEROPI&E","Other Operating Income & Expenditure","1CTRADSURDEF","Trading Account Surpluses & Deficits","REV","Revenue","R9551","CLM Maintenance","02-PREMISES","Premises","02A","Repairs, alteration and maintenance of buildings","3026","Minor Maintenance","3532523","201908",12/11/2018 00:00:00,60,"30045","Electrical Engineers","REDACTED DATA","COUNTY ELECTRICAL SOLUTIONS LTD","6476990","http://opencorporates.com/companies/gb/6476990","924889474"
"London Borough of Redbridge","http://opendatacommunities.org/doc/london-borough-council/redbridge","1BOTHEROPI&E","Other Operating Income & Expenditure","1CTRADSURDEF","Trading Account Surpluses & Deficits","REV","Revenue","R9551","CLM Maintenance","02-PREMISES","Premises","02A","Repairs, alteration and maintenance of buildings","3026","Minor Maintenance","3532523","201908",12/11/2018 00:00:00,7.5,"30045","Electrical Engineers","REDACTED DATA","COUNTY ELECTRICAL SOLUTIONS LTD","6476990","http://opencorporates.com/companies/gb/6476990","924889474"
"London Borough of Redbridge","http://opendatacommunities.org/doc/london-borough-council/redbridge","1BOTHEROPI&E","Other Operating Income & Expenditure","1CTRADSURDEF","Trading Account Surpluses & Deficits","REV","Revenue","R9551","CLM Maintenance","02-PREMISES","Premises","02A","Repairs, alteration and maintenance of buildings","3026","Minor Maintenance","3532524","201908",15/11/2018 00:00:00,81.6,"2880","Air Conditioning Equipment and Systems","REDACTED DATA","EMS ENGINEERING MAINTENANCE SERVICES LIMITED","2002804","http://opencorporates.com/companies/gb/2002804","434851250"
"London Borough of Redbridge","http://opendatacommunities.org/doc/london-borough-council/redbridge","1BOTHEROPI&E","Other Operating Income & Expenditure","1CTRADSURDEF","Trading Account Surpluses & Deficits","REV","Revenue","R9551","CLM Maintenance","02-PREMISES","Premises","02A","Repairs, alteration and maintenance of buildings","3026","Minor Maintenance","3532548","201908",12/11/2018 00:00:00,0,"30045","Electrical Engineers","REDACTED DATA","COUNTY ELECTRICAL SOLUTIONS LTD","6476990","http://opencorporates.com/companies/gb/6476990","924889474"
"London Borough of Redbridge","http://opendatacommunities.org/doc/london-borough-council/redbridge","1BOTHEROPI&E","Other Operating Income & Expenditure","1CTRADSURDEF","Trading Account Surpluses & Deficits","REV","Revenue","R9551","CLM Maintenance","02-PREMISES","Premises","02A","Repairs, alteration and maintenance of buildings","3026","Minor Maintenance","3532524","201908",15/11/2018 00:00:00,0,"2880","Air Conditioning Equipment and Systems","REDACTED DATA","EMS ENGINEERING MAINTENANCE SERVICES LIMITED","2002804","http://opencorporates.com/companies/gb/2002804","434851250"
"London Borough of Redbridge","http://opendatacommunities.org/doc/london-borough-council/redbridge","1BOTHEROPI&E","Other Operating Income & Expenditure","1CTRADSURDEF","Trading Account Surpluses & Deficits","REV","Revenue","R9551","CLM Maintenance","02-PREMISES","Premises","02A","Repairs, alteration and maintenance of buildings","3026","Minor Maintenance","3531954","201908",12/11/2018 00:00:00,135.2,"2880","Air Conditioning Equipment and Systems","REDACTED DATA","EMS ENGINEERING MAINTENANCE SERVICES LIMITED","2002804","http://opencorporates.com/companies/gb/2002804","434851250"
"London Borough of Redbridge","http://opendatacommunities.org/doc/london-borough-council/redbridge","1BOTHEROPI&E","Other Operating Income & Expenditure","1CTRADSURDEF","Trading Account Surpluses & Deficits","REV","Revenue","R9551","CLM Maintenance","02-PREMISES","Premises","02A","Repairs, alteration and maintenance of buildings","3026","Minor Maintenance","3531954","201908",12/11/2018 00:00:00,0,"2880","Air Conditioning Equipment and Systems","REDACTED DATA","EMS ENGINEERING MAINTENANCE SERVICES LIMITED","2002804","http://opencorporates.com/companies/gb/2002804","434851250"
"London Borough of Redbridge","http://opendatacommunities.org/doc/london-borough-council/redbridge","1BOTHEROPI&E","Other Operating Income & Expenditure","1CTRADSURDEF","Trading Account Surpluses & Deficits","REV","Revenue","R9551","CLM Maintenance","02-PREMISES","Premises","02A","Repairs, alteration and maintenance of buildings","3026","Minor Maintenance","3532552","201908",12/11/2018 00:00:00,0,"30045","Electrical Engineers","REDACTED DATA","COUNTY ELECTRICAL SOLUTIONS LTD","6476990","http://opencorporates.com/companies/gb/6476990","924889474"
"London Borough of Redbridge","http://opendatacommunities.org/doc/london-borough-council/redbridge","1BOTHEROPI&E","Other Operating Income & Expenditure","1CTRADSURDEF","Trading Account Surpluses & Deficits","REV","Revenue","R9551","CLM Maintenance","02-PREMISES","Premises","02A","Repairs, alteration and maintenance of buildings","3026","Minor Maintenance","3532552","201908",12/11/2018 00:00:00,92.5,"30045","Electrical Engineers","REDACTED DATA","COUNTY ELECTRICAL SOLUTIONS LTD","6476990","http://opencorporates.com/companies/gb/6476990","924889474"
"London Borough of Redbridge","http://opendatacommunities.org/doc/london-borough-council/redbridge","1BOTHEROPI&E","Other Operating Income & Expenditure","1CTRADSURDEF","Trading Account Surpluses & Deficits","REV","Revenue","R9551","CLM Maintenance","02-PREMISES","Premises","02A","Repairs, alteration and maintenance of buildings","3026","Minor Maintenance","3532553","201908",12/11/2018 00:00:00,0,"30045","Electrical Engineers","REDACTED DATA","COUNTY ELECTRICAL SOLUTIONS LTD","6476990","http://opencorporates.com/companies/gb/6476990","924889474"
"London Borough of Redbridge","http://opendatacommunities.org/doc/london-borough-council/redbridge","1BOTHEROPI&E","Other Operating Income & Expenditure","1CTRADSURDEF","Trading Account Surpluses & Deficits","REV","Revenue","R9551","CLM Maintenance","02-PREMISES","Premises","02A","Repairs, alteration and maintenance of buildings","3026","Minor Maintenance","3532531","201908",12/11/2018 00:00:00,211.36,"30045","Electrical Engineers","REDACTED DATA","COUNTY ELECTRICAL SOLUTIONS LTD","6476990","http://opencorporates.com/companies/gb/6476990","924889474"
"London Borough of Redbridge","http://opendatacommunities.org/doc/london-borough-council/redbridge","1BOTHEROPI&E","Other Operating Income & Expenditure","1CTRADSURDEF","Trading Account Surpluses & Deficits","REV","Revenue","R9551","CLM Maintenance","02-PREMISES","Premises","02A","Repairs, alteration and maintenance of buildings","3026","Minor Maintenance","3532532","201908",12/11/2018 00:00:00,120,"30045","Electrical Engineers","REDACTED DATA","COUNTY ELECTRICAL SOLUTIONS LTD","6476990","http://opencorporates.com/companies/gb/6476990","924889474"
"London Borough of Redbridge","http://opendatacommunities.org/doc/london-borough-council/redbridge","1BOTHEROPI&E","Other Operating Income & Expenditure","1CTRADSURDEF","Trading Account Surpluses & Deficits","REV","Revenue","R9551","CLM Maintenance","02-PREMISES","Premises","02A","Repairs, alteration and maintenance of buildings","3026","Minor Maintenance","3532532","201908",12/11/2018 00:00:00,47.25,"30045","Electrical Engineers","REDACTED DATA","COUNTY ELECTRICAL SOLUTIONS LTD","6476990","http://opencorporates.com/companies/gb/6476990","924889474"
"London Borough of Redbridge","http://opendatacommunities.org/doc/london-borough-council/redbridge","1BOTHEROPI&E","Other Operating Income & Expenditure","1CTRADSURDEF","Trading Account Surpluses & Deficits","REV","Revenue","R9551","CLM Maintenance","02-PREMISES","Premises","02A","Repairs, alteration and maintenance of buildings","3026","Minor Maintenance","3532555","201908",12/11/2018 00:00:00,0,"30045","Electrical Engineers","REDACTED DATA","COUNTY ELECTRICAL SOLUTIONS LTD","6476990","http://opencorporates.com/companies/gb/6476990","924889474"
"London Borough of Redbridge","http://opendatacommunities.org/doc/london-borough-council/redbridge","1BOTHEROPI&E","Other Operating Income & Expenditure","1CTRADSURDEF","Trading Account Surpluses & Deficits","REV","Revenue","R9551","CLM Maintenance","02-PREMISES","Premises","02A","Repairs, alteration and maintenance of buildings","3026","Minor Maintenance","3532545","201908",12/11/2018 00:00:00,7.5,"30045","Electrical Engineers","REDACTED DATA","COUNTY ELECTRICAL SOLUTIONS LTD","6476990","http://opencorporates.com/companies/gb/6476990","924889474"
"London Borough of Redbridge","http://opendatacommunities.org/doc/london-borough-council/redbridge","1BOTHEROPI&E","Other Operating Income & Expenditure","1CTRADSURDEF","Trading Account Surpluses & Deficits","REV","Revenue","R9551","CLM Maintenance","02-PREMISES","Premises","02A","Repairs, alteration and maintenance of buildings","3026","Minor Maintenance","3532545","201908",12/11/2018 00:00:00,60,"30045","Electrical Engineers","REDACTED DATA","COUNTY ELECTRICAL SOLUTIONS LTD","6476990","http://opencorporates.com/companies/gb/6476990","924889474"
"London Borough of Redbridge","http://opendatacommunities.org/doc/london-borough-council/redbridge","1BOTHEROPI&E","Other Operating Income & Expenditure","1CTRADSURDEF","Trading Account Surpluses & Deficits","REV","Revenue","R9551","CLM Maintenance","02-PREMISES","Premises","02A","Repairs, alteration and maintenance of buildings","3026","Minor Maintenance","3532585","201908",18/11/2018 00:00:00,80,"16710","Central Heating - Installation and Servicing","REDACTED DATA","J R ASHWORTH PLMBING & HTG LTD","",,""
"London Borough of Redbridge","http://opendatacommunities.org/doc/london-borough-council/redbridge","1BOTHEROPI&E","Other Operating Income & Expenditure","1CTRADSURDEF","Trading Account Surpluses & Deficits","REV","Revenue","R9551","CLM Maintenance","02-PREMISES","Premises","02A","Repairs, alteration and maintenance of buildings","3026","Minor Maintenance","3532579","201908",18/11/2018 00:00:00,423.6,"16710","Central Heating - Installation and Servicing","REDACTED DATA","J R ASHWORTH PLMBING & HTG LTD","",,""
"London Borough of Redbridge","http://opendatacommunities.org/doc/london-borough-council/redbridge","1BOTHEROPI&E","Other Operating Income & Expenditure","1CTRADSURDEF","Trading Account Surpluses & Deficits","REV","Revenue","R9551","CLM Maintenance","02-PREMISES","Premises","02A","Repairs, alteration and maintenance of buildings","3026","Minor Maintenance","3532519","201908",12/11/2018 00:00:00,120,"30045","Electrical Engineers","REDACTED DATA","COUNTY ELECTRICAL SOLUTIONS LTD","6476990","http://opencorporates.com/companies/gb/6476990","924889474"
"London Borough of Redbridge","http://opendatacommunities.org/doc/london-borough-council/redbridge","1BOTHEROPI&E","Other Operating Income & Expenditure","1CTRADSURDEF","Trading Account Surpluses & Deficits","REV","Revenue","R9551","CLM Maintenance","02-PREMISES","Premises","02A","Repairs, alteration and maintenance of buildings","3026","Minor Maintenance","3532519","201908",12/11/2018 00:00:00,42.5,"30045","Electrical Engineers","REDACTED DATA","COUNTY ELECTRICAL SOLUTIONS LTD","6476990","http://opencorporates.com/companies/gb/6476990","924889474"
"London Borough of Redbridge","http://opendatacommunities.org/doc/london-borough-council/redbridge","1BOTHEROPI&E","Other Operating Income & Expenditure","1CTRADSURDEF","Trading Account Surpluses & Deficits","REV","Revenue","R9551","CLM Maintenance","02-PREMISES","Premises","02A","Repairs, alteration and maintenance of buildings","3026","Minor Maintenance","3532539","201908",12/11/2018 00:00:00,90,"30045","Electrical Engineers","REDACTED DATA","COUNTY ELECTRICAL SOLUTIONS LTD","6476990","http://opencorporates.com/companies/gb/6476990","924889474"
"London Borough of Redbridge","http://opendatacommunities.org/doc/london-borough-council/redbridge","1BOTHEROPI&E","Other Operating Income & Expenditure","1CTRADSURDEF","Trading Account Surpluses & Deficits","REV","Revenue","R9551","CLM Maintenance","02-PREMISES","Premises","02A","Repairs, alteration and maintenance of buildings","3026","Minor Maintenance","3532539","201908",12/11/2018 00:00:00,17.5,"30045","Electrical Engineers","REDACTED DATA","COUNTY ELECTRICAL SOLUTIONS LTD","6476990","http://opencorporates.com/companies/gb/6476990","924889474"
"London Borough of Redbridge","http://opendatacommunities.org/doc/london-borough-council/redbridge","1BOTHEROPI&E","Other Operating Income & Expenditure","1CTRADSURDEF","Trading Account Surpluses & Deficits","REV","Revenue","R9551","CLM Maintenance","02-PREMISES","Premises","02A","Repairs, alteration and maintenance of buildings","3026","Minor Maintenance","3532540","201908",12/11/2018 00:00:00,80,"30045","Electrical Engineers","REDACTED DATA","COUNTY ELECTRICAL SOLUTIONS LTD","6476990","http://opencorporates.com/companies/gb/6476990","924889474"
"London Borough of Redbridge","http://opendatacommunities.org/doc/london-borough-council/redbridge","1BOTHEROPI&E","Other Operating Income & Expenditure","1CTRADSURDEF","Trading Account Surpluses & Deficits","REV","Revenue","R9551","CLM Maintenance","02-PREMISES","Premises","02A","Repairs, alteration and maintenance of buildings","3026","Minor Maintenance","3532540","201908",12/11/2018 00:00:00,17.5,"30045","Electrical Engineers","REDACTED DATA","COUNTY ELECTRICAL SOLUTIONS LTD","6476990","http://opencorporates.com/companies/gb/6476990","924889474"
"London Borough of Redbridge","http://opendatacommunities.org/doc/london-borough-council/redbridge","1BOTHEROPI&E","Other Operating Income & Expenditure","1CTRADSURDEF","Trading Account Surpluses & Deficits","REV","Revenue","R9551","CLM Maintenance","02-PREMISES","Premises","02A","Repairs, alteration and maintenance of buildings","3026","Minor Maintenance","3532548","201908",12/11/2018 00:00:00,70,"30045","Electrical Engineers","REDACTED DATA","COUNTY ELECTRICAL SOLUTIONS LTD","6476990","http://opencorporates.com/companies/gb/6476990","924889474"
"London Borough of Redbridge","http://opendatacommunities.org/doc/london-borough-council/redbridge","1BOTHEROPI&E","Other Operating Income & Expenditure","1CTRADSURDEF","Trading Account Surpluses & Deficits","REV","Revenue","R9551","CLM Maintenance","02-PREMISES","Premises","02A","Repairs, alteration and maintenance of buildings","3026","Minor Maintenance","3532549","201908",12/11/2018 00:00:00,0,"30045","Electrical Engineers","REDACTED DATA","COUNTY ELECTRICAL SOLUTIONS LTD","6476990","http://opencorporates.com/companies/gb/6476990","924889474"
"London Borough of Redbridge","http://opendatacommunities.org/doc/london-borough-council/redbridge","1BOTHEROPI&E","Other Operating Income & Expenditure","1CTRADSURDEF","Trading Account Surpluses & Deficits","REV","Revenue","R9551","CLM Maintenance","02-PREMISES","Premises","02A","Repairs, alteration and maintenance of buildings","3026","Minor Maintenance","3532593","201908",26/11/2018 00:00:00,102.82,"2880","Air Conditioning Equipment and Systems","REDACTED DATA","EMS ENGINEERING MAINTENANCE SERVICES LIMITED","2002804","http://opencorporates.com/companies/gb/2002804","434851250"
"London Borough of Redbridge","http://opendatacommunities.org/doc/london-borough-council/redbridge","1BOTHEROPI&E","Other Operating Income & Expenditure","1CTRADSURDEF","Trading Account Surpluses & Deficits","REV","Revenue","R9551","CLM Maintenance","02-PREMISES","Premises","02A","Repairs, alteration and maintenance of buildings","3026","Minor Maintenance","3532593","201908",26/11/2018 00:00:00,0,"2880","Air Conditioning Equipment and Systems","REDACTED DATA","EMS ENGINEERING MAINTENANCE SERVICES LIMITED","2002804","http://opencorporates.com/companies/gb/2002804","434851250"
"London Borough of Redbridge","http://opendatacommunities.org/doc/london-borough-council/redbridge","1BOTHEROPI&E","Other Operating Income & Expenditure","1CTRADSURDEF","Trading Account Surpluses & Deficits","REV","Revenue","R9551","CLM Maintenance","02-PREMISES","Premises","02A","Repairs, alteration and maintenance of buildings","3026","Minor Maintenance","3530173","201908",31/10/2018 00:00:00,244.8,"2880","Air Conditioning Equipment and Systems","REDACTED DATA","EMS ENGINEERING MAINTENANCE SERVICES LIMITED","2002804","http://opencorporates.com/companies/gb/2002804","434851250"
"London Borough of Redbridge","http://opendatacommunities.org/doc/london-borough-council/redbridge","1BOTHEROPI&E","Other Operating Income & Expenditure","1CTRADSURDEF","Trading Account Surpluses & Deficits","REV","Revenue","R9551","CLM Maintenance","02-PREMISES","Premises","02A","Repairs, alteration and maintenance of buildings","3026","Minor Maintenance","3530173","201908",31/10/2018 00:00:00,0,"2880","Air Conditioning Equipment and Systems","REDACTED DATA","EMS ENGINEERING MAINTENANCE SERVICES LIMITED","2002804","http://opencorporates.com/companies/gb/2002804","434851250"
"London Borough of Redbridge","http://opendatacommunities.org/doc/london-borough-council/redbridge","1BOTHEROPI&E","Other Operating Income & Expenditure","1CTRADSURDEF","Trading Account Surpluses & Deficits","REV","Revenue","R9551","CLM Maintenance","02-PREMISES","Premises","02A","Repairs, alteration and maintenance of buildings","3026","Minor Maintenance","3530174","201908",31/10/2018 00:00:00,61.2,"2880","Air Conditioning Equipment and Systems","REDACTED DATA","EMS ENGINEERING MAINTENANCE SERVICES LIMITED","2002804","http://opencorporates.com/companies/gb/2002804","434851250"
"London Borough of Redbridge","http://opendatacommunities.org/doc/london-borough-council/redbridge","1BOTHEROPI&E","Other Operating Income & Expenditure","1CTRADSURDEF","Trading Account Surpluses & Deficits","REV","Revenue","R9551","CLM Maintenance","02-PREMISES","Premises","02A","Repairs, alteration and maintenance of buildings","3026","Minor Maintenance","3530174","201908",31/10/2018 00:00:00,0,"2880","Air Conditioning Equipment and Systems","REDACTED DATA","EMS ENGINEERING MAINTENANCE SERVICES LIMITED","2002804","http://opencorporates.com/companies/gb/2002804","434851250"
"London Borough of Redbridge","http://opendatacommunities.org/doc/london-borough-council/redbridge","1BOTHEROPI&E","Other Operating Income & Expenditure","1CTRADSURDEF","Trading Account Surpluses & Deficits","REV","Revenue","R9551","CLM Maintenance","02-PREMISES","Premises","02A","Repairs, alteration and maintenance of buildings","3026","Minor Maintenance","3530175","201908",31/10/2018 00:00:00,183.6,"2880","Air Conditioning Equipment and Systems","REDACTED DATA","EMS ENGINEERING MAINTENANCE SERVICES LIMITED","2002804","http://opencorporates.com/companies/gb/2002804","434851250"
"London Borough of Redbridge","http://opendatacommunities.org/doc/london-borough-council/redbridge","1BOTHEROPI&E","Other Operating Income & Expenditure","1CTRADSURDEF","Trading Account Surpluses & Deficits","REV","Revenue","R9551","CLM Maintenance","02-PREMISES","Premises","02A","Repairs, alteration and maintenance of buildings","3026","Minor Maintenance","3532522","201908",12/11/2018 00:00:00,17.5,"30045","Electrical Engineers","REDACTED DATA","COUNTY ELECTRICAL SOLUTIONS LTD","6476990","http://opencorporates.com/companies/gb/6476990","924889474"
"London Borough of Redbridge","http://opendatacommunities.org/doc/london-borough-council/redbridge","1BOTHEROPI&E","Other Operating Income & Expenditure","1CTRADSURDEF","Trading Account Surpluses & Deficits","REV","Revenue","R9551","CLM Maintenance","02-PREMISES","Premises","02A","Repairs, alteration and maintenance of buildings","3026","Minor Maintenance","3532536","201908",12/11/2018 00:00:00,0,"30045","Electrical Engineers","REDACTED DATA","COUNTY ELECTRICAL SOLUTIONS LTD","6476990","http://opencorporates.com/companies/gb/6476990","924889474"
"London Borough of Redbridge","http://opendatacommunities.org/doc/london-borough-council/redbridge","1BOTHEROPI&E","Other Operating Income & Expenditure","1CTRADSURDEF","Trading Account Surpluses & Deficits","REV","Revenue","R9551","CLM Maintenance","02-PREMISES","Premises","02A","Repairs, alteration and maintenance of buildings","3026","Minor Maintenance","3532536","201908",12/11/2018 00:00:00,80,"30045","Electrical Engineers","REDACTED DATA","COUNTY ELECTRICAL SOLUTIONS LTD","6476990","http://opencorporates.com/companies/gb/6476990","924889474"
"London Borough of Redbridge","http://opendatacommunities.org/doc/london-borough-council/redbridge","1BOTHEROPI&E","Other Operating Income & Expenditure","1CTRADSURDEF","Trading Account Surpluses & Deficits","REV","Revenue","R9551","CLM Maintenance","02-PREMISES","Premises","02A","Repairs, alteration and maintenance of buildings","3026","Minor Maintenance","3532527","201908",12/11/2018 00:00:00,60,"30045","Electrical Engineers","REDACTED DATA","COUNTY ELECTRICAL SOLUTIONS LTD","6476990","http://opencorporates.com/companies/gb/6476990","924889474"
"London Borough of Redbridge","http://opendatacommunities.org/doc/london-borough-council/redbridge","1BOTHEROPI&E","Other Operating Income & Expenditure","1CTRADSURDEF","Trading Account Surpluses & Deficits","REV","Revenue","R9551","CLM Maintenance","02-PREMISES","Premises","02A","Repairs, alteration and maintenance of buildings","3026","Minor Maintenance","3532527","201908",12/11/2018 00:00:00,0,"30045","Electrical Engineers","REDACTED DATA","COUNTY ELECTRICAL SOLUTIONS LTD","6476990","http://opencorporates.com/companies/gb/6476990","924889474"
"London Borough of Redbridge","http://opendatacommunities.org/doc/london-borough-council/redbridge","1BOTHEROPI&E","Other Operating Income & Expenditure","1CTRADSURDEF","Trading Account Surpluses & Deficits","REV","Revenue","R9551","CLM Maintenance","02-PREMISES","Premises","02A","Repairs, alteration and maintenance of buildings","3026","Minor Maintenance","3532596","201908",26/11/2018 00:00:00,142.8,"2880","Air Conditioning Equipment and Systems","REDACTED DATA","EMS ENGINEERING MAINTENANCE SERVICES LIMITED","2002804","http://opencorporates.com/companies/gb/2002804","434851250"
"London Borough of Redbridge","http://opendatacommunities.org/doc/london-borough-council/redbridge","1BOTHEROPI&E","Other Operating Income & Expenditure","1CTRADSURDEF","Trading Account Surpluses & Deficits","REV","Revenue","R9551","CLM Maintenance","02-PREMISES","Premises","02A","Repairs, alteration and maintenance of buildings","3026","Minor Maintenance","3532596","201908",26/11/2018 00:00:00,0,"2880","Air Conditioning Equipment and Systems","REDACTED DATA","EMS ENGINEERING MAINTENANCE SERVICES LIMITED","2002804","http://opencorporates.com/companies/gb/2002804","434851250"
"London Borough of Redbridge","http://opendatacommunities.org/doc/london-borough-council/redbridge","1BOTHEROPI&E","Other Operating Income & Expenditure","1CTRADSURDEF","Trading Account Surpluses & Deficits","REV","Revenue","R9551","CLM Maintenance","02-PREMISES","Premises","02A","Repairs, alteration and maintenance of buildings","3026","Minor Maintenance","3530175","201908",31/10/2018 00:00:00,0,"2880","Air Conditioning Equipment and Systems","REDACTED DATA","EMS ENGINEERING MAINTENANCE SERVICES LIMITED","2002804","http://opencorporates.com/companies/gb/2002804","434851250"
"London Borough of Redbridge","http://opendatacommunities.org/doc/london-borough-council/redbridge","1BOTHEROPI&E","Other Operating Income & Expenditure","1CTRADSURDEF","Trading Account Surpluses & Deficits","REV","Revenue","R9551","CLM Maintenance","02-PREMISES","Premises","02A","Repairs, alteration and maintenance of buildings","3037","Service Contracts","3532616","201908",06/11/2018 00:00:00,122.4,"47960","Lifts - Servicing and Repairs","REDACTED DATA","GRIFFIN ELEVATORS LTD","3719819","http://opencorporates.com/companies/gb/3719819","731279340"
"London Borough of Redbridge","http://opendatacommunities.org/doc/london-borough-council/redbridge","1BOTHEROPI&E","Other Operating Income & Expenditure","1CTRADSURDEF","Trading Account Surpluses & Deficits","REV","Revenue","R9551","CLM Maintenance","02-PREMISES","Premises","02A","Repairs, alteration and maintenance of buildings","3037","Service Contracts","3532639","201908",11/10/2018 00:00:00,100,"31410","Energy Conservation Consultants and Equipment","REDACTED DATA","DIGITALENERGY LTD","7369818","http://opencorporates.com/companies/gb/7369818","151779489"
"London Borough of Redbridge","http://opendatacommunities.org/doc/london-borough-council/redbridge","1BOTHEROPI&E","Other Operating Income & Expenditure","1CTRADSURDEF","Trading Account Surpluses & Deficits","REV","Revenue","R9551","CLM Maintenance","02-PREMISES","Premises","02A","Repairs, alteration and maintenance of buildings","3037","Service Contracts","3532628","201908",02/11/2018 00:00:00,33.5,"16111","Catering Equipment","REDACTED DATA","J SCOTT & SONS  LTD","",,"354241082"
"London Borough of Redbridge","http://opendatacommunities.org/doc/london-borough-council/redbridge","1BOTHEROPI&E","Other Operating Income & Expenditure","1CTRADSURDEF","Trading Account Surpluses & Deficits","REV","Revenue","R9551","CLM Maintenance","02-PREMISES","Premises","02A","Repairs, alteration and maintenance of buildings","3037","Service Contracts","3532610","201908",06/11/2018 00:00:00,77.52,"47960","Lifts - Servicing and Repairs","REDACTED DATA","GRIFFIN ELEVATORS LTD","3719819","http://opencorporates.com/companies/gb/3719819","731279340"
